Workbook

Sheet About
A1: Microbiological sampling plans: a tool to explore ICMSF recommendations
A2: Version 2.10: Copyright 1998 David Legan & Mark Vandeven 2009 Marcel Zwietering & Peter Sestoft
E4: Disclaimer
A5: This spreadsheet calculates probabilities | E5: The authors have taken every care to ensure that the output from this
A6: of acceptance for materials with different | E6: workbook is accurate. In making this tool available to promote discussion
A7: microbial loads and population standard | E7: and understanding of the power and limitations of attributes sampling plans
A8: deviations. The microbes are assumed | E8: neither the authors nor Nabisco Inc / ICMSF accept any liability for any
A9: to be lognormally distributed. | E9: consequences, direct or indirect resulting from a decision by the user to take,
E10: or not to take, any action based on an output from this workbook.
A12: Version 1.01 | E12: Version 2.01: Addition of enrichment calculations | K12: Version 2.02: Simpliciation and reorganisation
A13: Mark Vandeven and David Legan | E13: Marcel Zwietering | K13: This version simplified and reorganized by Peter Sestoft (sestoft@itu.dk) after discussions
A14: Nabisco Research | E14: Wageningen University | K14: with Marcel Zwietering (marcel.zwietering@wur.nl)
A15: R M Schaeberle Technology Center | E15: Laboratory of Food Microbiology
A16: 200 DeForest Avenue | E16: PO Box 17 | K16: Version 2.03-2.05: Finilisation for posting
A17: East Hanover, NJ 07936-1944, USA | E17: 6700AA Wageningen | K17: The file is further improved and updated.
A18: email: VandevenM@Nabisco.com, or | E18: The Netherlands
A19: LeganD@Nabisco.com | E19: email: Marcel.Zwietering@WUR.nl | K19: Version 2.07: OC based on arithmetic mean
K20: Version 2.08: Sensitivity and specificity added
A21: Background reading | K21: Version 2.09: 3-class mixed added
A22: ICMSF book 2 | K22: Version 2.10: 3-class mixed corrected error
A23: Calculations for 2-class spreadsheet were checked against ICMSF book 2 Tables 2 and 3 and are in complete agreement.
A24: Calculations for 3-class spreadsheet were checked against ICMSF book 2 Table 4 and are in complete agreement.
A25: Relating microbiological criteria to food safety objectives and performance objectives
A26: M. van Schothorst, M.H. Zwietering, T. Ross, R.L. Buchanan, M.B. Cole, International Commission on Microbiological Specifications for Foods (ICMSF)
A27: Food Control 20: 967-979 (2009)
A28: Microbial testing in food safety: effect of specificity and sensitivity on sampling plans — how does the OC curve move
A29: M.H. Zwietering, H.M.W. den Besten.
A30: Current Opinion Food Science 12, 42–51 (2016)
A32: Acknowledgment
A33: The curves showing the distribution of organisms in foods for entered mean counts and sigma values
A34: were inspired by unpublished work circulated to ICMSF members by Suzanne Dahms
A35: Development of this tool was inspired by Martin Cole
A40: update 2009-05-20
A41: update 2009-10-7: reduced further in calculations, removed empty modules, updated MZ
A42: update 2009-10-12: returned to goalseek, no need for solver and analytic toolpack
A43: update 2009-10-14: limited c maximally at 1e10 cfu/g in poissonlognormal
A44: update 2009-10-15: limited sigma >0.05
A45: update 2009-10-27: protected help file in Introduction
A46: update 2010-10-19: added log arithmetic means
A47: update 2013-11-25: version 07: added boxes with performance, changed graph to arithmetic mean
A48: update 2014-10-23: version 08: sensitivty and selectivity added and boxes placed in input
A49: update 2015-11-17: version 08: sensspec updated by removing alternative plan
A50: update 2015-11-23: version 08: made boxes conditional for only being represented if fitted, manual updated with log mean.
A51: update 2016-09-11: version 08: added specificity and sensitivity tables, FSO added
A52: update 2018-12-15: version 09: added 3-class mixed (m is qualitative M is quantitative)
A53: update 2019-4-19: version 09: % for P reject
A54: update 2019-11-15: version 09: text in 3-class adapted : from >m to c samples between m-M
A55: update 2020-7-24: version 10: eorror in calculation corrected | G55: "NORMSDIST((BigM-C56)/sigma)-E56 for NORMSDIST((BigM-D56)/sigma)-NORMSDIST((m-D56)/sigma)
A56: update 2020-9-15: version 10: minor formatting things and 2-class with dash
A57: update 2020-9-18: version 10: minor editig things in word files included in tab "introduction" and m value in alternative plan made yellow box. Brackets added in P(accept)

Sheet Technical issues

Sheet Introduction
A1: This file can determine the performance of sampling plans for five cases:
A3: ● 2-class plans for enrichments (presence/absence, detection of the organism with no count results) | K3: see tab 2-class enrichment
A4: ● 2-class plans for quantitative determination (like concentration<100 cfu/g) | K4: see tab 2-class counts
A5: ● 3-classplans for quantitative determination (where concentration is compared to both m and M) | K5: see tab 3-class counts
A6: ● 3-class mixed plans where m is qualitative and M is a concentration | K6: see tab 3-class mixed
A7: ● 2-class plans for enrichments including effects sensitivity and specificity | K7: see tab 2-class enrich sensspec
A8: ● Effects of sensitivity and specificity (fixed values) are also presented in a tabular form | K8: see tab TableSensSpec
A10: Description of the used variables
A11: Data entry boxes are highlighted in yellow: | F11: All other cells are protected.
A13: mean | B13: mean of the (assumed) log normal distribution describing the occurrence of bacterial contaminants; unit is log cfu per gram
A14: sigma | B14: standard deviation of the same (assumed) log normal distribution
A15: m | B15: acceptable level of microbiological contamination, defined as an allowable concentration, or for enrichement no contamination in a sample of a certain weight, hence equals minus log(weight)
A16: n | B16: number of samples tested
A17: c | B17: number of samples whose contamination is allowed to exceed m (that is, test positive for contamination), yet the lot will be accepted
A18: amount | B18: sample weight, in gram (only relevant for 2-class enrichement plans)
A19: P(accept) | B19: the probability of accepting a specific lot; this is a function of the assumed contamination level (mean, sigma) and the sampling plan (n, c and amount). This is usually set at 5%, this then
B20: means there is 5% probability of acceptance, or 95% probability of detecting such unacceptable lot
A21: sensitivity | B21: true positive rate= TP/(TP+FN), (assumed to be fixed value depending on the method and not dependant on the concentration of the organisms)
A22: specificity | B22: true negative rate= TN/(TN+FP), (assumed to be fixed value depending on the method and not dependant on the concentration of the organisms)
A24: The Implied Acceptance Level, shown on all ‘tabs’ (worksheets), allows you to calculate the proportion of all the samples in the lot that would be expected to be above any chosen logCFU value
A25: (i.e., a user input). For that logCFU, the z-score is also calculated.
A28: For a manual please open the following word-file | G28: For an explanation on arithmetic and geometric means open the following word-file

Sheet 2-class enrichment
B1: ="Operating characteristic curve for proportion defective, with n="&n&" and c="&cm -> Operating characteristic curve for proportion defective, with n=60 and c=0 | I1: ="Probability density function (PDF) for log counts. Distribution mean = "&FIXED(meanlog,2)&" and sigma = "&FIXED(sigma,2) -> Probability density function (PDF) for log counts. Distribution mean = -3.31 and sigma = 0.80 | P1: ="Operating characteristic curve scaled to relate log arithmetic mean count to m" -> Operating characteristic curve scaled to relate log arithmetic mean count to m | AH1: ="Operating characteristic curve scaled to relate mean log count to m" -> Operating characteristic curve scaled to relate mean log count to m
D10: 1
I18: INPUTS | L18: P(accept) | P18: ALTERNATIVE n AND c | S18: P(accept)
C19: Lot acceptance for Pd | I19: mean | J19: -3.308402129 | L19: Computed | M19: =$F$53*100 -> 5.000455707 | N19: % | P19: mean | Q19: =meanlog -> -3.308402129 | S19: Computed | T19: =F55*100 -> 5.000455707 | U19: %
F20: P(accept) | I20: sigma | J20: 0.8 | L20: Desired | M20: 5 | N20: % | P20: sigma | Q20: =sigma -> 0.8 | S20: Target, left | T20: =computed_P -> 5.000455707 | U20: %
C21: Pd | D21: 20 | E21: % | F21: =$F$54*100 -> 0.0001532495541 | G21: % | I21: m | J21: =-LOG(weight) -> -1.397940009 | P21: m | Q21: =m -> -1.397940009
C22: actualPd | D22: =+Pd*100 -> 4.870146833 | E22: % | F22: =+computed_P -> 5.000455707 | G22: % | I22: n | J22: 60 | P22: n | Q22: =n -> 60
I23: c | J23: 0 | P23: c | Q23: =cm -> 0
I25: amount | J25: 25 | K25: g | P25: amount | Q25: =10^-alternative_m -> 25 | R25: g
B27: Sandbox: for your own calculations
B28: FSO | C28: -1 | L28: P(reject) | M28: =100-computed_P -> 94.99954429 | N28: %
B29: complient | C29: =_xlfn.NORM.DIST(C28,meanlog,sigma,1) -> 0.9980460542 | D29: not comply | E29: =1-_xlfn.NORM.DIST(C28,meanlog,sigma,1) -> 0.001953945785
B30: % | C30: =100*C29 -> 99.80460542 | D30: % | E30: =100*E29 -> 0.1953945785 | I30: Means | P30: Implied Acceptance level
J31: Arithmetic (=Average) | M31: Geometric (=Median) | P31: Percentile | Q31: z-score | R31: Concentration at this percentile
J32: =10^(meanlog+0.5*sigma^2*LN(10)) -> 0.002681792058 | K32: cfu/g | M32: =10^meanlog -> 0.0004915841488 | N32: cfu/g | P32: 99.9 | Q32: =+TINV(2*(1-P32/100),1000) -> 3.098402164 | S32: =+meanlog+Q32*sigma -> -0.8296803984
I33: one cfu in | J33: =1/J32 -> 372.8849883 | K33: grams | L33: one cfu in | M33: =1/M32 -> 2034.239718 | N33: grams | P33: FSO | Q33: P(exceedance) | S33: target level
J34: =+LOG(J32) -> -2.5715749 | K34: log cfu/g | M34: =+LOG(M32) -> -3.308402129 | N34: log cfu/g | P34: =+S32 -> -0.8296803984 | Q34: =1-_xlfn.NORM.DIST(P34,meanlog,sigma,1) -> 0.0009728360014 | S34: =+P34-Q32*sigma -> -3.308402129
B36: =IF(ABS(computed_P-desired_P)<0.001,"This sampling plan would provide "&FIXED(M28,0)&" % confidence that a lot of food containing a geometric mean concentration of 1 organism in "&FIXED(M33,1)&" g and an arithmetic mean concentration of 1 organism in "&FIXED(J33,1)&" g","") -> This sampling plan would provide 95 % confidence that a lot of food containing a geometric mean concentration of 1 organism in 2,034.2 g and an arithmetic mean concentration of 1 organism in 372.9 g
B37: =IF(ABS(computed_P-desired_P)<0.001,"(and having a standard deviation of "&FIXED(sigma,2)&" log cfu/g), would be rejected (i.e. more than "& cm&" out of "&n&" samples of "&weight&" grams giving detection of the organism)","") -> (and having a standard deviation of 0.80 log cfu/g), would be rejected (i.e. more than 0 out of 60 samples of 25 grams giving detection of the organism)
B51: The calculations below are for the buttons above. Do not edit.
B52: geo mean | C52: arith mean | D52: pa | E52: pd | F52: P(accept)
B53: =meanlog -> -3.308402129 | C53: =+B53+0.5*LN(10)*sigma^2 -> -2.5715749 | D53: =1-poissonlognormal(meanlog,sigma,10^-m) -> 0.9512985317 | E53: =1-D53 -> 0.04870146833 | F53: =+BINOMDIST(cm,n,$E53,1) -> 0.05000455707 | H53: <= Used by macros for finding mean and n
D54: =1-E54 -> 0.8 | E54: =$D$21/100 -> 0.2 | F54: =+BINOMDIST(cm,n,$E54,1) -> 1.532495541e-06 | H54: <= Used in test against ICMSF tables
B55: =meanlog -> -3.308402129 | C55: =+B55+0.5*LN(10)*sigma^2 -> -2.5715749 | D55: =1-poissonlognormal(meanlog,sigma,10^-alternative_m) -> 0.9512985317 | E55: =1-D55 -> 0.04870146833 | F55: =+BINOMDIST($Q$23,$Q$22,$E55,1) -> 0.05000455707 | H55: <= Used by macro for finding m in equivalent performance criterion
B57: The calculations below are for the charts above. Do not edit.
B58: -6 | C58: =+B58+0.5*LN(10)*sigma^2 -> -5.26317277 | D58: =1-poissonlognormal(B58,sigma,10^-m) -> 0.9998638832 | E58: =1-D58 -> 0.0001361167817 | F58: =+BINOMDIST(cm,n,$E58,1) -> 0.9918657011 | G58: =NORMDIST($B58,meanlog,sigma,FALSE) -> 0.001736790948 | I58: =1-poissonlognormal(B58,sigma,10^-alternative_m) -> 0.9998638832 | J58: =1-I58 -> 0.0001361167817 | K58: =+BINOMDIST($Q$23,$Q$22,$J58,1) -> 0.9918657011
B59: -5.9 | C59: -5.16317277 | D59: 0.9998287239 | E59: 0.0001712761456 | F59: 0.9897751836 | G59: 0.002624233347 | I59: 0.9998287239 | J59: =1-I59 -> 0.0001712761456 | K59: =+BINOMDIST($Q$23,$Q$22,$J59,1) -> 0.9897751836
B60: -5.8 | C60: -5.06317277 | D60: 0.9997845087 | E60: 0.0002154912845 | F60: 0.9871523741 | G60: 0.003903655658 | I60: 0.9997845087 | J60: 0.0002154912845 | K60: 0.9871523741
B61: -5.7 | C61: -4.96317277 | D61: 0.9997289196 | E61: 0.0002710803597 | F61: 0.983864567 | G61: 0.005716822418 | I61: 0.9997289196 | J61: 0.0002710803597 | K61: 0.983864567
B62: -5.6 | C62: -4.86317277 | D62: 0.9996590527 | E62: 0.0003409473157 | F62: 0.9797475651 | G62: 0.008242368954 | I62: 0.9996590527 | J62: 0.0003409473157 | K62: 0.9797475651
B63: -5.5 | C63: -4.76317277 | D63: 0.999571274 | E63: 0.0004287259568 | F63: 0.9745990989 | G63: 0.0116993989 | I63: 0.999571274 | J63: 0.0004287259568 | K63: 0.9745990989
B64: -5.4 | C64: -4.66317277 | D64: 0.9994610425 | E64: 0.0005389575092 | F64: 0.9681713742 | G64: 0.01634892476 | I64: 0.9994610425 | J64: 0.0005389575092 | K64: 0.9681713742
B65: -5.3 | C65: -4.56317277 | D65: 0.9993226915 | E65: 0.0006773085256 | F65: 0.9601629396 | G65: 0.02249204742 | I65: 0.9993226915 | J65: 0.0006773085256 | K65: 0.9601629396
B66: -5.2 | C66: -4.46317277 | D66: 0.999149163 | E66: 0.0008508369876 | F66: 0.9502103011 | G66: 0.03046371996 | I66: 0.999149163 | J66: 0.0008508369876 | K66: 0.9502103011
B67: -5.1 | C67: -4.36317277 | D67: 0.9989316846 | E67: 0.001068315402 | F67: 0.9378800774 | G67: 0.04062103896 | I67: 0.9989316846 | J67: 0.001068315402 | K67: 0.9378800774
B68: -5 | C68: -4.26317277 | D68: 0.9986593795 | E68: 0.001340620487 | F68: 0.9226630272 | G68: 0.05332529522 | I68: 0.9986593795 | J68: =1-I68 -> 0.001340620487 | K68: 0.9226630272
B69: -4.9 | C69: -4.16317277 | D69: 0.9983188004 | E69: 0.001681199562 | F69: 0.9039720277 | G69: 0.0689175228 | I69: 0.9983188004 | J69: 0.001681199562 | K69: 0.9039720277
B70: -4.8 | C70: -4.06317277 | D70: 0.9978933763 | E70: 0.002106623733 | F70: 0.8811470563 | G70: 0.08768800659 | I70: 0.9978933763 | J70: 0.002106623733 | K70: 0.8811470563 | L70: Coordinates to place m
B71: -4.7 | C71: -3.96317277 | D71: 0.9973627627 | E71: 0.002637237282 | F71: 0.8534713926 | G71: 0.1098411029 | I71: 0.9973627627 | J71: 0.002637237282 | K71: 0.8534713926 | L71: proportion | N71: m
B72: -4.6 | C72: -3.86317277 | D72: 0.9967020892 | E72: 0.003297910802 | F72: 0.8202044392 | G72: 0.1354577075 | I72: 0.9967020892 | J72: 0.003297910802 | K72: 0.8202044392 | L72: 0 | M72: 0 | N72: =m -> -1.397940009
B73: -4.5 | C73: -3.76317277 | D73: 0.9958810976 | E73: 0.004118902445 | F73: 0.7806374033 | G73: 0.1644586444 | I73: 0.9958810976 | J73: 0.004118902445 | K73: 0.7806374033 | L73: =1.1*NORMDIST(meanlog,meanlog,sigma,FALSE) -> 0.5485456356 | M73: 1 | N73: =m -> -1.397940009
B74: -4.4 | C74: -3.66317277 | D74: 0.9948631735 | E74: 0.005136826529 | F74: 0.73417789 | G74: 0.1965729883 | I74: 0.9948631735 | J74: 0.005136826529 | K74: 0.73417789
B75: -4.3 | C75: -3.56317277 | D75: 0.9936042785 | E75: 0.006395721462 | F75: 0.6804671694 | G75: 0.2313157063 | I75: 0.9936042785 | J75: 0.006395721462 | K75: 0.6804671694
B76: -4.2 | C76: -3.46317277 | D76: 0.992051801 | E76: 0.007948199004 | F76: 0.6195280758 | G76: 0.2679788712 | I76: 0.992051801 | J76: 0.007948199004 | K76: 0.6195280758
B77: -4.1 | C77: -3.36317277 | D77: 0.9901433559 | E77: 0.009856644095 | F77: 0.5519308328 | G77: 0.3056399594 | I77: 0.9901433559 | J77: 0.009856644095 | K77: 0.5519308328
B78: -4 | C78: -3.26317277 | D78: 0.9878055812 | E78: 0.01219441877 | F78: 0.4789481932 | G78: 0.3431893972 | I78: 0.9878055812 | J78: 0.01219441877 | K78: 0.4789481932
B79: -3.9 | C79: -3.16317277 | D79: 0.9849529947 | E79: 0.01504700534 | F79: 0.4026524057 | G79: 0.3793776476 | I79: 0.9849529947 | J79: 0.01504700534 | K79: 0.4026524057
B80: -3.8 | C80: -3.06317277 | D80: 0.9814869963 | E80: 0.01851300371 | F80: 0.3258914757 | G80: 0.4128799232 | I80: 0.9814869963 | J80: 0.01851300371 | K80: 0.3258914757 | L80: Coordinates to place Pd
B81: -3.7 | C81: -2.96317277 | D81: 0.9772951235 | E81: 0.0227048765 | F81: 0.2520832006 | G81: 0.4423743525 | I81: 0.9772951235 | J81: 0.0227048765 | K81: 0.2520832006 | L81: p accept
B82: -3.6 | C82: -2.86317277 | D82: 0.9722506844 | E82: 0.02774931563 | F82: 0.1847972275 | G82: 0.4666274288 | I82: 0.9722506844 | J82: 0.02774931563 | K82: 0.1847972275 | L82: x | M82: y
B83: -3.5 | C83: -2.76317277 | D83: 0.9662129128 | E83: 0.03378708718 | F83: 0.127165773 | G83: 0.4845791632 | I83: 0.9662129128 | J83: 0.03378708718 | K83: 0.127165773 | L83: =+Pd -> 0.04870146833 | M83: 0
B84: -3.4 | C84: -2.66317277 | D84: 0.9590277989 | E84: 0.0409722011 | F84: 0.08125905416 | G84: 0.4954197965 | I84: 0.9590277989 | J84: 0.0409722011 | K84: 0.08125905416 | L84: =+Pd -> 0.04870146833 | M84: =+desired_P/100 -> 0.05
B85: -3.3 | C85: -2.56317277 | D85: 0.9505297486 | E85: 0.04947025142 | F85: 0.04763682497 | G85: 0.4986503477 | I85: 0.9505297486 | J85: 0.04947025142 | K85: 0.04763682497
B86: -3.2 | C86: -2.46317277 | D86: 0.9405442148 | E86: 0.05945578522 | F86: 0.02527859823 | G86: 0.4941206961 | I86: 0.9405442148 | J86: 0.05945578522 | K86: 0.02527859823
B87: -3.1 | C87: -2.36317277 | D87: 0.928891413 | E87: 0.07110858704 | F87: 0.01196456425 | G87: 0.4820411475 | I87: 0.928891413 | J87: 0.07110858704 | K87: 0.01196456425
B88: -3 | C88: -2.26317277 | D88: 0.9153911875 | E88: 0.08460881252 | F88: 0.00497054063 | G88: 0.4629662448 | I88: 0.9153911875 | J88: 0.08460881252 | K88: 0.00497054063
B89: -2.9 | C89: -2.16317277 | D89: 0.8998690288 | E89: 0.1001309712 | F89: 0.001781387025 | G89: 0.4377525574 | I89: 0.8998690288 | J89: 0.1001309712 | K89: 0.001781387025
B90: -2.8 | C90: =+B90+0.5*LN(10)*sigma^2 -> -2.06317277 | D90: =1-poissonlognormal(B90,sigma,10^-m) -> 0.8821631565 | E90: =1-D90 -> 0.1178368435 | F90: =+BINOMDIST(cm,n,$E90,1) -> 0.0005406733095 | G90: =NORMDIST($B90,meanlog,sigma,FALSE) -> 0.4074949258 | I90: =1-poissonlognormal(B90,sigma,10^-alternative_m) -> 0.8821631565 | J90: 0.1178368435 | K90: 0.0005406733095
B91: -2.7 | C91: -1.96317277 | D91: 0.8621324853 | E91: 0.1378675147 | F91: 0.000136282654 | G91: 0.3734477671 | I91: 0.8621324853 | J91: 0.1378675147 | K91: 0.000136282654
B92: -2.6 | C92: -1.86317277 | D92: 0.8396651828 | E92: 0.1603348172 | F92: 2.794915718e-05 | G92: 0.3369393066 | I92: 0.8396651828 | J92: 0.1603348172 | K92: 2.794915718e-05
B93: -2.5 | C93: -1.76317277 | D93: 0.8146874207 | E93: 0.1853125793 | F93: 4.565208673e-06 | G93: 0.2992868513 | I93: 0.8146874207 | J93: 0.1853125793 | K93: 4.565208673e-06
B94: -2.4 | C94: -1.66317277 | D94: 0.7871718292 | E94: 0.2128281708 | F94: 5.809952818e-07 | G94: 0.2617205024 | I94: 0.7871718292 | J94: 0.2128281708 | K94: 5.809952818e-07
B95: -2.3 | C95: -1.56317277 | D95: 0.7571450883 | E95: 0.2428549117 | F95: 5.633088321e-08 | G95: 0.2253211723 | I95: 0.7571450883 | J95: 0.2428549117 | K95: 5.633088321e-08
B96: -2.2 | C96: -1.46317277 | D96: 0.724694059 | E96: 0.275305941 | F96: 4.067073882e-09 | G96: 0.1909767101 | I96: 0.724694059 | J96: 0.275305941 | K96: 4.067073882e-09
B97: -2.1 | C97: -1.36317277 | D97: 0.689969866 | E97: 0.310030134 | F97: 2.137014243e-10 | G97: 0.1593576666 | I97: 0.689969866 | J97: 0.310030134 | K97: 2.137014243e-10
B98: -2 | C98: -1.26317277 | D98: 0.6531894074 | E98: 0.3468105926 | F98: 7.986343733e-12 | G98: 0.1309120624 | I98: 0.6531894074 | J98: 0.3468105926 | K98: 7.986343733e-12
B99: -1.9 | C99: -1.16317277 | D99: 0.6146338897 | E99: 0.3853661103 | F99: 2.074866516e-13 | G99: 0.1058767293 | I99: 0.6146338897 | J99: 0.3853661103 | K99: 2.074866516e-13
B100: -1.8 | C100: -1.06317277 | D100: 0.5746441524 | E100: 0.4253558476 | F100: 3.663865305e-15 | G100: 0.08430154171 | I100: 0.5746441524 | J100: 0.4253558476 | K100: 3.663865305e-15
B101: -1.7 | C101: -0.9631727702 | D101: 0.5336127636 | E101: 0.4663872364 | F101: 4.301030703e-17 | G101: 0.06608222635 | I101: 0.5336127636 | J101: 0.4663872364 | K101: 4.301030703e-17
B102: -1.6 | C102: -0.8631727702 | D102: 0.4919730996 | E102: 0.5080269004 | F102: 3.284591832e-19 | G102: 0.05099739167 | I102: 0.4919730996 | J102: 0.5080269004 | K102: 3.284591832e-19
B103: -1.5 | C103: -0.7631727702 | D103: 0.450185863 | E103: 0.549814137 | F103: 1.597758643e-21 | G103: 0.03874586944 | I103: 0.450185863 | J103: 0.549814137 | K103: 1.597758643e-21
B104: -1.4 | C104: -0.6631727702 | D104: 0.408723713 | E104: 0.591276287 | F104: 4.850540096e-24 | G104: 0.02898124284 | I104: 0.408723713 | J104: 0.591276287 | K104: 4.850540096e-24
B105: -1.3 | C105: -0.5631727702 | D105: 0.3680548538 | E105: 0.6319451462 | F105: 9.01058462e-27 | G105: 0.02134139234 | I105: 0.3680548538 | J105: 0.6319451462 | K105: 9.01058462e-27
B106: -1.2 | C106: -0.4631727702 | D106: 0.3286265406 | E106: 0.6713734594 | F106: 1.004981584e-29 | G106: 0.01547186413 | I106: 0.3286265406 | J106: 0.6713734594 | K106: 1.004981584e-29
B107: -1.1 | C107: -0.3631727702 | D107: 0.2908494918 | E107: 0.7091505082 | F107: 6.608434069e-33 | G107: 0.01104273587 | I107: 0.2908494918 | J107: 0.7091505082 | K107: 6.608434069e-33
B108: -1 | C108: -0.2631727702 | D108: 0.2550841482 | E108: 0.7449158518 | F108: 2.517724801e-36 | G108: 0.007759341647 | I108: 0.2550841482 | J108: 0.7449158518 | K108: 2.517724801e-36
B109: -0.9 | C109: -0.1631727702 | D109: 0.2216295821 | E109: 0.7783704179 | F109: 5.465924783e-40 | G109: 0.005367687371 | I109: 0.2216295821 | J109: 0.7783704179 | K109: 5.465924783e-40
B110: -0.8 | C110: -0.06317277024 | D110: 0.1907156628 | E110: 0.8092843372 | F110: 6.655515372e-44 | G110: 0.003655642359 | I110: 0.1907156628 | J110: 0.8092843372 | K110: 6.655515372e-44
B111: -0.7 | C111: 0.03682722976 | D111: 0.1624988323 | E111: 0.8375011677 | F111: 4.477284349e-48 | G111: 0.002451062228 | I111: 0.1624988323 | J111: 0.8375011677 | K111: 4.477284349e-48
B112: -0.6 | C112: 0.1368272298 | D112: 0.1370615726 | E112: 0.8629384274 | F112: 1.640373063e-52 | G112: 0.001617927745 | I112: 0.1370615726 | J112: 0.8629384274 | K112: 1.640373063e-52
B113: -0.5 | C113: 0.2368272298 | D113: 0.1144153768 | E113: 0.8855846232 | F113: 3.228967744e-57 | G113: 0.001051424412 | I113: 0.1144153768 | J113: 0.8855846232 | K113: 3.228967744e-57
B114: -0.4 | C114: 0.3368272298 | D114: 0.09450679883 | E114: 0.9054932012 | F114: 3.371189521e-62 | G114: 0.0006726840632 | I114: 0.09450679883 | J114: 0.9054932012 | K114: 3.371189521e-62
B115: -0.3 | C115: 0.4368272298 | D115: 0.07722596693 | E115: 0.9227740331 | F115: 1.844171397e-67 | G115: 0.0004236999083 | I115: 0.07722596693 | J115: 0.9227740331 | K115: 1.844171397e-67
B116: -0.2 | C116: 0.5368272298 | D116: 0.06241682533 | E116: 0.9375831747 | F116: 5.225171342e-73 | G116: 0.0002627361005 | I116: 0.06241682533 | J116: 0.9375831747 | K116: 5.225171342e-73
B117: -0.1 | C117: 0.6368272298 | D117: 0.04988831945 | E117: 0.9501116805 | F117: 7.584596253e-79 | G117: 0.0001603966445 | I117: 0.04988831945 | J117: 0.9501116805 | K117: 7.584596253e-79
B118: -2.042810365e-14 | C118: 0.7368272298 | D118: 0.03942575983 | E118: 0.9605742402 | F118: 5.582186199e-85 | G118: 9.640175848e-05 | I118: 0.03942575983 | J118: 0.9605742402 | K118: 5.582186199e-85
B119: 0.1 | C119: 0.8368272298 | D119: 0.03080168175 | E119: 0.9691983183 | F119: 2.062841011e-91 | G119: 5.704121691e-05 | I119: 0.03080168175 | J119: 0.9691983183 | K119: 2.062841011e-91
B120: 0.2 | C120: 0.9368272298 | D120: 0.02378564484 | E120: 0.9762143552 | F120: 3.792239753e-98 | G120: 3.32281955e-05 | I120: 0.02378564484 | J120: 0.9762143552 | K120: 3.792239753e-98
B121: 0.3 | C121: 1.03682723 | D121: 0.01815257192 | E121: 0.9818474281 | F121: 3.437874099e-105 | G121: 1.905631313e-05 | I121: 0.01815257192 | J121: 0.9818474281 | K121: 3.437874099e-105
B122: 0.4 | C122: =+B122+0.5*LN(10)*sigma^2 -> 1.13682723 | D122: =1-poissonlognormal(B122,sigma,10^-m) -> 0.0136893912 | E122: =1-D122 -> 0.9863106088 | F122: =+BINOMDIST(cm,n,$E122,1) -> 1.524221475e-112 | G122: =NORMDIST($B122,meanlog,sigma,FALSE) -> 1.075932814e-05 | I122: =1-poissonlognormal(B122,sigma,10^-alternative_m) -> 0.0136893912 | J122: 0.9863106088 | K122: 1.524221475e-112
B123: 0.5 | C123: 1.23682723 | D123: 0.01019990288 | E123: 0.9898000971 | F123: 3.279156911e-120 | G123: 5.980611255e-06 | I123: 0.01019990288 | J123: 0.9898000971 | K123: =+BINOMDIST($Q$23,$Q$22,$J123,1) -> 3.279156911e-120
B124: 0.6 | C124: 1.33682723 | D124: 0.007507927832 | E124: 0.9924920722 | F124: 3.397859094e-128 | G124: 3.272805102e-06 | I124: 0.007507927832 | J124: 0.9924920722 | K124: 3.397859094e-128
B125: 0.7 | C125: 1.43682723 | D125: 0.005458902603 | E125: 0.9945410974 | F125: 1.683917242e-136 | G125: 1.763229576e-06 | I125: 0.005458902603 | J125: 0.9945410974 | K125: 1.683917242e-136
B126: 0.8 | C126: 1.53682723 | D126: 0.003920157555 | E126: 0.9960798424 | F126: 3.964709103e-145 | G126: 9.352155712e-07 | I126: 0.003920157555 | J126: 0.9960798424 | K126: 3.964709103e-145
B127: 0.9 | C127: 1.63682723 | D127: 0.002780153901 | E127: 0.9972198461 | F127: 4.406870322e-154 | G127: 4.883472484e-07 | I127: 0.002780153901 | J127: 0.9972198461 | K127: 4.406870322e-154
B128: 1 | C128: 1.73682723 | D128: 0.001946963732 | E128: 0.9980530363 | F128: 2.298643921e-163 | G128: 2.510498173e-07 | I128: 0.001946963732 | J128: 0.9980530363 | K128: 2.298643921e-163
B129: 1.1 | C129: 1.83682723 | D129: 0.00134626132 | E129: 0.9986537387 | F129: 5.594510343e-173 | G129: 1.270589386e-07 | I129: 0.00134626132 | J129: 0.9986537387 | K129: 5.594510343e-173
B130: 1.2 | C130: 1.93682723 | D130: 0.0009190607159 | E130: 0.9990809393 | F130: 6.319055774e-183 | G130: 6.330888795e-08 | I130: 0.0009190607159 | J130: 0.9990809393 | K130: 6.319055774e-183
B131: 1.3 | C131: 2.03682723 | D131: 0.0006193913798 | E131: 0.9993806086 | F131: 3.295409671e-193 | G131: 3.105548354e-08 | I131: 0.0006193913798 | J131: 0.9993806086 | K131: 3.295409671e-193
B132: 1.4 | C132: 2.13682723 | D132: 0.0004120565724 | E132: 0.9995879434 | F132: 7.89606537e-204 | G132: 1.499774811e-08 | I132: 0.0004120565724 | J132: =1-I132 -> 0.9995879434 | K132: 7.89606537e-204
B133: 1.5 | C133: 2.23682723 | D133: 0.0002705737127 | E133: 0.9997294263 | F133: 8.652389397e-215 | G133: 7.130631008e-09 | I133: 0.0002705737127 | J133: 0.9997294263 | K133: 8.652389397e-215
B134: 1.6 | C134: 2.33682723 | D134: 0.0001753554889 | E134: 0.9998246445 | F134: 4.316799499e-226 | G134: 3.337674805e-09 | I134: 0.0001753554889 | J134: 0.9998246445 | K134: 4.316799499e-226
B135: 1.7 | C135: 2.43682723 | D135: 0.0001121573126 | E135: 0.9998878427 | F135: 9.764627588e-238 | G135: 1.538063358e-09 | I135: 0.0001121573126 | J135: 0.9998878427 | K135: 9.764627588e-238
B136: 1.8 | C136: 2.53682723 | D136: 7.079150922e-05 | E136: 0.9999292085 | F136: 9.974020953e-250 | G136: 6.977801011e-10 | I136: 7.079150922e-05 | J136: 0.9999292085 | K136: 9.974020953e-250
B137: 1.9 | C137: 2.63682723 | D137: 4.409124015e-05 | E137: 0.9999559088 | F137: 4.582883935e-262 | G137: 3.116571418e-10 | I137: 4.409124015e-05 | J137: 0.9999559088 | K137: 4.582883935e-262
B138: 2 | C138: 2.73682723 | D138: 2.709658161e-05 | E138: 0.9999729034 | F138: 9.43779056e-275 | G138: 1.370407527e-10 | I138: 2.709658161e-05 | J138: 0.9999729034 | K138: 9.43779056e-275

Sheet 2-class counts
B1: ="Operating characteristic curve for proportion defective, with n="&n&" and c="&cm -> Operating characteristic curve for proportion defective, with n=10 and c=0 | I1: ="Probability density function (PDF) for log counts. Distribution mean = "&FIXED(meanlog,2)&" and sigma = "&FIXED(sigma,2) -> Probability density function (PDF) for log counts. Distribution mean = 1.48 and sigma = 0.80 | P1: ="Operating characteristic curve scaled to relate log arithmetic mean count to m" -> Operating characteristic curve scaled to relate log arithmetic mean count to m | AH1: ="Operating characteristic curve scaled to relate mean log count to m" -> Operating characteristic curve scaled to relate mean log count to m
D10: 1
I18: INPUTS | L18: P(accept) | P18: ALTERNATIVE n AND c | S18: P(accept)
C19: Lot acceptance for Pd | I19: mean | J19: 1.482523784 | L19: Computed | M19: =$F$54*100 -> 4.999966656 | N19: % | P19: mean | Q19: =meanlog -> 1.482523784 | S19: Computed | T19: =F56*100 -> 4.999966656 | U19: %
F20: P(accept) | I20: sigma | J20: 0.8 | L20: Desired | M20: 5 | N20: % | P20: sigma | Q20: =sigma -> 0.8 | S20: Target, left | T20: =computed_P -> 4.999966656 | U20: %
C21: Pd | D21: 10 | E21: % | F21: =$F$55*100 -> 34.86784401 | G21: % | I21: m | J21: 2 | P21: m | Q21: =m -> 2
C22: actualPd | D22: =+Pd*100 -> 25.88660451 | E22: % | F22: =+computed_P -> 4.999966656 | G22: % | I22: n | J22: 10 | P22: n | Q22: =n -> 10
I23: c | J23: 0 | P23: c | Q23: =cm -> 0
B27: Sandbox: for your own calculations
B28: FSO | C28: 3 | L28: P(reject) | M28: =100-computed_P -> 95.00003334 | N28: %
B29: complient | C29: =_xlfn.NORM.DIST(C28,meanlog,sigma,1) -> 0.9710758187 | D29: not comply | E29: =1-_xlfn.NORM.DIST(C28,meanlog,sigma,1) -> 0.02892418128
B30: % | C30: =100*C29 -> 97.10758187 | D30: % | E30: =100*E29 -> 2.892418128 | I30: Means | P30: Implied Acceptance level
I31: Arithmetic (=Average) | L31: Geometric (=Median) | P31: Percentile | Q31: z-score | R31: Concentration at this percentile
I32: =10^(meanlog+0.5*sigma^2*LN(10)) -> 165.7108763 | J32: cfu/g | L32: =10^meanlog -> 30.37552439 | M32: cfu/g | P32: 99.9 | Q32: =+TINV(2*(1-P32/100),1000) -> 3.098402164 | S32: =+meanlog+Q32*sigma -> 3.961245515
I33: =+LOG(I32) -> 2.219351014 | J33: log cfu/g | L33: =+LOG(L32) -> 1.482523784 | M33: log cfu/g | P33: FSO | Q33: P(exceedance) | S33: target level
P34: =+S32 -> 3.961245515 | Q34: =1-_xlfn.NORM.DIST(P34,meanlog,sigma,1) -> 0.0009728360014 | S34: =+P34-Q32*sigma -> 1.482523784
B36: =IF(ABS(computed_P-desired_P)<0.001,"This sampling plan would provide "&FIXED(M28,0)&" % confidence that a lot of food containing a geometric mean concentration of "&FIXED(L32,1)&" cfu/g and an arithmetic mean concentration of "&FIXED(I32,1)&" cfu/g","") -> This sampling plan would provide 95 % confidence that a lot of food containing a geometric mean concentration of 30.4 cfu/g and an arithmetic mean concentration of 165.7 cfu/g
B37: =IF(ABS(computed_P-desired_P)<0.001,"(and having a standard deviation of "&FIXED(sigma,2)&" log cfu/g), would be rejected (i.e. more than "& cm&" out of "&n&" samples having higher levels than "&m&" logs cfu/g)","") -> (and having a standard deviation of 0.80 log cfu/g), would be rejected (i.e. more than 0 out of 10 samples having higher levels than 2 logs cfu/g)
B52: The calculations below are for the buttons above. Do not edit.
B53: geo mean | C53: arith mean | D53: pa | E53: pd | F53: P(accept)
B54: =meanlog -> 1.482523784 | C54: =+B54+0.5*LN(10)*sigma^2 -> 2.219351014 | D54: =NORMSDIST((m-B54)/sigma) -> 0.7411339549 | E54: =1-D54 -> 0.2588660451 | F54: =+BINOMDIST(cm,n,$E54,1) -> 0.04999966656 | H54: <= Used by macros for finding mean and n
D55: =1-E55 -> 0.9 | E55: =$D$21/100 -> 0.1 | F55: =+BINOMDIST(cm,n,$E55,1) -> 0.3486784401 | H55: <= Used in test against ICMSF tables
B56: =meanlog -> 1.482523784 | C56: =+B56+0.5*LN(10)*sigma^2 -> 2.219351014 | D56: =NORMSDIST((alternative_m-B56)/sigma) -> 0.7411339549 | E56: =1-D56 -> 0.2588660451 | F56: =+BINOMDIST($Q$23,$Q$22,$E56,1) -> 0.04999966656 | H56: <= Used by macro for finding m in equivalent performance criterion
B58: The calculations below are for the charts above. Do not edit.
B59: -4 | C59: =+B59+0.5*LN(10)*sigma^2 -> -3.26317277 | D59: =NORMSDIST((m-B59)/sigma) -> 1 | E59: =1-D59 -> 3.186340081e-14 | F59: =+BINOMDIST(cm,n,$E59,1) -> 1 | G59: =NORMDIST($B59,meanlog,sigma,FALSE) -> 3.157486068e-11 | I59: =NORMSDIST((alternative_m-B59)/sigma) -> 1 | J59: =1-I59 -> 3.186340081e-14 | K59: =+BINOMDIST($Q$23,$Q$22,$J59,1) -> 1
B60: -3.9 | C60: -3.16317277 | D60: 1 | E60: 8.215650382e-14 | F60: 1 | G60: 7.378777719e-11 | I60: 1 | J60: =1-I60 -> 8.215650382e-14 | K60: =+BINOMDIST($Q$23,$Q$22,$J60,1) -> 1
B61: -3.8 | C61: -3.06317277 | D61: 1 | E61: 2.083888617e-13 | F61: 1 | G61: 1.697624214e-10 | I61: 1 | J61: 2.083888617e-13 | K61: 1
B62: -3.7 | C62: -2.96317277 | D62: 1 | E62: 5.203615316e-13 | F62: 1 | G62: 3.845146077e-10 | I62: 1 | J62: 5.203615316e-13 | K62: 1
B63: -3.6 | C63: -2.86317277 | D63: 1 | E63: 1.279865103e-12 | F63: 1 | G63: 8.574292094e-10 | I63: 1 | J63: 1.279865103e-12 | K63: 1
B64: -3.5 | C64: -2.76317277 | D64: 1 | E64: 3.09952064e-12 | F64: 1 | G64: 1.882339058e-09 | I64: 1 | J64: 3.09952064e-12 | K64: 1
B65: -3.4 | C65: -2.66317277 | D65: 1 | E65: 7.392308987e-12 | F65: 0.9999999999 | G65: 4.068286993e-09 | I65: 1 | J65: 7.392308987e-12 | K65: 0.9999999999
B66: -3.3 | C66: -2.56317277 | D66: 1 | E66: 1.736244482e-11 | F66: 0.9999999998 | G66: 8.656442712e-09 | I66: 1 | J66: 1.736244482e-11 | K66: 0.9999999998
B67: -3.2 | C67: -2.46317277 | D67: 1 | E67: 4.015998645e-11 | F67: 0.9999999996 | G67: 1.813349367e-08 | I67: 1 | J67: 4.015998645e-11 | K67: 0.9999999996
B68: -3.1 | C68: -2.36317277 | D68: 0.9999999999 | E68: 9.148148905e-11 | F68: 0.9999999991 | G68: 3.739707708e-08 | I68: 0.9999999999 | J68: 9.148148905e-11 | K68: 0.9999999991
B69: -3 | C69: -2.26317277 | D69: 0.9999999998 | E69: 2.052263914e-10 | F69: 0.9999999979 | G69: 7.592905289e-08 | I69: 0.9999999998 | J69: 2.052263914e-10 | K69: 0.9999999979
B70: -2.9 | C70: -2.16317277 | D70: 0.9999999995 | E70: 4.534180809e-10 | F70: 0.9999999955 | G70: 1.517722787e-07 | I70: 0.9999999995 | J70: 4.534180809e-10 | K70: 0.9999999955
B71: -2.8 | C71: -2.06317277 | D71: 0.999999999 | E71: 9.865877004e-10 | F71: 0.9999999901 | G71: 2.986696378e-07 | I71: 0.999999999 | J71: 9.865877004e-10 | K71: 0.9999999901 | L71: Coordinates to place m
B72: -2.7 | C72: -1.96317277 | D72: 0.9999999979 | E72: 2.114216691e-09 | F72: 0.9999999789 | G72: 5.786338612e-07 | I72: 0.9999999979 | J72: 2.114216691e-09 | K72: 0.9999999789 | L72: proportion | N72: m
B73: -2.6 | C73: -1.86317277 | D73: 0.9999999955 | E73: 4.462172409e-09 | F73: 0.9999999554 | G73: 1.103648463e-06 | I73: 0.9999999955 | J73: 4.462172409e-09 | K73: 0.9999999554 | L73: 0 | M73: 0 | N73: =m -> 2
B74: -2.5 | C74: -1.76317277 | D74: 0.9999999907 | E74: 9.275398782e-09 | F74: 0.9999999072 | G74: 2.07239163e-06 | I74: 0.9999999907 | J74: 9.275398782e-09 | K74: 0.9999999072 | L74: =1.1*NORMDIST(meanlog,meanlog,sigma,FALSE) -> 0.5485456356 | M74: 1 | N74: =m -> 2
B75: -2.4 | C75: -1.66317277 | D75: 0.999999981 | E75: 1.898956248e-08 | F75: 0.9999998101 | G75: 3.831131377e-06 | I75: 0.999999981 | J75: 1.898956248e-08 | K75: 0.9999998101
B76: -2.3 | C76: -1.56317277 | D76: 0.9999999617 | E76: 3.82913411e-08 | F76: 0.9999996171 | G76: 6.972626616e-06 | I76: 0.9999999617 | J76: 3.82913411e-08 | K76: 0.9999996171
B77: -2.2 | C77: -1.46317277 | D77: 0.999999924 | E77: 7.604960517e-08 | F77: 0.9999992395 | G77: 1.249337921e-05 | I77: 0.999999924 | J77: 7.604960517e-08 | K77: 0.9999992395
B78: -2.1 | C78: -1.36317277 | D78: 0.9999998512 | E78: 1.487688732e-07 | F78: 0.9999985123 | G78: 2.203827429e-05 | I78: 0.9999998512 | J78: 1.487688732e-07 | K78: 0.9999985123
B79: -2 | C79: -1.26317277 | D79: 0.9999997133 | E79: 2.866515719e-07 | F79: 0.9999971335 | G79: 3.827272584e-05 | I79: 0.9999997133 | J79: 2.866515719e-07 | K79: 0.9999971335
B80: -1.9 | C80: -1.16317277 | D80: 0.999999456 | E80: 5.440422756e-07 | F80: 0.9999945596 | G80: 6.543579054e-05 | I80: 0.999999456 | J80: 5.440422756e-07 | K80: 0.9999945596
B81: -1.8 | C81: -1.06317277 | D81: 0.9999989829 | E81: 1.017083243e-06 | F81: 0.9999898292 | G81: 0.0001101426348 | I81: 0.9999989829 | J81: 1.017083243e-06 | K81: 0.9999898292 | L81: Coordinates to place Pd
B82: -1.7 | C82: -0.9631727702 | D82: 0.999998127 | E82: 1.872992006e-06 | F82: 0.9999812702 | G82: 0.0001825196881 | I82: 0.999998127 | J82: 1.872992006e-06 | K82: 0.9999812702 | L82: p accept
B83: -1.6 | C83: -0.8631727702 | D83: 0.9999966023 | E83: 3.397673125e-06 | F83: 0.9999660238 | G83: 0.0002977680681 | I83: 0.9999966023 | J83: 3.397673125e-06 | K83: 0.9999660238 | L83: x | M83: y
B84: -1.5 | C84: -0.7631727702 | D84: 0.9999939284 | E84: 6.071623911e-06 | F84: 0.9999392854 | G84: 0.0004782562754 | I84: 0.9999939284 | J84: 6.071623911e-06 | K84: 0.9999392854 | L84: =+Pd -> 0.2588660451 | M84: 0
B85: -1.4 | C85: -0.6631727702 | D85: 0.9999893115 | E85: 1.068852577e-05 | F85: 0.9998931199 | G85: 0.0007562360562 | I85: 0.9999893115 | J85: 1.068852577e-05 | K85: 0.9998931199 | L85: =+Pd -> 0.2588660451 | M85: =+desired_P/100 -> 0.05
B86: -1.3 | C86: -0.5631727702 | D86: 0.9999814633 | E86: 1.853673785e-05 | F86: 0.9998146481 | G86: 0.001177248732 | I86: 0.9999814633 | J86: 1.853673785e-05 | K86: 0.9998146481
B87: -1.2 | C87: -0.4631727702 | D87: 0.9999683288 | E87: 3.167124183e-05 | F87: 0.9996833327 | G87: 0.001804235533 | I87: 0.9999683288 | J87: 3.167124183e-05 | K87: 0.9996833327
B88: -1.1 | C88: -0.3631727702 | D88: 0.9999466877 | E88: 5.331234975e-05 | F88: 0.9994670044 | G88: 0.002722277418 | I88: 0.9999466877 | J88: 5.331234975e-05 | K88: 0.9994670044
B89: -1 | C89: -0.2631727702 | D89: 0.9999115827 | E89: 8.84172852e-05 | F89: 0.9991161789 | G89: 0.004043762851 | I89: 0.9999115827 | J89: 8.84172852e-05 | K89: 0.9991161789
B90: -0.9 | C90: -0.1631727702 | D90: 0.9998555193 | E90: 0.0001444807259 | F90: 0.9985561317 | G90: 0.005913616059 | I90: 0.9998555193 | J90: 0.0001444807259 | K90: 0.9985561317
B91: -0.8 | C91: =+B91+0.5*LN(10)*sigma^2 -> -0.06317277024 | D91: =NORMSDIST((m-B91)/sigma) -> 0.9997673709 | E91: =1-D91 -> 0.000232629079 | F91: =+BINOMDIST(cm,n,$E91,1) -> 0.9976761429 | G91: =NORMDIST($B91,meanlog,sigma,FALSE) -> 0.00851402105 | I91: =NORMSDIST((alternative_m-B91)/sigma) -> 0.9997673709 | J91: 0.000232629079 | K91: 0.9976761429
B92: -0.7 | C92: 0.03682722976 | D92: 0.9996309215 | E92: 0.0003690784543 | F92: 0.9963153393 | G92: 0.01206786556 | I92: 0.9996309215 | J92: 0.0003690784543 | K92: 0.9963153393
B93: -0.6 | C93: 0.1368272298 | D93: 0.999422975 | E93: 0.0005770250424 | F93: 0.9942447096 | G93: 0.01683993287 | I93: 0.999422975 | J93: 0.0005770250424 | K93: 0.9942447096
B94: -0.5 | C94: 0.2368272298 | D94: 0.9991109747 | E94: 0.0008890252991 | F94: 0.9911452293 | G94: 0.02313472796 | I94: 0.9991109747 | J94: 0.0008890252991 | K94: 0.9911452293
B95: -0.4 | C95: 0.3368272298 | D95: 0.998650102 | E95: 0.001349898032 | F95: 0.9865827253 | G95: 0.03128978558 | I95: 0.998650102 | J95: 0.001349898032 | K95: 0.9865827253
B96: -0.3 | C96: 0.4368272298 | D96: 0.9979798625 | E96: 0.00202013749 | F96: 0.9799812823 | G96: 0.04166342086 | I96: 0.9979798625 | J96: 0.00202013749 | K96: 0.9799812823
B97: -0.2 | C97: 0.5368272298 | D97: 0.9970202368 | E97: 0.002979763235 | F97: 0.9705987638 | G97: 0.05461619156 | I97: 0.9970202368 | J97: 0.002979763235 | K97: 0.9705987638
B98: -0.1 | C98: 0.6368272298 | D98: 0.9956675516 | E98: 0.004332448363 | F98: 0.9575104864 | G98: 0.0704858675 | I98: 0.9956675516 | J98: 0.004332448363 | K98: 0.9575104864
B99: 0 | C99: 0.7368272298 | D99: 0.9937903347 | E99: 0.006209665326 | F99: 0.9396101208 | G99: 0.0895564426 | I99: 0.9937903347 | J99: 0.006209665326 | K99: 0.9396101208
B100: 0.1 | C100: 0.8368272298 | D100: 0.9912255249 | E100: 0.008774475096 | F100: 0.9156400273 | G100: 0.1120226308 | I100: 0.9912255249 | J100: 0.008774475096 | K100: 0.9156400273
B101: 0.2 | C101: 0.9368272298 | D101: 0.9877755273 | E101: 0.01222447266 | F101: 0.8842653772 | G101: 0.1379522696 | I101: 0.9877755273 | J101: 0.01222447266 | K101: 0.8842653772
B102: 0.3 | C102: 1.03682723 | D102: 0.9832066936 | E102: 0.01679330645 | F102: 0.8442056708 | G102: 0.1672499824 | I102: 0.9832066936 | J102: 0.01679330645 | K102: 0.8442056708
B103: 0.4 | C103: 1.13682723 | D103: 0.9772498681 | E103: 0.02275013195 | F103: 0.7944310402 | G103: 0.1996261635 | I103: 0.9772498681 | J103: 0.02275013195 | K103: 0.7944310402
B104: 0.5 | C104: 1.23682723 | D104: 0.9696036382 | E104: 0.03039636177 | F104: 0.7344163964 | G104: 0.2345756827 | I104: 0.9696036382 | J104: 0.03039636177 | K104: 0.7344163964
B105: 0.6 | C105: 1.33682723 | D105: 0.9599408431 | E105: 0.04005915686 | F105: 0.6644230682 | G105: 0.2713705195 | I105: 0.9599408431 | J105: 0.04005915686 | K105: 0.6644230682
B106: 0.7 | C106: 1.43682723 | D106: 0.9479187206 | E106: 0.05208127942 | F106: 0.5857482543 | G106: 0.3090697436 | I106: 0.9479187206 | J106: 0.05208127942 | K106: 0.5857482543
B107: 0.8 | C107: 1.53682723 | D107: 0.9331927987 | E107: 0.06680720127 | F107: 0.5008570459 | G107: 0.3465488536 | I107: 0.9331927987 | J107: 0.06680720127 | K107: 0.5008570459
B108: 0.9 | C108: 1.63682723 | D108: 0.9154342776 | E108: 0.08456572235 | F108: 0.4133059922 | G108: 0.3825485761 | I108: 0.9154342776 | J108: 0.08456572235 | K108: 0.4133059922
B109: 1 | C109: 1.73682723 | D109: 0.8943502263 | E109: 0.1056497737 | F109: 0.3273981434 | G109: 0.4157410052 | I109: 0.8943502263 | J109: 0.1056497737 | K109: 0.3273981434
B110: 1.1 | C110: 1.83682723 | D110: 0.8697054829 | E110: 0.1302945171 | F110: 0.2475837177 | G110: 0.4448087098 | I110: 0.8697054829 | J110: 0.1302945171 | K110: 0.2475837177
B111: 1.2 | C111: 1.93682723 | D111: 0.8413447461 | E111: 0.1586552539 | F111: 0.1777214592 | G111: 0.4685304833 | I111: 0.8413447461 | J111: 0.1586552539 | K111: 0.1777214592
B112: 1.3 | C112: 2.03682723 | D112: 0.8092130471 | E112: 0.1907869529 | F112: 0.1204006313 | G112: 0.4858660685 | I112: 0.8092130471 | J112: 0.1907869529 | K112: 0.1204006313
B113: 1.4 | C113: 2.13682723 | D113: 0.7733726476 | E113: 0.2266273524 | F113: 0.07653993346 | G113: 0.4960317059 | I113: 0.7733726476 | J113: 0.2266273524 | K113: 0.07653993346
B114: 1.5 | C114: 2.23682723 | D114: 0.734014471 | E114: 0.265985529 | F114: 0.04539899305 | G114: 0.4985588762 | I114: 0.734014471 | J114: 0.265985529 | K114: 0.04539899305
B115: 1.6 | C115: 2.33682723 | D115: 0.6914624613 | E115: 0.3085375387 | F115: 0.0249853868 | G115: 0.4933301032 | I115: 0.6914624613 | J115: 0.3085375387 | K115: 0.0249853868
B116: 1.7 | C116: 2.43682723 | D116: 0.6461697667 | E116: 0.3538302333 | F116: 0.0126901379 | G116: 0.4805880084 | I116: 0.6461697667 | J116: 0.3538302333 | K116: 0.0126901379
B117: 1.8 | C117: 2.53682723 | D117: 0.5987063257 | E117: 0.4012936743 | F117: 0.005917502737 | G117: 0.4609166449 | I117: 0.5987063257 | J117: 0.4012936743 | K117: 0.005917502737
B118: 1.9 | C118: 2.63682723 | D118: 0.5497382248 | E118: 0.4502617752 | F118: 0.002520921703 | G118: 0.4351971097 | I118: 0.5497382248 | J118: 0.4502617752 | K118: 0.002520921703
B119: 2 | C119: 2.73682723 | D119: 0.5 | E119: 0.5 | F119: 0.0009765625 | G119: 0.4045421345 | I119: 0.5 | J119: 0.5 | K119: 0.0009765625
B120: 2.1 | C120: 2.83682723 | D120: 0.4502617752 | E120: 0.5497382248 | F120: 0.0003424922845 | G120: 0.3702164138 | I120: 0.4502617752 | J120: 0.5497382248 | K120: 0.0003424922845
B121: 2.2 | C121: 2.93682723 | D121: 0.4012936743 | E121: 0.5987063257 | F121: 0.000108298674 | G121: 0.3335506 | I121: 0.4012936743 | J121: 0.5987063257 | K121: 0.000108298674
B122: 2.3 | C122: 3.03682723 | D122: 0.3538302333 | E122: 0.6461697667 | F122: 3.075738354e-05 | G122: 0.2958570562 | I122: 0.3538302333 | J122: 0.6461697667 | K122: 3.075738354e-05
B123: 2.4 | C123: =+B123+0.5*LN(10)*sigma^2 -> 3.13682723 | D123: =NORMSDIST((m-B123)/sigma) -> 0.3085375387 | E123: =1-D123 -> 0.6914624613 | F123: =+BINOMDIST(cm,n,$E123,1) -> 7.817719922e-06 | G123: =NORMDIST($B123,meanlog,sigma,FALSE) -> 0.2583546519 | I123: =NORMSDIST((alternative_m-B123)/sigma) -> 0.3085375387 | J123: 0.6914624613 | K123: 7.817719922e-06
B124: 2.5 | C124: 3.23682723 | D124: 0.265985529 | E124: 0.734014471 | F124: 1.772474903e-06 | G124: 0.2221083003 | I124: 0.265985529 | J124: =1-I124 -> 0.734014471 | K124: =+BINOMDIST($Q$23,$Q$22,$J124,1) -> 1.772474903e-06
B125: 2.6 | C125: 3.33682723 | D125: 0.2266273524 | E125: 0.7733726476 | F125: 3.573742449e-07 | G125: 0.1879868368 | I125: 0.2266273524 | J125: 0.7733726476 | K125: 3.573742449e-07
B126: 2.7 | C126: 3.43682723 | D126: 0.1907869529 | E126: 0.8092130471 | F126: 6.389791943e-08 | G126: 0.1566405648 | I126: 0.1907869529 | J126: 0.8092130471 | K126: 6.389791943e-08
B127: 2.8 | C127: 3.53682723 | D127: 0.1586552539 | E127: 0.8413447461 | F127: 1.010519236e-08 | G127: 0.1284976512 | I127: 0.1586552539 | J127: 0.8413447461 | K127: 1.010519236e-08
B128: 2.9 | C128: 3.63682723 | D128: 0.1302945171 | E128: 0.8697054829 | F128: 1.410137323e-09 | G128: 0.1037768029 | I128: 0.1302945171 | J128: 0.8697054829 | K128: 1.410137323e-09
B129: 3 | C129: 3.73682723 | D129: 0.1056497737 | E129: 0.8943502263 | F129: 1.732549733e-10 | G129: 0.08251245968 | I129: 0.1056497737 | J129: 0.8943502263 | K129: 1.732549733e-10
B130: 3.1 | C130: 3.83682723 | D130: 0.08456572235 | E130: 0.9154342776 | F130: 1.870439344e-11 | G130: 0.06458816241 | I130: 0.08456572235 | J130: 0.9154342776 | K130: 1.870439344e-11
B131: 3.2 | C131: 3.93682723 | D131: 0.06680720127 | E131: 0.9331927987 | F131: 1.771057999e-12 | G131: 0.04977376266 | I131: 0.06680720127 | J131: 0.9331927987 | K131: 1.771057999e-12
B132: 3.3 | C132: 4.03682723 | D132: 0.05208127942 | E132: 0.9479187206 | F132: 1.468305564e-13 | G132: 0.03776262407 | I132: 0.05208127942 | J132: 0.9479187206 | K132: 1.468305564e-13
B133: 3.4 | C133: 4.13682723 | D133: 0.04005915686 | E133: 0.9599408431 | F133: 1.06418723e-14 | G133: 0.028205773 | I133: 0.04005915686 | J133: 0.9599408431 | K133: 1.06418723e-14
B134: 3.5 | C134: 4.23682723 | D134: 0.03039636177 | E134: 0.9696036382 | F134: 6.733115225e-16 | G134: 0.02074091905 | I134: 0.03039636177 | J134: 0.9696036382 | K134: 6.733115225e-16
B135: 3.6 | C135: 4.33682723 | D135: 0.02275013195 | E135: 0.9772498681 | F135: 3.713976903e-17 | G135: 0.01501523506 | I135: 0.02275013195 | J135: 0.9772498681 | K135: 3.713976903e-17
B136: 3.7 | C136: 4.43682723 | D136: 0.01679330645 | E136: 0.9832066936 | F136: 1.783865604e-18 | G136: 0.0107016421 | I136: 0.01679330645 | J136: 0.9832066936 | K136: 1.783865604e-18
B137: 3.8 | C137: 4.53682723 | D137: 0.01222447266 | E137: 0.9877755273 | F137: 7.452488835e-20 | G137: 0.007509013046 | I137: 0.01222447266 | J137: 0.9877755273 | K137: 7.452488835e-20
B138: 3.9 | C138: 4.63682723 | D138: 0.008774475096 | E138: 0.9912255249 | F138: 2.705275234e-21 | G138: 0.005187157607 | I138: 0.008774475096 | J138: 0.9912255249 | K138: 2.705275234e-21
B139: 4 | C139: 4.73682723 | D139: 0.006209665326 | E139: 0.9937903347 | F139: 8.524755702e-23 | G139: 0.003527688078 | I139: 0.006209665326 | J139: 0.9937903347 | K139: 8.524755702e-23

Sheet 3-class counts
B1: ="Operating characteristic curve for proportion defective Pd and marginally acceptable Pm with n="&n&" and c="&cm -> Operating characteristic curve for proportion defective Pd and marginally acceptable Pm with n=5 and c=2 | I1: ="Probability density function (PDF) for log counts. Distribution mean = "&FIXED(meanlog,2)&" and sigma = "&FIXED(sigma,2) -> Probability density function (PDF) for log counts. Distribution mean = 3.22 and sigma = 0.80 | P1: ="Operating characteristic curve scaled to relate log arithmetic mean count to m" -> Operating characteristic curve scaled to relate log arithmetic mean count to m | AH1: ="Operating characteristic curve scaled to relate mean log count to m" -> Operating characteristic curve scaled to relate mean log count to m
D10: 1
I18: INPUTS | L18: P(accept) | P18: ALTERNATIVE n AND c | S18: P(accept)
C19: Lot acceptance for Pd | I19: mean | J19: 3.21510239 | L19: Computed | M19: =$S$55*100 -> 4.99952654 | N19: % | P19: mean | Q19: =meanlog -> 3.21510239 | S19: Computed | T19: =S57*100 -> 4.99952654 | U19: % | Y19: Coordinates to place m
F20: P(accept) | I20: sigma | J20: 0.8 | L20: Desired | M20: 5 | N20: % | P20: sigma | Q20: =sigma -> 0.8 | S20: Target, left | T20: =computed_P -> 4.99952654 | U20: % | Y20: proportion | Z20: m
C21: Pd | D21: 20 | E21: % | F21: =$S$56*100 -> 26.8695625 | G21: % | I21: m | J21: =LOG(500) -> 2.698970004 | P21: m | Q21: =+m -> 2.698970004 | Y21: 0 | Z21: =m -> 2.698970004 | AA21: 0
C22: Pm | D22: 25 | E22: % | I22: M | J22: =LOG(5000) -> 3.698970004 | P22: M | Q22: =+BigM -> 3.698970004 | Y22: =1.1*NORMDIST(meanlog,meanlog,sigma,FALSE) -> 0.5485456356 | Z22: =m -> 2.698970004 | AA22: 1
C23: actualPd | D23: =+Pd*100 -> 27.26444781 | E23: % | I23: n | J23: 5 | P23: n | Q23: =n -> 5
C24: actualPm | D24: =+Pm*100 -> 46.79455458 | E24: % | F24: =+computed_P -> 4.99952654 | G24: % | I24: c | J24: 2 | P24: c | Q24: =cm -> 2 | Y24: Coordinates to place M
Y25: proportion | Z25: M
Y26: 0 | Z26: =BigM -> 3.698970004 | AA26: 0
B27: Sandbox: for your own calculations | Y27: =1.1*NORMDIST(meanlog,meanlog,sigma,FALSE) -> 0.5485456356 | Z27: =BigM -> 3.698970004 | AA27: 1
B28: FSO | C28: 5 | L28: P(reject) | M28: =100-computed_P -> 95.00047346 | N28: %
B29: complient | C29: =_xlfn.NORM.DIST(C28,meanlog,sigma,1) -> 0.987163476 | D29: not comply | E29: =1-_xlfn.NORM.DIST(C28,meanlog,sigma,1) -> 0.01283652402 | Y29: Coordinates to place Pd
B30: % | C30: =100*C29 -> 98.7163476 | D30: % | E30: =100*E29 -> 1.283652402 | I30: Means | P30: Implied Acceptance level | Y30: p accept
I31: Arithmetic (=Average) | L31: Geometric (=Median) | P31: Percentile | Q31: z-score | R31: Concentration at this percentile | Y31: x | Z31: y
I32: =10^(meanlog+0.5*sigma^2*LN(10)) -> 8952.196783 | J32: cfu/g | L32: =10^meanlog -> 1640.976608 | M32: cfu/g | P32: 99.9 | Q32: =+TINV(2*(1-P32/100),1000) -> 3.098402164 | S32: =+meanlog+Q32*sigma -> 5.693824121 | Y32: =+Pd -> 0.2726444781 | Z32: 0
I33: =+LOG(I32) -> 3.95192962 | J33: log cfu/g | L33: =+LOG(L32) -> 3.21510239 | M33: log cfu/g | P33: FSO | Q33: P(exceedance) | S33: target level | Y33: =+Pd -> 0.2726444781 | Z33: =+desired_P -> 5
P34: =+S32 -> 5.693824121 | Q34: =1-_xlfn.NORM.DIST(P34,meanlog,sigma,1) -> 0.0009728360014 | S34: =+P34-Q32*sigma -> 3.21510239
B36: =IF(ABS(computed_P-desired_P)<0.001,"This sampling plan would provide "&FIXED(M28,0)&" % confidence that a lot of food containing a geometric mean concentration of "&FIXED(L32,1)&" cfu/g and an arithmetic mean concentration of "&FIXED(I32,1)&" cfu/g (having a","") -> This sampling plan would provide 95 % confidence that a lot of food containing a geometric mean concentration of 1,641.0 cfu/g and an arithmetic mean concentration of 8,952.2 cfu/g (having a
B37: =IF(ABS(computed_P-desired_P)<0.001,"standard deviation of "&FIXED(sigma,2)&" log cfu/g), would be rejected (i.e. either more than "& cm&" out of "&n&" samples having levels between ["&FIXED(m,1)&","&FIXED(BigM,1)&"] logs cfu/g or 1 or more samples higher than "&FIXED(BigM,1)&" log cfu/g)","") -> standard deviation of 0.80 log cfu/g), would be rejected (i.e. either more than 2 out of 5 samples having levels between [2.7,3.7] logs cfu/g or 1 or more samples higher than 3.7 log cfu/g)
G52: 0 | H52: 1 | I52: 2 | J52: 3 | K52: 4 | L52: 5 | M52: 6 | N52: 7 | O52: 8 | P52: 9 | Q52: 10
B53: The calculations below are for the buttons above. Do not edit.
B54: geo mean | C54: arith mean | D54: pa | E54: pm | F54: pd | S54: P(accept)
B55: =meanlog -> 3.21510239 | C55: =+B55+0.5*LN(10)*sigma^2 -> 3.95192962 | D55: =NORMSDIST((m-B55)/sigma) -> 0.2594099761 | E55: =NORMSDIST((BigM-B55)/sigma)-NORMSDIST((m-B55)/sigma) -> 0.4679455458 | F55: =1-(D55+Pm) -> 0.2726444781 | G55: =IF(G$52>cm,0,(COMBIN(n,G$52))*$D55^(n-G$52)*$E55^G$52) -> 0.001174717311 | H55: 0.01059526972 | I55: 0.03822527836 | J55: 0 | K55: 0 | L55: 0 | M55: 0 | N55: 0 | O55: 0 | P55: 0 | Q55: 0 | S55: =IF($D55>0.9999999,1,IF($D55=0,0,SUM(G55:Q55))) -> 0.0499952654 | U55: <= Used by macros for finding mean and n
D56: =1-(F56+E56) -> 0.55 | E56: =$D$22/100 -> 0.25 | F56: =D21/100 -> 0.2 | G56: 0.0503284375 | H56: 0.1143828125 | I56: 0.103984375 | J56: 0 | K56: 0 | L56: 0 | M56: 0 | N56: 0 | O56: 0 | P56: 0 | Q56: 0 | S56: =IF($D56>0.9999999,1,IF($D56=0,0,SUM(G56:Q56))) -> 0.268695625 | U56: <= Used in test against ICMSF tables
B57: =meanlog -> 3.21510239 | C57: =+B57+0.5*LN(10)*sigma^2 -> 3.95192962 | D57: =NORMSDIST((alternative_m-B57)/sigma) -> 0.2594099761 | E57: =NORMSDIST((alternative_bigM-B57)/sigma)-NORMSDIST((alternative_m-B57)/sigma) -> 0.4679455458 | F57: =1-(D57+E57) -> 0.2726444781 | G57: =IF(G$52>alternative_c,0,(COMBIN(alternative_n,G$52))*$D57^(alternative_n-G$52)*$E57^G$52) -> 0.001174717311 | H57: 0.01059526972 | I57: 0.03822527836 | J57: 0 | K57: 0 | L57: 0 | M57: 0 | N57: 0 | O57: 0 | P57: 0 | Q57: 0 | S57: =IF($D57>0.9999999,1,IF($D57=0,0,SUM(G57:Q57))) -> 0.0499952654 | U57: <= Used by macro for finding m in equivalent performance criterion
B59: The calculations below are for the charts above. Do not edit.
B60: 0 | C60: =+B60+0.5*LN(10)*sigma^2 -> 0.7368272298 | D60: =NORMSDIST((m-B60)/sigma) -> 0.9996291911 | E60: =NORMSDIST((BigM-B60)/sigma)-NORMSDIST((m-B60)/sigma) -> 0.000368924233 | F60: =1-(E60+D60) -> 1.884661011e-06 | G60: =IF(G$52>cm,0,(COMBIN(n,G$52))*$D60^(n-G$52)*$E60^G$52) -> 0.99814733 | H60: 0.001841886679 | I60: 1.359537389e-06 | J60: 0 | K60: 0 | L60: 0 | M60: 0 | N60: 0 | O60: 0 | P60: 0 | Q60: 0 | S60: =IF($D60>0.9999999,1,IF($D60=0,0,SUM(G60:Q60))) -> 0.9999905762 | T60: =NORMDIST($B60,meanlog,sigma,FALSE) -> 0.0001550930773
B61: 0.1 | C61: 0.8368272298 | D61: 0.9994203571 | E61: 0.0005762245914 | F61: =1-(E61+D61) -> 3.418311829e-06 | G61: 0.9971051434 | H61: 0.002874448673 | I61: 3.314577296e-06 | J61: 0 | K61: 0 | L61: 0 | M61: 0 | N61: 0 | O61: 0 | P61: 0 | Q61: 0 | S61: 0.9999829066 | T61: 0.0002543147527
B62: 0.2 | C62: 0.9368272298 | D62: 0.9991070757 | E62: 0.000886816716 | F62: 6.107561188e-06 | G62: 0.9955433446 | H62: 0.004418267576 | I62: 7.843390639e-06 | J62: 0 | K62: 0 | L62: 0 | M62: 0 | N62: 0 | O62: 0 | P62: 0 | Q62: 0 | S62: 0.9999694556 | T62: 0.0004105488538
B63: 0.3 | C63: 1.03682723 | D63: 0.998644385 | E63: 0.001344864913 | F63: 1.075013164e-05 | G63: 0.9932402768 | H63: 0.00668793626 | I63: 1.801316054e-05 | J63: 0 | K63: 0 | L63: 0 | M63: 0 | N63: 0 | O63: 0 | P63: 0 | Q63: 0 | S63: 0.9999462262 | T63: 0.0006524876297
B64: 0.4 | C64: 1.13682723 | D64: 0.9979716097 | E64: 0.002009749588 | F64: 1.864070906e-05 | G64: 0.9898991088 | H64: 0.009967464541 | I64: 4.014564656e-05 | J64: 0 | K64: 0 | L64: 0 | M64: 0 | N64: 0 | O64: 0 | P64: 0 | Q64: 0 | S64: 0.999906719 | T64: 0.001020925073
B65: 0.5 | C65: 1.23682723 | D65: 0.9970085081 | E65: 0.002959647903 | F65: 3.184399192e-05 | G65: 0.9851317635 | H65: 0.01462195726 | I65: 8.681138584e-05 | J65: 0 | K65: 0 | L65: 0 | M65: 0 | N65: 0 | O65: 0 | P65: 0 | Q65: 0 | S65: 0.9998405321 | T65: 0.001572641042
B66: 0.6 | C66: 1.33682723 | D66: 0.9956511416 | E66: 0.004295263461 | F66: 5.359492728e-05 | G66: 0.9784440131 | H66: 0.02110515743 | I66: 0.0001820963342 | J66: 0 | K66: 0 | L66: 0 | M66: 0 | N66: 0 | O66: 0 | P66: 0 | Q66: 0 | S66: 0.9997312668 | T66: 0.002384951162
B67: 0.7 | C67: 1.43682723 | D67: 0.9937677307 | E67: 0.006143396922 | F67: 8.887234777e-05 | G67: 0.9692246523 | H67: 0.02995836734 | I67: 0.0003704007205 | J67: 0 | K67: 0 | L67: 0 | M67: 0 | N67: 0 | O67: 0 | P67: 0 | Q67: 0 | S67: 0.9995534204 | T67: 0.003560766731
B68: 0.8 | C68: 1.53682723 | D68: 0.9911948719 | E68: 0.008659925926 | F68: 0.0001452021967 | G68: 0.9567428656 | H68: 0.0417946187 | I68: 0.0007303070512 | J68: 0 | K68: 0 | L68: 0 | M68: 0 | N68: 0 | O68: 0 | P68: 0 | Q68: 0 | S68: 0.9992677913 | T68: 0.00523385523
B69: 0.9 | C69: 1.63682723 | D69: 0.9877346035 | E69: 0.01203164133 | F69: 0.0002337551883 | G69: 0.9401590777 | H69: 0.05726060816 | I69: 0.001394988284 | J69: 0 | K69: 0 | L69: 0 | M69: 0 | N69: 0 | O69: 0 | P69: 0 | Q69: 0 | S69: 0.9988146742 | T69: 0.007573803557
B70: 1 | C70: 1.73682723 | D70: 0.9831529045 | E70: 0.01647628663 | F70: 0.000370808894 | G70: =IF(G$52>cm,0,(COMBIN(n,G$52))*$D70^(n-G$52)*$E70^G$52) -> 0.9185553539 | H70: 0.0769686039 | I70: 0.002579775279 | J70: 0 | K70: 0 | L70: 0 | M70: 0 | N70: 0 | O70: 0 | P70: 0 | Q70: 0 | S70: 0.9981037331 | T70: 0.01078997693
B71: 1.1 | C71: 1.83682723 | D71: 0.9771802654 | E71: 0.02224009168 | F71: 0.0005796429033 | G71: 0.8909912481 | H71: 0.1013923825 | I71: 0.004615271022 | J71: 0 | K71: 0 | L71: 0 | M71: 0 | N71: 0 | O71: 0 | P71: 0 | Q71: 0 | S71: 0.9969989016 | T71: 0.01513356144
B72: 1.2 | C72: 1.93682723 | D72: 0.9695149693 | E72: 0.0295921064 | F72: 0.0008929242772 | G72: 0.8565892009 | H72: 0.1307265982 | I72: 0.007980228315 | J72: 0 | K72: 0 | L72: 0 | M72: 0 | N72: 0 | O72: 0 | P72: 0 | Q72: 0 | S72: 0.9952960274 | T72: 0.02089661404
B73: 1.3 | C73: 2.03682723 | D73: 0.9598296364 | E73: 0.0388147486 | F73: 0.001355615045 | G73: 0.8146494654 | H73: 0.1647188887 | I73: 0.01332220221 | J73: 0 | K73: 0 | L73: 0 | M73: 0 | N73: 0 | O73: 0 | P73: 0 | Q73: 0 | S73: 0.9926905563 | T73: 0.02840696571
B74: 1.4 | C74: 2.13682723 | D74: 0.9477814096 | E74: 0.05019020011 | F74: 0.002028390298 | G74: 0.7647877615 | H74: 0.2024984369 | I74: 0.02144679557 | J74: 0 | K74: 0 | L74: 0 | M74: 0 | N74: 0 | O74: 0 | P74: 0 | Q74: 0 | S74: 0.988732994 | T74: 0.03801788227
B75: 1.5 | C75: 2.23682723 | D75: 0.9330258845 | E75: 0.06398262365 | F75: 0.002991491895 | G75: 0.7070798508 | H75: 0.2424414196 | I75: 0.03325103486 | J75: 0 | K75: 0 | L75: 0 | M75: 0 | N75: 0 | O75: 0 | P75: 0 | Q75: 0 | S75: 0.9827723052 | T75: 0.05009162776
B76: 1.6 | C76: 2.33682723 | D76: 0.9152345235 | E76: 0.08041661812 | F76: 0.004348858388 | G76: 0.6421876787 | H76: 0.2821274766 | I76: 0.04957797584 | J76: 0 | K76: 0 | L76: 0 | M76: 0 | N76: 0 | O76: 0 | P76: 0 | Q76: 0 | S76: 0.9738931311 | T76: 0.06497653028
B77: 1.7 | C77: 2.43682723 | D77: 0.8941148774 | E77: 0.09965285337 | F77: 0.00623226927 | G77: 0.5714346963 | H77: 0.3184439687 | I77: 0.07098383199 | J77: 0 | K77: 0 | L77: 0 | M77: 0 | N77: 0 | O77: 0 | P77: 0 | Q77: 0 | S77: 0.960862497 | T77: 0.0829778231
B78: 1.8 | C78: 2.53682723 | D78: 0.8694324953 | E78: 0.1217623766 | F78: 0.008805128122 | G78: 0.4967974295 | H78: 0.3478777021 | I78: 0.0974392285 | J78: 0 | K78: 0 | L78: 0 | M78: 0 | N78: 0 | O78: 0 | P78: 0 | Q78: 0 | S78: 0.9421143602 | T78: 0.1043233937
B79: 1.9 | C79: 2.63682723 | D79: 0.8410330095 | E79: 0.146701594 | F79: 0.01226539652 | G79: 0.4207898043 | H79: 0.3669923434 | I79: 0.1280291288 | J79: 0 | K79: 0 | L79: 0 | M79: 0 | N79: 0 | O79: 0 | P79: 0 | Q79: 0 | S79: 0.9158112764 | T79: 0.1291265431
B80: 2 | C80: 2.73682723 | D80: 0.8088625805 | E80: 0.1742903239 | F80: 0.01684709552 | G80: =IF(G$52>cm,0,(COMBIN(n,G$52))*$D80^(n-G$52)*$E80^G$52) -> 0.3462371969 | H80: 0.3730287113 | I80: 0.1607573313 | J80: 0 | K80: 0 | L80: 0 | M80: 0 | N80: 0 | O80: 0 | P80: 0 | Q80: 0 | S80: 0.8800232396 | T80: 0.1573488203
B81: 2.1 | C81: 2.83682723 | D81: 0.7729847477 | E81: 0.2041955178 | F81: 0.02281973458 | G81: 0.2759653928 | H81: 0.3645019933 | I81: 0.1925773399 | J81: 0 | K81: 0 | L81: 0 | M81: 0 | N81: 0 | O81: 0 | P81: 0 | Q81: 0 | S81: 0.8330447259 | T81: 0.1887667969
B82: 2.2 | C82: 2.93682723 | D82: 0.7335917956 | E82: 0.2359231738 | F82: 0.03048503068 | G82: 0.2124576277 | H82: 0.3416319411 | I82: 0.2197377132 | J82: 0 | K82: 0 | L82: 0 | M82: 0 | N82: 0 | O82: 0 | P82: 0 | Q82: 0 | S82: 0.773827282 | T82: 0.2229471222
B83: 2.3 | C83: 3.03682723 | D83: 0.6910090333 | E83: 0.2688206031 | F83: 0.04017036365 | G83: 0.1575500785 | H83: 0.3064555242 | I83: 0.2384384426 | J83: 0 | K83: 0 | L83: 0 | M83: 0 | N83: 0 | O83: 0 | P83: 0 | Q83: 0 | S83: 0.7024440453 | T83: 0.2592341925
B84: 2.4 | C84: 3.13682723 | D84: 0.6456908898 | E84: 0.3020905198 | F84: 0.05221859041 | G84: 0.1122337036 | H84: 0.2625461997 | I84: 0.245667762 | J84: 0 | K84: 0 | L84: 0 | M84: 0 | N84: 0 | O84: 0 | P84: 0 | Q84: 0 | S84: 0.6204476653 | T84: 0.2967541802
B85: 2.5 | C85: 3.23682723 | D85: 0.5982084126 | E85: 0.3348174719 | F85: 0.06697411555 | G85: 0.07660596382 | H85: 0.2143819328 | I85: 0.2399792956 | J85: 0 | K85: 0 | L85: 0 | M85: 0 | N85: 0 | O85: 0 | P85: 0 | Q85: 0 | S85: 0.5309671922 | T85: 0.3344379523
B86: 2.6 | C86: 3.33682723 | D86: 0.5492285451 | E86: 0.3660059784 | F86: 0.08476547651 | G86: 0.04997646155 | H86: 0.1665216044 | I86: 0.2219400405 | J86: 0 | K86: 0 | L86: 0 | M86: 0 | N86: 0 | O86: 0 | P86: 0 | Q86: 0 | S86: 0.4384381065 | T86: 0.3710636521
B87: 2.7 | C87: 3.43682723 | D87: 0.4994863641 | E87: 0.3946285132 | F87: 0.1058851226 | G87: 0.03108981823 | H87: 0.1228154523 | I87: 0.1940652751 | J87: 0 | K87: 0 | L87: 0 | M87: 0 | N87: 0 | O87: 0 | P87: 0 | Q87: 0 | S87: 0.3479705456 | T87: 0.4053175628
B88: 2.8 | C88: 3.53682723 | D88: 0.4497521774 | E88: 0.4196803178 | F88: 0.1305675047 | G88: 0.01840205707 | H88: 0.0858581853 | I88: 0.1602348684 | J88: 0 | K88: 0 | L88: 0 | M88: 0 | N88: 0 | O88: 0 | P88: 0 | Q88: 0 | S88: 0.2644951108 | T88: 0.4358695991
B89: 2.9 | C89: 3.63682723 | D89: 0.4007959215 | E89: 0.4402370881 | F89: 0.1589669905 | G89: 0.01034228419 | H89: 0.05680019221 | I89: 0.1247794695 | J89: 0 | K89: 0 | L89: 0 | M89: 0 | N89: 0 | O89: 0 | P89: 0 | Q89: 0 | S89: 0.1919219459 | T89: 0.4614576863
B90: 3 | C90: 3.73682723 | D90: 0.3533515876 | E90: 0.4555109929 | F90: 0.1911374195 | G90: =IF(G$52>cm,0,(COMBIN(n,G$52))*$D90^(n-G$52)*$E90^G$52) -> 0.005508523857 | H90: 0.03550561621 | I90: 0.09154167726 | J90: 0 | K90: 0 | L90: 0 | M90: 0 | N90: 0 | O90: 0 | P90: 0 | Q90: 0 | S90: 0.1325558173 | T90: 0.4809737096
B91: 3.1 | C91: 3.83682723 | D91: 0.3080844025 | E91: 0.4649003451 | F91: 0.2270152523 | G91: 0.002775546825 | H91: 0.02094154502 | I91: 0.06320171634 | J91: 0 | K91: 0 | L91: 0 | M91: 0 | N91: 0 | O91: 0 | P91: 0 | Q91: 0 | S91: 0.08691880819 | T91: 0.4935429366
B92: 3.2 | C92: =+B92+0.5*LN(10)*sigma^2 -> 3.93682723 | D92: =NORMSDIST((m-B92)/sigma) -> 0.2655631936 | E92: =NORMSDIST((BigM-B92)/sigma)-NORMSDIST((m-B92)/sigma) -> 0.4680286019 | F92: 0.2664082044 | G92: 0.001320807158 | H92: 0.01163895341 | I92: 0.04102498557 | J92: 0 | K92: 0 | L92: 0 | M92: 0 | N92: 0 | O92: 0 | P92: 0 | Q92: 0 | S92: =IF($D92>0.9999999,1,IF($D92=0,0,SUM(G92:Q92))) -> 0.05398474614 | T92: =NORMDIST($B92,meanlog,sigma,FALSE) -> 0.4985889994
B93: 3.3 | C93: 4.03682723 | D93: 0.2262398268 | E93: 0.4647692065 | F93: 0.3089909667 | G93: 0.0005927141539 | H93: 0.006088125395 | I93: 0.02501392658 | J93: 0 | K93: 0 | L93: 0 | M93: 0 | N93: 0 | O93: 0 | P93: 0 | Q93: 0 | S93: 0.03169476613 | T93: 0.4958777162
B94: 3.4 | C94: 4.13682723 | D94: 0.1904368808 | E94: 0.455254009 | F94: 0.3543091102 | G94: 0.0002504697589 | H94: 0.002993836104 | I94: 0.01431399089 | J94: 0 | K94: 0 | L94: 0 | M94: 0 | N94: 0 | O94: 0 | P94: 0 | Q94: 0 | S94: 0.01755829675 | T94: 0.4855351112
B95: 3.5 | C95: 4.23682723 | D95: 0.1583439185 | E95: 0.4398644941 | F95: 0.4017915874 | G95: 9.954213249e-05 | H95: 0.00138259335 | I95: 0.007681428253 | J95: 0 | K95: 0 | L95: 0 | M95: 0 | N95: 0 | O95: 0 | P95: 0 | Q95: 0 | S95: 0.009163563736 | T95: 0.4680377024
B96: 3.6 | C96: 4.33682723 | D96: 0.1300219246 | E96: 0.4192066204 | F96: 0.4507714549 | G96: 3.716062005e-05 | H96: 0.0005990519671 | I96: 0.003862833922 | J96: 0 | K96: 0 | L96: 0 | M96: 0 | N96: 0 | O96: 0 | P96: 0 | Q96: 0 | S96: 0.00449904651 | T96: 0.4441760984
B97: 3.7 | C97: 4.43682723 | D97: 0.1054148032 | E97: 0.394071561 | F97: 0.5005136359 | G97: 1.301691325e-05 | H97: 0.000243305265 | I97: 0.001819093385 | J97: 0 | K97: 0 | L97: 0 | M97: 0 | N97: 0 | O97: 0 | P97: 0 | Q97: 0 | S97: 0.002075415564 | T97: 0.4149957795
B98: 3.8 | C98: 4.53682723 | D98: 0.08436632151 | E98: 0.3653858559 | F98: 0.5502478226 | G98: 4.274108752e-06 | H98: 9.255463891e-05 | I98: 0.0008016980082 | J98: 0 | K98: 0 | L98: 0 | M98: 0 | N98: 0 | O98: 0 | P98: 0 | Q98: 0 | S98: 0.0008985267559 | T98: 0.381721238
B99: 3.9 | C99: 4.63682723 | D99: 0.06664060903 | E99: 0.3341553124 | F99: 0.5992040785 | G99: 1.314300845e-06 | H99: 3.295142526e-05 | I99: 0.0003304559776 | J99: 0 | K99: 0 | L99: 0 | M99: 0 | N99: 0 | O99: 0 | P99: 0 | Q99: 0 | S99: 0.0003647217037 | T99: 0.3456711354
B100: 4 | C100: 4.73682723 | D100: 0.0519442554 | E100: 0.3014073322 | F100: 0.6466484124 | G100: =IF(G$52>cm,0,(COMBIN(n,G$52))*$D100^(n-G$52)*$E100^G$52) -> 3.781704811e-07 | H100: 1.097169985e-05 | I100: 0.0001273269106 | J100: 0 | K100: 0 | L100: 0 | M100: 0 | N100: 0 | O100: 0 | P100: 0 | Q100: 0 | S100: 0.0001386767809 | T100: 0.3081726247
B101: 4.1 | C101: 4.83682723 | D101: 0.03994820036 | E101: 0.2681362022 | F101: 0.6919155975 | G101: 1.017386796e-07 | H101: 3.414399513e-06 | I101: 4.583556254e-05 | J101: 0 | K101: 0 | L101: 0 | M101: 0 | N101: 0 | O101: 0 | P101: 0 | Q101: 0 | S101: 4.935170074e-05 | T101: 0.2704824846
B102: 4.2 | C102: 4.93682723 | D102: 0.03030790664 | E102: 0.235255287 | F102: 0.7344368064 | G102: 2.557288373e-08 | H102: 9.925060436e-07 | I102: 1.540801197e-05 | J102: 0 | K102: 0 | L102: 0 | M102: 0 | N102: 0 | O102: 0 | P102: 0 | Q102: 0 | S102: 1.642609089e-05 | T102: 0.2337213498
B103: 4.3 | C103: 5.03682723 | D103: 0.02268070831 | E103: 0.2035591185 | F103: 0.7737601732 | G103: 6.001821384e-09 | H103: 2.693314189e-07 | I103: 4.834493303e-06 | J103: 0 | K103: 0 | L103: 0 | M103: 0 | N103: 0 | O103: 0 | P103: 0 | Q103: 0 | S103: 5.109826543e-06 | T103: 0.198825358
B104: 4.4 | C104: 5.13682723 | D104: 0.01673966433 | E104: 0.1736972165 | F104: 0.8095631192 | G104: 1.314418691e-09 | H104: 6.819457768e-08 | I104: 1.415226505e-06 | J104: 0 | K104: 0 | L104: 0 | M104: 0 | N104: 0 | O104: 0 | P104: 0 | Q104: 0 | S104: 1.484735501e-06 | T104: 0.1665172803
B105: 4.5 | C105: 5.23682723 | D105: 0.01218366717 | E105: 0.1461602513 | F105: 0.8416560815 | G105: 2.684665196e-10 | H105: 1.610317051e-08 | I105: 3.863604309e-07 | J105: 0 | K105: 0 | L105: 0 | M105: 0 | N105: 0 | O105: 0 | P105: 0 | Q105: 0 | S105: 4.027320679e-07 | T105: 0.1372969829
B106: 4.6 | C106: 5.33682723 | D106: 0.008743915657 | E106: 0.121278009 | F106: 0.8699780754 | G106: 5.111281487e-11 | H106: 3.544670754e-09 | I106: 9.832908469e-08 | J106: 0 | K106: 0 | L106: 0 | M106: 0 | N106: 0 | O106: 0 | P106: 0 | Q106: 0 | S106: 1.019248683e-07 | T106: 0.1114491671
B107: 4.7 | C107: 5.43682723 | D107: 0.006187134021 | E107: 0.09922766913 | F107: 0.8945851968 | G107: 9.066665998e-12 | H107: 7.270443236e-10 | I107: 2.332030092e-08 | J107: 0 | K107: 0 | L107: 0 | M107: 0 | N107: 0 | O107: 0 | P107: 0 | Q107: 0 | S107: 2.405641191e-08 | T107: 0.08906494611
B108: 4.8 | C108: 5.53682723 | D108: 0.004316093705 | E108: 0.0800502278 | F108: 0.9156336785 | G108: 1.497801718e-12 | H108: 1.38898014e-10 | I108: 5.152259622e-09 | J108: 0 | K108: 0 | L108: 0 | M108: 0 | N108: 0 | O108: 0 | P108: 0 | Q108: 0 | S108: 5.292655438e-09 | T108: 0.07007303699
B109: 4.9 | C109: 5.63682723 | D109: 0.002968076028 | E109: 0.063672533 | F109: 0.933359391 | G109: 2.303430465e-13 | H109: 2.470712524e-11 | I109: 1.060057244e-09 | J109: 0 | K109: 0 | L109: 0 | M109: 0 | N109: 0 | O109: 0 | P109: 0 | Q109: 0 | S109: 1.084994713e-09 | T109: 0.05427617324
B110: 5 | C110: 5.73682723 | D110: 0.002011915174 | E110: 0.04993234023 | F110: 0.9480557446 | G110: =IF(G$52>cm,0,(COMBIN(n,G$52))*$D110^(n-G$52)*$E110^G$52) -> 3.29646395e-14 | H110: 4.090633681e-12 | I110: 2.030452529e-10 | J110: 0 | K110: 0 | L110: 0 | M110: 0 | N110: 0 | O110: 0 | P110: 0 | Q110: 0 | S110: 2.071688513e-10 | T110: 0.04138868692
B111: 5.1 | C111: 5.83682723 | D111: 0.001344203058 | E111: 0.0386039973 | F111: 0.9600517996 | G111: 4.388583795e-15 | H111: 6.301759097e-13 | I111: 3.619588421e-11 | J111: 0 | K111: 0 | L111: 0 | M111: 0 | N111: 0 | O111: 0 | P111: 0 | Q111: 0 | S111: 3.68304487e-11 | T111: 0.03107192969
B112: 5.2 | C112: 5.93682723 | D112: 0.0008851419767 | E112: 0.02942276467 | F112: 0.9696920934 | G112: 5.433312512e-16 | H112: 9.030363468e-14 | I112: 6.003517315e-12 | J112: 0 | K112: 0 | L112: 0 | M112: 0 | N112: 0 | O112: 0 | P112: 0 | Q112: 0 | S112: 6.094364281e-12 | T112: 0.02296513228
B113: 5.3 | C113: 6.03682723 | D113: 0.0005744181127 | E113: 0.0221062902 | F113: 0.9773192917 | G113: 6.253751624e-17 | H113: 1.203367766e-14 | I113: 9.262241726e-13 | J113: 0 | K113: 0 | L113: 0 | M113: 0 | N113: 0 | O113: 0 | P113: 0 | Q113: 0 | S113: 9.383203877e-13 | T113: 0.0167102838
B114: 5.4 | C114: 6.13682723 | D114: 0.0003673555175 | E114: 0.01637230882 | F114: 0.9832603357 | G114: 6.690103486e-18 | H114: 1.490823399e-15 | I114: 1.328861004e-13 | J114: 0 | K114: 0 | L114: 0 | M114: 0 | N114: 0 | O114: 0 | P114: 0 | Q114: 0 | S114: 1.343836139e-13 | T114: 0.01197051538
B115: 5.5 | C115: 6.23682723 | D115: 0.0002315080328 | E115: 0.01195215914 | F115: 0.9878163328 | G115: 6.650132886e-19 | H115: 1.716645543e-16 | I115: 1.772519118e-14 | J115: 0 | K115: 0 | L115: 0 | M115: 0 | N115: 0 | O115: 0 | P115: 0 | Q115: 0 | S115: 1.789752074e-14 | T115: 0.008442207471
B116: 5.6 | C116: 6.33682723 | D116: 0.0001437626145 | E116: 0.008600153042 | F116: 0.9912560843 | G116: 6.140868696e-20 | H116: 1.836792228e-17 | I116: 2.197608096e-15 | J116: 0 | K116: 0 | L116: 0 | M116: 0 | N116: 0 | O116: 0 | P116: 0 | Q116: 0 | S116: 2.216037427e-15 | T116: 0.005861561711
B117: 5.7 | C117: 6.43682723 | D117: 8.796441443e-05 | E117: 0.006099169606 | F117: 0.993812866 | G117: 5.266657543e-21 | H117: 1.825865483e-18 | I117: 2.531992814e-16 | J117: 0 | K117: 0 | L117: 0 | M117: 0 | N117: 0 | O117: 0 | P117: 0 | Q117: 0 | S117: 2.550304136e-16 | T117: 0.00400668141
B118: 5.8 | C118: 6.53682723 | D118: 5.30311785e-05 | E118: 0.004263062526 | F118: 0.9956839063 | G118: 4.19427008e-22 | H118: 1.685841811e-19 | I118: 2.710424039e-17 | J118: 0 | K118: 0 | L118: 0 | M118: 0 | N118: 0 | O118: 0 | P118: 0 | Q118: 0 | S118: 2.7273244e-17 | T118: 0.002696313767
B119: 5.9 | C119: 6.63682723 | D119: 3.149937911e-05 | E119: 0.002936576649 | F119: 0.997031924 | G119: 3.10105856e-23 | H119: 1.445504072e-20 | I119: 2.695185506e-18 | J119: 0 | K119: 0 | L119: 0 | M119: 0 | N119: 0 | O119: 0 | P119: 0 | Q119: 0 | S119: 2.709671558e-18 | T119: 0.001786364979
B120: 6 | C120: 6.73682723 | D120: 1.843331736e-05 | E120: 0.001993481857 | F120: 0.9979880848 | G120: =IF(G$52>cm,0,(COMBIN(n,G$52))*$D120^(n-G$52)*$E120^G$52) -> 2.128224805e-24 | H120: 1.150790564e-21 | I120: 2.489058335e-19 | J120: 0 | K120: 0 | L120: 0 | M120: 0 | N120: 0 | O120: 0 | P120: 0 | Q120: 0 | S120: 2.500587523e-19 | T120: 0.001165156095
B121: 6.1 | C121: 6.83682723 | D121: 1.062725609e-05 | E121: 0.001333575802 | F121: 0.9986557969 | G121: 1.355519377e-25 | H121: 8.504960382e-23 | I121: 2.13451323e-20 | J121: 0 | K121: 0 | L121: 0 | M121: 0 | N121: 0 | O121: 0 | P121: 0 | Q121: 0 | S121: 2.143031746e-20 | T121: 0.0007481904763
B122: 6.2 | C122: 6.93682723 | D122: 6.035888493e-06 | E122: 0.0008791060882 | F122: 0.999114858 | G122: 8.011356167e-27 | H122: 5.834130294e-24 | I122: 1.699441422e-21 | J122: 0 | K122: 0 | L122: 0 | M122: 0 | N122: 0 | O122: 0 | P122: 0 | Q122: 0 | S122: 1.705283564e-21 | T122: 0.0004729926463
B123: 6.3 | C123: 7.03682723 | D123: 3.37715365e-06 | E123: 0.0005710409591 | F123: 0.9994255819 | G123: 4.392928155e-28 | H123: 3.713988416e-25 | I123: 1.25599231e-22 | J123: 0 | K123: 0 | L123: 0 | M123: 0 | N123: 0 | O123: 0 | P123: 0 | Q123: 0 | S123: 1.259710691e-22 | T123: 0.0002943816604
B124: 6.4 | C124: =+B124+0.5*LN(10)*sigma^2 -> 7.13682723 | D124: =NORMSDIST((m-B124)/sigma) -> 1.861392279e-06 | E124: =NORMSDIST((BigM-B124)/sigma)-NORMSDIST((m-B124)/sigma) -> 0.0003654941252 | F124: 0.9996326445 | G124: 2.234547241e-29 | H124: 2.193825284e-26 | I124: 8.615381747e-24 | J124: 0 | K124: 0 | L124: 0 | M124: 0 | N124: 0 | O124: 0 | P124: 0 | Q124: 0 | S124: =IF($D124>0.9999999,1,IF($D124=0,0,SUM(G124:Q124))) -> 8.637342345e-24 | T124: =NORMDIST($B124,meanlog,sigma,FALSE) -> 0.0001803770421
B125: 6.5 | C125: 7.23682723 | D125: 1.010627541e-06 | E125: 0.0002304974053 | F125: =1-(E125+D125) -> 0.999768492 | G125: 1.05427922e-30 | H125: 1.202265992e-27 | I125: 5.48410132e-25 | J125: 0 | K125: 0 | L125: 0 | M125: 0 | N125: 0 | O125: 0 | P125: 0 | Q125: 0 | S125: 5.496134523e-25 | T125: 0.0001088092759
B126: 6.6 | C126: 7.33682723 | D126: 5.405051275e-07 | E126: 0.0001432221093 | F126: 0.9998562374 | G126: 4.613166093e-32 | H126: 6.111943671e-29 | I126: 3.239064424e-26 | J126: 0 | K126: 0 | L126: 0 | M126: 0 | N126: 0 | O126: 0 | P126: 0 | Q126: 0 | S126: 3.245180981e-26 | T126: 6.461966883e-05
B127: 6.7 | C127: 7.43682723 | D127: 2.84743577e-07 | E127: 8.767967085e-05 | F127: 0.9999120356 | G127: 1.871844131e-33 | H127: 2.881938182e-30 | I127: 1.774841729e-27 | J127: 0 | K127: 0 | L127: 0 | M127: 0 | N127: 0 | O127: 0 | P127: 0 | Q127: 0 | S127: 1.777725539e-27 | T127: 3.778136849e-05
B128: 6.8 | C128: 7.53682723 | D128: 1.477556262e-07 | E128: 5.288342288e-05 | F128: 0.9999469688 | G128: 7.042391007e-35 | H128: 1.260276009e-31 | I128: 9.021342985e-29 | J128: 0 | K128: 0 | L128: 0 | M128: 0 | N128: 0 | O128: 0 | P128: 0 | Q128: 0 | S128: 9.033952788e-29 | T128: 2.174727218e-05
B129: 6.9 | C129: 7.63682723 | D129: 7.551985929e-08 | E129: 3.142385926e-05 | F129: 0.9999685006 | G129: 2.456438303e-36 | H129: 5.110627338e-33 | I129: 4.25307027e-30 | J129: 0 | K129: 0 | L129: 0 | M129: 0 | N129: 0 | O129: 0 | P129: 0 | Q129: 0 | S129: 4.258183354e-30 | T129: 1.232383979e-05
B130: 7 | C130: 7.73682723 | D130: 3.801867317e-08 | E130: 1.839529868e-05 | F130: 0.9999815667 | G130: =IF(G$52>cm,0,(COMBIN(n,G$52))*$D130^(n-G$52)*$E130^G$52) -> 7.943003996e-38 | H130: 1.921607446e-34 | I130: 1.859535853e-31 | J130: 0 | K130: 0 | L130: 0 | M130: 0 | N130: 0 | O130: 0 | P130: 0 | Q130: 0 | S130: 1.861458255e-31 | T130: 6.875455043e-06
B131: 7.1 | C131: 7.83682723 | D131: 1.885139221e-08 | E131: 1.06084047e-05 | F131: 0.9999893727 | G131: 2.380768381e-39 | H131: 6.698750466e-36 | I131: 7.539289948e-33 | J131: 0 | K131: 0 | L131: 0 | M131: 0 | N131: 0 | O131: 0 | P131: 0 | Q131: 0 | S131: 7.545991079e-33 | T131: 3.776339212e-06
B132: 7.2 | C132: 7.93682723 | D132: 9.206468577e-09 | E132: 6.026682024e-06 | F132: 0.9999939641 | G132: 6.614018053e-41 | H132: 2.164813977e-37 | I132: 2.83423451e-34 | J132: 0 | K132: 0 | L132: 0 | M132: 0 | N132: 0 | O132: 0 | P132: 0 | Q132: 0 | S132: 2.836399986e-34 | T132: 2.041995113e-06
B133: 7.3 | C133: 8.03682723 | D133: 4.428317819e-09 | E133: 3.372725332e-06 | F133: 0.9999966228 | G133: 1.702918692e-42 | H133: 6.484942191e-39 | I133: 9.878210959e-36 | J133: 0 | K133: 0 | L133: 0 | M133: 0 | N133: 0 | O133: 0 | P133: 0 | Q133: 0 | S133: 9.884697604e-36 | T133: 1.087057576e-06
B134: 7.4 | C134: 8.13682723 | D134: 2.097847026e-09 | E134: 1.859294432e-06 | F134: 0.9999981386 | G134: 4.063208261e-44 | H134: 1.800584218e-40 | I134: 3.191668571e-37 | J134: 0 | K134: 0 | L134: 0 | M134: 0 | N134: 0 | O134: 0 | P134: 0 | Q134: 0 | S134: 3.193469562e-37 | T134: 5.697240395e-07
B135: 7.5 | C135: 8.23682723 | D135: 9.787951182e-10 | E135: 1.009648746e-06 | F135: 0.9999989894 | G135: 8.983777207e-46 | H135: 4.633482138e-42 | I135: 9.559077981e-39 | J135: 0 | K135: 0 | L135: 0 | M135: 0 | N135: 0 | O135: 0 | P135: 0 | Q135: 0 | S135: 9.563712361e-39 | T135: 2.939616601e-07
B136: 7.6 | C136: 8.33682723 | D136: 4.497660424e-10 | E136: 5.400553615e-07 | F136: 0.9999994595 | G136: 1.840489372e-47 | H136: 1.104981323e-43 | I136: 2.653606683e-40 | J136: 0 | K136: 0 | L136: 0 | M136: 0 | N136: 0 | O136: 0 | P136: 0 | Q136: 0 | S136: 2.654711849e-40 | T136: 1.493244715e-07
B137: 7.7 | C137: 8.43682723 | D137: 2.035413612e-10 | E137: 2.845400357e-07 | F137: 0.9999997153 | G137: 3.493521122e-49 | H137: 2.441878689e-45 | I137: 6.827233982e-42 | J137: 0 | K137: 0 | L137: 0 | M137: 0 | N137: 0 | O137: 0 | P137: 0 | Q137: 0 | S137: 6.82967621e-42 | T137: 7.467675367e-08
B138: 7.8 | C138: 8.53682723 | D138: 9.07161001e-11 | E138: 1.476649101e-07 | F138: 0.9999998522 | G138: 6.143584809e-51 | H138: 5.000170298e-47 | I138: 1.627825043e-43 | J138: 0 | K138: 0 | L138: 0 | M138: 0 | N138: 0 | O138: 0 | P138: 0 | Q138: 0 | S138: 1.628325121e-43 | T138: 3.676664677e-08
B139: 7.9 | C139: 8.63682723 | D139: 3.981773614e-11 | E139: 7.548004156e-08 | F139: 0.9999999245 | G139: 1.000881868e-52 | H139: 9.486552017e-49 | I139: 3.596615026e-45 | J139: 0 | K139: 0 | L139: 0 | M139: 0 | N139: 0 | O139: 0 | P139: 0 | Q139: 0 | S139: 3.597563781e-45 | T139: 1.78211926e-08
B140: 8 | C140: 8.73682723 | D140: 1.721172175e-11 | E140: 3.800146145e-08 | F140: 0.999999962 | G140: 1.510502969e-54 | H140: 1.667506632e-50 | I140: 7.363317848e-47 | J140: 0 | K140: 0 | L140: 0 | M140: 0 | N140: 0 | O140: 0 | P140: 0 | Q140: 0 | S140: 7.364985506e-47 | T140: 8.504203693e-09
B142: Calculations for 3-dimensional OC graph
V143: Table for OC graph
C144: pa | D144: pm | E144: pd | Z144: Pm
C145: =1-(D145+E145) -> 0 | D145: 1 | E145: 0 | F145: =IF(G$52>cm,0,(COMBIN(n,G$52))*$C145^(n-G$52)*$D145^G$52) -> 0 | G145: 0 | H145: 0 | I145: 0 | J145: 0 | K145: 0 | L145: 0 | M145: 0 | N145: 0 | O145: 0 | P145: 0 | S145: =IF($C145>0.9999999,1,IF($C145=0,0,SUM(F145:P145))) -> 0 | V145: Pd | W145: 0 | X145: 0 | Y145: 0.1 | Z145: 0.2 | AA145: 0.3 | AB145: 0.4 | AC145: 0.5 | AD145: 0.6 | AE145: 0.7 | AF145: 0.8 | AG145: 0.9 | AH145: 1
C146: =1-(D146+E146) -> 0 | D146: 0.9 | E146: 0.1 | F146: =IF(G$52>cm,0,(COMBIN(n,G$52))*$C146^(n-G$52)*$D146^G$52) -> 0 | G146: 0 | H146: 0 | I146: 0 | J146: 0 | K146: 0 | L146: 0 | M146: 0 | N146: 0 | O146: 0 | P146: 0 | S146: 0 | V146: 1 | X146: =+S200 -> -6e-25
C147: 0.1 | D147: 0.9 | E147: 0 | F147: =IF(G$52>cm,0,(COMBIN(n,G$52))*$C147^(n-G$52)*$D147^G$52) -> 1e-05 | G147: 0.00045 | H147: 0.0081 | I147: 0 | J147: 0 | K147: 0 | L147: 0 | M147: 0 | N147: 0 | O147: 0 | P147: 0 | S147: 0.00856 | V147: 0.9 | X147: 1e-05 | Y147: =+S190 -> 0
C148: 0 | D148: 0.8 | E148: 0.2 | F148: =IF(G$52>cm,0,(COMBIN(n,G$52))*$C148^(n-G$52)*$D148^G$52) -> 0 | G148: 0 | H148: 0 | I148: 0 | J148: 0 | K148: 0 | L148: 0 | M148: 0 | N148: 0 | O148: 0 | P148: 0 | S148: 0 | V148: 0.8 | X148: 0.00032 | Y148: 0.00016 | Z148: =+S181 -> 0
C149: 0.1 | D149: 0.8 | E149: 0.1 | F149: =IF(G$52>cm,0,(COMBIN(n,G$52))*$C149^(n-G$52)*$D149^G$52) -> 1e-05 | G149: 0.0004 | H149: 0.0064 | I149: 0 | J149: 0 | K149: 0 | L149: 0 | M149: 0 | N149: 0 | O149: 0 | P149: 0 | S149: 0.00681 | V149: 0.7 | X149: 0.00243 | Y149: 0.00192 | Z149: 0.00051 | AA149: =+S173 -> 0
C150: 0.2 | D150: 0.8 | E150: 0 | F150: =IF(G$52>cm,0,(COMBIN(n,G$52))*$C150^(n-G$52)*$D150^G$52) -> 0.00032 | G150: 0.0064 | H150: 0.0512 | I150: 0 | J150: 0 | K150: 0 | L150: 0 | M150: 0 | N150: 0 | O150: 0 | P150: 0 | S150: 0.05792 | V150: 0.6 | X150: 0.01024 | Y150: 0.00918 | Z150: 0.00512 | AA150: 0.00106 | AB150: =+S166 -> 0
C151: 0 | D151: 0.7 | E151: 0.3 | F151: =IF(G$52>cm,0,(COMBIN(n,G$52))*$C151^(n-G$52)*$D151^G$52) -> 0 | G151: 0 | H151: 0 | I151: 0 | J151: 0 | K151: 0 | L151: 0 | M151: 0 | N151: 0 | O151: 0 | P151: 0 | S151: 0 | V151: 0.5 | X151: 0.03125 | Y151: 0.02944 | Z151: 0.02133 | AA151: 0.00992 | AB151: 0.00181 | AC151: =+S160 -> 0
C152: 0.1 | D152: 0.7 | E152: 0.2 | F152: =IF(G$52>cm,0,(COMBIN(n,G$52))*$C152^(n-G$52)*$D152^G$52) -> 1e-05 | G152: 0.00035 | H152: 0.0049 | I152: 0 | J152: 0 | K152: 0 | L152: 0 | M152: 0 | N152: 0 | O152: 0 | P152: 0 | S152: 0.00526 | V152: 0.4 | X152: 0.07776 | Y152: 0.075 | Z152: 0.06144 | AA152: 0.03888 | AB152: 0.01632 | AC152: 0.00276 | AD152: =+S155 -> 0
C153: 0.2 | D153: 0.7 | E153: 0.1 | F153: =IF(G$52>cm,0,(COMBIN(n,G$52))*$C153^(n-G$52)*$D153^G$52) -> 0.00032 | G153: 0.0056 | H153: 0.0392 | I153: 0 | J153: 0 | K153: 0 | L153: 0 | M153: 0 | N153: 0 | O153: 0 | P153: 0 | S153: 0.04512 | V153: 0.3 | X153: 0.16807 | Y153: 0.16416 | Z153: 0.14375 | AA153: 0.10624 | AB153: 0.06183 | AC153: 0.02432 | AD153: =+S156 -> 0.00391 | AE153: =+S151 -> 0
C154: 0.3 | D154: 0.7 | E154: 0 | F154: =IF(G$52>cm,0,(COMBIN(n,G$52))*$C154^(n-G$52)*$D154^G$52) -> 0.00243 | G154: 0.02835 | H154: 0.1323 | I154: 0 | J154: 0 | K154: 0 | L154: 0 | M154: 0 | N154: 0 | O154: 0 | P154: 0 | S154: 0.16308 | V154: 0.2 | X154: 0.32768 | Y154: 0.32242 | Z154: 0.29376 | AA154: 0.2375 | AB154: 0.16384 | AC154: 0.09018 | AD154: =+S157 -> 0.03392 | AE154: =+S152 -> 0.00526 | AF154: =+S148 -> 0
C155: 0 | D155: 0.6 | E155: 0.4 | F155: =IF(G$52>cm,0,(COMBIN(n,G$52))*$C155^(n-G$52)*$D155^G$52) -> 0 | G155: 0 | H155: 0 | I155: 0 | J155: 0 | K155: 0 | L155: 0 | M155: 0 | N155: 0 | O155: 0 | P155: 0 | S155: 0 | V155: 0.1 | X155: =+S209 -> 0.59049 | Y155: =+S198 -> 0.58368 | Z155: =+S188 -> 0.54537 | AA155: =+S179 -> 0.46656 | AB155: 0.35625 | AC155: 0.23424 | AD155: =+S158 -> 0.12393 | AE155: =+S153 -> 0.04512 | AF155: =+S149 -> 0.00681 | AG155: =+S146 -> 0
C156: 0.1 | D156: 0.6 | E156: 0.3 | F156: =IF(G$52>cm,0,(COMBIN(n,G$52))*$C156^(n-G$52)*$D156^G$52) -> 1e-05 | G156: 0.0003 | H156: 0.0036 | I156: 0 | J156: 0 | K156: 0 | L156: 0 | M156: 0 | N156: 0 | O156: 0 | P156: 0 | S156: 0.00391 | V156: 0 | X156: =+S210 -> 1 | Y156: =+S199 -> 0.99144 | Z156: =+S189 -> 0.94208 | AA156: =+S180 -> 0.83692 | AB156: 0.68256 | AC156: 0.5 | AD156: =+S159 -> 0.31744 | AE156: =+S154 -> 0.16308 | AF156: =+S150 -> 0.05792 | AG156: =+S147 -> 0.00856 | AH156: =+S145 -> 0
C157: 0.2 | D157: 0.6 | E157: 0.2 | F157: =IF(G$52>cm,0,(COMBIN(n,G$52))*$C157^(n-G$52)*$D157^G$52) -> 0.00032 | G157: 0.0048 | H157: 0.0288 | I157: 0 | J157: 0 | K157: 0 | L157: 0 | M157: 0 | N157: 0 | O157: 0 | P157: 0 | S157: 0.03392
C158: 0.3 | D158: 0.6 | E158: 0.1 | F158: =IF(G$52>cm,0,(COMBIN(n,G$52))*$C158^(n-G$52)*$D158^G$52) -> 0.00243 | G158: 0.0243 | H158: 0.0972 | I158: 0 | J158: 0 | K158: 0 | L158: 0 | M158: 0 | N158: 0 | O158: 0 | P158: 0 | S158: 0.12393
C159: 0.4 | D159: 0.6 | E159: 0 | F159: =IF(G$52>cm,0,(COMBIN(n,G$52))*$C159^(n-G$52)*$D159^G$52) -> 0.01024 | G159: 0.0768 | H159: 0.2304 | I159: 0 | J159: 0 | K159: 0 | L159: 0 | M159: 0 | N159: 0 | O159: 0 | P159: 0 | S159: 0.31744
C160: 0 | D160: 0.5 | E160: 0.5 | F160: =IF(G$52>cm,0,(COMBIN(n,G$52))*$C160^(n-G$52)*$D160^G$52) -> 0 | G160: 0 | H160: 0 | I160: 0 | J160: 0 | K160: 0 | L160: 0 | M160: 0 | N160: 0 | O160: 0 | P160: 0 | S160: 0
C161: 0.1 | D161: 0.5 | E161: 0.4 | F161: =IF(G$52>cm,0,(COMBIN(n,G$52))*$C161^(n-G$52)*$D161^G$52) -> 1e-05 | G161: 0.00025 | H161: 0.0025 | I161: 0 | J161: 0 | K161: 0 | L161: 0 | M161: 0 | N161: 0 | O161: 0 | P161: 0 | S161: 0.00276
C162: 0.2 | D162: 0.5 | E162: 0.3 | F162: =IF(G$52>cm,0,(COMBIN(n,G$52))*$C162^(n-G$52)*$D162^G$52) -> 0.00032 | G162: 0.004 | H162: 0.02 | I162: 0 | J162: 0 | K162: 0 | L162: 0 | M162: 0 | N162: 0 | O162: 0 | P162: 0 | S162: 0.02432
C163: 0.3 | D163: 0.5 | E163: 0.2 | F163: =IF(G$52>cm,0,(COMBIN(n,G$52))*$C163^(n-G$52)*$D163^G$52) -> 0.00243 | G163: 0.02025 | H163: 0.0675 | I163: 0 | J163: 0 | K163: 0 | L163: 0 | M163: 0 | N163: 0 | O163: 0 | P163: 0 | S163: 0.09018
C164: 0.4 | D164: 0.5 | E164: 0.1 | F164: =IF(G$52>cm,0,(COMBIN(n,G$52))*$C164^(n-G$52)*$D164^G$52) -> 0.01024 | G164: 0.064 | H164: 0.16 | I164: 0 | J164: 0 | K164: 0 | L164: 0 | M164: 0 | N164: 0 | O164: 0 | P164: 0 | S164: 0.23424
C165: 0.5 | D165: 0.5 | E165: 0 | F165: =IF(G$52>cm,0,(COMBIN(n,G$52))*$C165^(n-G$52)*$D165^G$52) -> 0.03125 | G165: 0.15625 | H165: 0.3125 | I165: 0 | J165: 0 | K165: 0 | L165: 0 | M165: 0 | N165: 0 | O165: 0 | P165: 0 | S165: 0.5
C166: 0 | D166: 0.4 | E166: 0.6 | F166: =IF(G$52>cm,0,(COMBIN(n,G$52))*$C166^(n-G$52)*$D166^G$52) -> 0 | G166: 0 | H166: 0 | I166: 0 | J166: 0 | K166: 0 | L166: 0 | M166: 0 | N166: 0 | O166: 0 | P166: 0 | S166: 0
C167: 0.1 | D167: 0.4 | E167: 0.5 | F167: =IF(G$52>cm,0,(COMBIN(n,G$52))*$C167^(n-G$52)*$D167^G$52) -> 1e-05 | G167: 0.0002 | H167: 0.0016 | I167: 0 | J167: 0 | K167: 0 | L167: 0 | M167: 0 | N167: 0 | O167: 0 | P167: 0 | S167: 0.00181
C168: 0.2 | D168: 0.4 | E168: 0.4 | F168: =IF(G$52>cm,0,(COMBIN(n,G$52))*$C168^(n-G$52)*$D168^G$52) -> 0.00032 | G168: 0.0032 | H168: 0.0128 | I168: 0 | J168: 0 | K168: 0 | L168: 0 | M168: 0 | N168: 0 | O168: 0 | P168: 0 | S168: 0.01632
C169: 0.3 | D169: 0.4 | E169: 0.3 | F169: =IF(G$52>cm,0,(COMBIN(n,G$52))*$C169^(n-G$52)*$D169^G$52) -> 0.00243 | G169: 0.0162 | H169: 0.0432 | I169: 0 | J169: 0 | K169: 0 | L169: 0 | M169: 0 | N169: 0 | O169: 0 | P169: 0 | S169: 0.06183
C170: 0.4 | D170: 0.4 | E170: 0.2 | F170: =IF(G$52>cm,0,(COMBIN(n,G$52))*$C170^(n-G$52)*$D170^G$52) -> 0.01024 | G170: 0.0512 | H170: 0.1024 | I170: 0 | J170: 0 | K170: 0 | L170: 0 | M170: 0 | N170: 0 | O170: 0 | P170: 0 | S170: 0.16384
C171: 0.5 | D171: 0.4 | E171: 0.1 | F171: =IF(G$52>cm,0,(COMBIN(n,G$52))*$C171^(n-G$52)*$D171^G$52) -> 0.03125 | G171: 0.125 | H171: 0.2 | I171: 0 | J171: 0 | K171: 0 | L171: 0 | M171: 0 | N171: 0 | O171: 0 | P171: 0 | S171: 0.35625
C172: 0.6 | D172: 0.4 | E172: 0 | F172: =IF(G$52>cm,0,(COMBIN(n,G$52))*$C172^(n-G$52)*$D172^G$52) -> 0.07776 | G172: 0.2592 | H172: 0.3456 | I172: 0 | J172: 0 | K172: 0 | L172: 0 | M172: 0 | N172: 0 | O172: 0 | P172: 0 | S172: 0.68256
C173: 0 | D173: 0.3 | E173: 0.7 | F173: =IF(G$52>cm,0,(COMBIN(n,G$52))*$C173^(n-G$52)*$D173^G$52) -> 0 | G173: 0 | H173: 0 | I173: 0 | J173: 0 | K173: 0 | L173: 0 | M173: 0 | N173: 0 | O173: 0 | P173: 0 | S173: 0
C174: 0.1 | D174: 0.3 | E174: 0.6 | F174: =IF(G$52>cm,0,(COMBIN(n,G$52))*$C174^(n-G$52)*$D174^G$52) -> 1e-05 | G174: 0.00015 | H174: 0.0009 | I174: 0 | J174: 0 | K174: 0 | L174: 0 | M174: 0 | N174: 0 | O174: 0 | P174: 0 | S174: 0.00106
C175: 0.2 | D175: 0.3 | E175: 0.5 | F175: =IF(G$52>cm,0,(COMBIN(n,G$52))*$C175^(n-G$52)*$D175^G$52) -> 0.00032 | G175: 0.0024 | H175: 0.0072 | I175: 0 | J175: 0 | K175: 0 | L175: 0 | M175: 0 | N175: 0 | O175: 0 | P175: 0 | S175: 0.00992
C176: 0.3 | D176: 0.3 | E176: 0.4 | F176: =IF(G$52>cm,0,(COMBIN(n,G$52))*$C176^(n-G$52)*$D176^G$52) -> 0.00243 | G176: 0.01215 | H176: 0.0243 | I176: 0 | J176: 0 | K176: 0 | L176: 0 | M176: 0 | N176: 0 | O176: 0 | P176: 0 | S176: 0.03888
C177: 0.4 | D177: 0.3 | E177: 0.3 | F177: =IF(G$52>cm,0,(COMBIN(n,G$52))*$C177^(n-G$52)*$D177^G$52) -> 0.01024 | G177: 0.0384 | H177: 0.0576 | I177: 0 | J177: 0 | K177: 0 | L177: 0 | M177: 0 | N177: 0 | O177: 0 | P177: 0 | S177: 0.10624
C178: 0.5 | D178: 0.3 | E178: 0.2 | F178: =IF(G$52>cm,0,(COMBIN(n,G$52))*$C178^(n-G$52)*$D178^G$52) -> 0.03125 | G178: 0.09375 | H178: 0.1125 | I178: 0 | J178: 0 | K178: 0 | L178: 0 | M178: 0 | N178: 0 | O178: 0 | P178: 0 | S178: 0.2375
C179: 0.6 | D179: 0.3 | E179: 0.1 | F179: =IF(G$52>cm,0,(COMBIN(n,G$52))*$C179^(n-G$52)*$D179^G$52) -> 0.07776 | G179: 0.1944 | H179: 0.1944 | I179: 0 | J179: 0 | K179: 0 | L179: 0 | M179: 0 | N179: 0 | O179: 0 | P179: 0 | S179: 0.46656
C180: 0.7 | D180: 0.3 | E180: 0 | F180: =IF(G$52>cm,0,(COMBIN(n,G$52))*$C180^(n-G$52)*$D180^G$52) -> 0.16807 | G180: 0.36015 | H180: 0.3087 | I180: 0 | J180: 0 | K180: 0 | L180: 0 | M180: 0 | N180: 0 | O180: 0 | P180: 0 | S180: 0.83692
C181: 0 | D181: 0.2 | E181: 0.8 | F181: =IF(G$52>cm,0,(COMBIN(n,G$52))*$C181^(n-G$52)*$D181^G$52) -> 0 | G181: 0 | H181: 0 | I181: 0 | J181: 0 | K181: 0 | L181: 0 | M181: 0 | N181: 0 | O181: 0 | P181: 0 | S181: 0
C182: 0.1 | D182: 0.2 | E182: 0.7 | F182: =IF(G$52>cm,0,(COMBIN(n,G$52))*$C182^(n-G$52)*$D182^G$52) -> 1e-05 | G182: 0.0001 | H182: 0.0004 | I182: 0 | J182: 0 | K182: 0 | L182: 0 | M182: 0 | N182: 0 | O182: 0 | P182: 0 | S182: 0.00051
C183: 0.2 | D183: 0.2 | E183: 0.6 | F183: =IF(G$52>cm,0,(COMBIN(n,G$52))*$C183^(n-G$52)*$D183^G$52) -> 0.00032 | G183: 0.0016 | H183: 0.0032 | I183: 0 | J183: 0 | K183: 0 | L183: 0 | M183: 0 | N183: 0 | O183: 0 | P183: 0 | S183: 0.00512
C184: 0.3 | D184: 0.2 | E184: 0.5 | F184: =IF(G$52>cm,0,(COMBIN(n,G$52))*$C184^(n-G$52)*$D184^G$52) -> 0.00243 | G184: 0.0081 | H184: 0.0108 | I184: 0 | J184: 0 | K184: 0 | L184: 0 | M184: 0 | N184: 0 | O184: 0 | P184: 0 | S184: 0.02133
C185: 0.4 | D185: 0.2 | E185: 0.4 | F185: =IF(G$52>cm,0,(COMBIN(n,G$52))*$C185^(n-G$52)*$D185^G$52) -> 0.01024 | G185: 0.0256 | H185: 0.0256 | I185: 0 | J185: 0 | K185: 0 | L185: 0 | M185: 0 | N185: 0 | O185: 0 | P185: 0 | S185: 0.06144
C186: 0.5 | D186: 0.2 | E186: 0.3 | F186: =IF(G$52>cm,0,(COMBIN(n,G$52))*$C186^(n-G$52)*$D186^G$52) -> 0.03125 | G186: 0.0625 | H186: 0.05 | I186: 0 | J186: 0 | K186: 0 | L186: 0 | M186: 0 | N186: 0 | O186: 0 | P186: 0 | S186: 0.14375
C187: 0.6 | D187: 0.2 | E187: 0.2 | F187: =IF(G$52>cm,0,(COMBIN(n,G$52))*$C187^(n-G$52)*$D187^G$52) -> 0.07776 | G187: 0.1296 | H187: 0.0864 | I187: 0 | J187: 0 | K187: 0 | L187: 0 | M187: 0 | N187: 0 | O187: 0 | P187: 0 | S187: 0.29376
C188: 0.7 | D188: 0.2 | E188: 0.1 | F188: =IF(G$52>cm,0,(COMBIN(n,G$52))*$C188^(n-G$52)*$D188^G$52) -> 0.16807 | G188: 0.2401 | H188: 0.1372 | I188: 0 | J188: 0 | K188: 0 | L188: 0 | M188: 0 | N188: 0 | O188: 0 | P188: 0 | S188: 0.54537
C189: 0.8 | D189: 0.2 | E189: 0 | F189: =IF(G$52>cm,0,(COMBIN(n,G$52))*$C189^(n-G$52)*$D189^G$52) -> 0.32768 | G189: 0.4096 | H189: 0.2048 | I189: 0 | J189: 0 | K189: 0 | L189: 0 | M189: 0 | N189: 0 | O189: 0 | P189: 0 | S189: 0.94208
C190: 0 | D190: 0.1 | E190: 0.9 | F190: =IF(G$52>cm,0,(COMBIN(n,G$52))*$C190^(n-G$52)*$D190^G$52) -> 0 | G190: 0 | H190: 0 | I190: 0 | J190: 0 | K190: 0 | L190: 0 | M190: 0 | N190: 0 | O190: 0 | P190: 0 | S190: 0
C191: 0.1 | D191: 0.1 | E191: 0.8 | F191: =IF(G$52>cm,0,(COMBIN(n,G$52))*$C191^(n-G$52)*$D191^G$52) -> 1e-05 | G191: 5e-05 | H191: 0.0001 | I191: 0 | J191: 0 | K191: 0 | L191: 0 | M191: 0 | N191: 0 | O191: 0 | P191: 0 | S191: 0.00016
C192: 0.2 | D192: 0.1 | E192: 0.7 | F192: =IF(G$52>cm,0,(COMBIN(n,G$52))*$C192^(n-G$52)*$D192^G$52) -> 0.00032 | G192: 0.0008 | H192: 0.0008 | I192: 0 | J192: 0 | K192: 0 | L192: 0 | M192: 0 | N192: 0 | O192: 0 | P192: 0 | S192: 0.00192
C193: 0.3 | D193: 0.1 | E193: 0.6 | F193: =IF(G$52>cm,0,(COMBIN(n,G$52))*$C193^(n-G$52)*$D193^G$52) -> 0.00243 | G193: 0.00405 | H193: 0.0027 | I193: 0 | J193: 0 | K193: 0 | L193: 0 | M193: 0 | N193: 0 | O193: 0 | P193: 0 | S193: 0.00918
C194: 0.4 | D194: 0.1 | E194: 0.5 | F194: =IF(G$52>cm,0,(COMBIN(n,G$52))*$C194^(n-G$52)*$D194^G$52) -> 0.01024 | G194: 0.0128 | H194: 0.0064 | I194: 0 | J194: 0 | K194: 0 | L194: 0 | M194: 0 | N194: 0 | O194: 0 | P194: 0 | S194: 0.02944
C195: 0.5 | D195: 0.1 | E195: 0.4 | F195: =IF(G$52>cm,0,(COMBIN(n,G$52))*$C195^(n-G$52)*$D195^G$52) -> 0.03125 | G195: 0.03125 | H195: 0.0125 | I195: 0 | J195: 0 | K195: 0 | L195: 0 | M195: 0 | N195: 0 | O195: 0 | P195: 0 | S195: 0.075
C196: 0.6 | D196: 0.1 | E196: 0.3 | F196: =IF(G$52>cm,0,(COMBIN(n,G$52))*$C196^(n-G$52)*$D196^G$52) -> 0.07776 | G196: 0.0648 | H196: 0.0216 | I196: 0 | J196: 0 | K196: 0 | L196: 0 | M196: 0 | N196: 0 | O196: 0 | P196: 0 | S196: 0.16416
C197: 0.7 | D197: 0.1 | E197: 0.2 | F197: =IF(G$52>cm,0,(COMBIN(n,G$52))*$C197^(n-G$52)*$D197^G$52) -> 0.16807 | G197: 0.12005 | H197: 0.0343 | I197: 0 | J197: 0 | K197: 0 | L197: 0 | M197: 0 | N197: 0 | O197: 0 | P197: 0 | S197: 0.32242
C198: 0.8 | D198: 0.1 | E198: 0.1 | F198: =IF(G$52>cm,0,(COMBIN(n,G$52))*$C198^(n-G$52)*$D198^G$52) -> 0.32768 | G198: 0.2048 | H198: 0.0512 | I198: 0 | J198: 0 | K198: 0 | L198: 0 | M198: 0 | N198: 0 | O198: 0 | P198: 0 | S198: 0.58368
C199: 0.9 | D199: 0.1 | E199: 0 | F199: =IF(G$52>cm,0,(COMBIN(n,G$52))*$C199^(n-G$52)*$D199^G$52) -> 0.59049 | G199: 0.32805 | H199: 0.0729 | I199: 0 | J199: 0 | K199: 0 | L199: 0 | M199: 0 | N199: 0 | O199: 0 | P199: 0 | S199: 0.99144
C200: -1e-05 | D200: 1e-05 | E200: 1 | F200: =IF(G$52>cm,0,(COMBIN(n,G$52))*$C200^(n-G$52)*$D200^G$52) -> -1e-25 | G200: 5e-25 | H200: -1e-24 | I200: 0 | J200: 0 | K200: 0 | L200: 0 | M200: 0 | N200: 0 | O200: 0 | P200: 0 | S200: -6e-25
C201: 0.09999 | D201: 1e-05 | E201: 0.9 | F201: =IF(G$52>cm,0,(COMBIN(n,G$52))*$C201^(n-G$52)*$D201^G$52) -> 9.995001e-06 | G201: 4.9980003e-09 | H201: 9.9970003e-13 | I201: 0 | J201: 0 | K201: 0 | L201: 0 | M201: 0 | N201: 0 | O201: 0 | P201: 0 | S201: 1e-05
C202: 0.19999 | D202: 1e-05 | E202: 0.8 | F202: =IF(G$52>cm,0,(COMBIN(n,G$52))*$C202^(n-G$52)*$D202^G$52) -> 0.000319920008 | G202: 7.99840012e-08 | H202: 7.99880006e-12 | I202: 0 | J202: 0 | K202: 0 | L202: 0 | M202: 0 | N202: 0 | O202: 0 | P202: 0 | S202: 0.00032
C203: 0.29999 | D203: 1e-05 | E203: 0.7 | F203: =IF(G$52>cm,0,(COMBIN(n,G$52))*$C203^(n-G$52)*$D203^G$52) -> 0.002429595027 | G203: 4.049460027e-07 | H203: 2.699730009e-11 | I203: 0 | J203: 0 | K203: 0 | L203: 0 | M203: 0 | N203: 0 | O203: 0 | P203: 0 | S203: 0.00243
C204: 0.39999 | D204: 1e-05 | E204: 0.6 | F204: =IF(G$52>cm,0,(COMBIN(n,G$52))*$C204^(n-G$52)*$D204^G$52) -> 0.01023872006 | G204: 1.279872005e-06 | H204: 6.399520012e-11 | I204: 0 | J204: 0 | K204: 0 | L204: 0 | M204: 0 | N204: 0 | O204: 0 | P204: 0 | S204: 0.01024
C205: 0.49999 | D205: 1e-05 | E205: 0.5 | F205: =IF(G$52>cm,0,(COMBIN(n,G$52))*$C205^(n-G$52)*$D205^G$52) -> 0.03124687512 | G205: 3.124750007e-06 | H205: 1.249925001e-10 | I205: 0 | J205: 0 | K205: 0 | L205: 0 | M205: 0 | N205: 0 | O205: 0 | P205: 0 | S205: 0.03125
C206: 0.59999 | D206: 1e-05 | E206: 0.4 | F206: =IF(G$52>cm,0,(COMBIN(n,G$52))*$C206^(n-G$52)*$D206^G$52) -> 0.07775352022 | G206: 6.479568011e-06 | H206: 2.159892002e-10 | I206: 0 | J206: 0 | K206: 0 | L206: 0 | M206: 0 | N206: 0 | O206: 0 | P206: 0 | S206: 0.07776
C207: 0.69999 | D207: 1e-05 | E207: 0.3 | F207: =IF(G$52>cm,0,(COMBIN(n,G$52))*$C207^(n-G$52)*$D207^G$52) -> 0.1680579953 | G207: 1.200431401e-05 | H207: 3.429853002e-10 | I207: 0 | J207: 0 | K207: 0 | L207: 0 | M207: 0 | N207: 0 | O207: 0 | P207: 0 | S207: 0.16807
C208: 0.79999 | D208: 1e-05 | E208: 0.2 | F208: =IF(G$52>cm,0,(COMBIN(n,G$52))*$C208^(n-G$52)*$D208^G$52) -> 0.3276595205 | G208: 2.047897602e-05 | H208: 5.119808002e-10 | I208: 0 | J208: 0 | K208: 0 | L208: 0 | M208: 0 | N208: 0 | O208: 0 | P208: 0 | S208: 0.32768
C209: 0.89999 | D209: 1e-05 | E209: 0.1 | F209: =IF(G$52>cm,0,(COMBIN(n,G$52))*$C209^(n-G$52)*$D209^G$52) -> 0.5904571957 | G209: 3.280354202e-05 | H209: 7.289757003e-10 | I209: 0 | J209: 0 | K209: 0 | L209: 0 | M209: 0 | N209: 0 | O209: 0 | P209: 0 | S209: =IF($C209>0.9999999,1,IF($C209=0,0,SUM(F209:P209))) -> 0.59049
C210: =1-(D210+E210) -> 0.99999 | D210: 1e-05 | E210: 0 | F210: =IF(G$52>cm,0,(COMBIN(n,G$52))*$C210^(n-G$52)*$D210^G$52) -> 0.999950001 | G210: 4.999800003e-05 | H210: 9.999700003e-10 | I210: 0 | J210: 0 | K210: 0 | L210: 0 | M210: 0 | N210: 0 | O210: 0 | P210: 0 | S210: =IF($C210>0.9999999,1,IF($C210=0,0,SUM(F210:P210))) -> 1

Sheet 3-class mixed
B1: ="Operating characteristic curve for proportion defective Pd and marginally acceptable Pm with n="&n&" and c="&cm -> Operating characteristic curve for proportion defective Pd and marginally acceptable Pm with n=5 and c=1 | I1: ="Probability density function (PDF) for log counts. Distribution mean = "&FIXED(meanlog,2)&" and sigma = "&FIXED(sigma,2) -> Probability density function (PDF) for log counts. Distribution mean = -1.24 and sigma = 0.80 | P1: ="Operating characteristic curve scaled to relate log arithmetic mean count to m" -> Operating characteristic curve scaled to relate log arithmetic mean count to m | AH1: ="Operating characteristic curve scaled to relate mean log count to m" -> Operating characteristic curve scaled to relate mean log count to m
D10: 1
I18: INPUTS | L18: P(accept) | P18: ALTERNATIVE n AND c | S18: P(accept)
C19: Lot acceptance for Pd | I19: mean | J19: -1.235876037 | L19: Computed | M19: =$S$55*100 -> 5.000384735 | N19: % | P19: mean | Q19: =meanlog -> -1.235876037 | S19: Computed | T19: =S57*100 -> 5.000384735 | U19: % | Y19: Coordinates to place m
F20: P(accept) | I20: sigma | J20: 0.8 | L20: Desired | M20: 5 | N20: % | P20: sigma | Q20: =sigma -> 0.8 | S20: Target, left | T20: =computed_P -> 5.000384735 | U20: % | Y20: proportion | Z20: m
C21: Pd | D21: 20 | E21: % | F21: =$S$56*100 -> 16.471125 | G21: % | I21: m | J21: =-LOG(weight) -> -1.397940009 | P21: m | Q21: =+m -> -1.397940009 | Y21: 0 | Z21: =m -> -1.397940009 | AA21: 0
C22: Pm | D22: 25 | E22: % | I22: M | J22: 2 | P22: M | Q22: =+BigM -> 2 | Y22: =1.1*NORMDIST(meanlog,meanlog,sigma,FALSE) -> 0.5485456356 | Z22: =m -> -1.397940009 | AA22: 1
C23: actualPd | D23: =+Pd*100 -> 0.002617887142 | E23: % | I23: n | J23: 5 | P23: n | Q23: =n -> 5
C24: actualPm | D24: =+Pm*100 -> 65.73714513 | E24: % | F24: =+computed_P -> 5.000384735 | G24: % | I24: c | J24: 1 | P24: c | Q24: =cm -> 1 | Y24: Coordinates to place M
Y25: proportion | Z25: M
I26: amount | J26: 25 | K26: g | Y26: 0 | Z26: =BigM -> 2 | AA26: 0
B27: Sandbox: for your own calculations | Y27: =1.1*NORMDIST(meanlog,meanlog,sigma,FALSE) -> 0.5485456356 | Z27: =BigM -> 2 | AA27: 1
B28: FSO | C28: 2 | L28: P(reject) | M28: =100-computed_P -> 94.99961527 | N28: %
B29: complient | C29: =_xlfn.NORM.DIST(C28,meanlog,sigma,1) -> 0.9999738211 | D29: not comply | E29: =1-_xlfn.NORM.DIST(C28,meanlog,sigma,1) -> 2.617887142e-05 | Y29: Coordinates to place Pd
B30: % | C30: =100*C29 -> 99.99738211 | D30: % | E30: =100*E29 -> 0.002617887142 | I30: Means | P30: Implied Acceptance level | Y30: p accept
I31: Arithmetic (=Average) | L31: Geometric (=Median) | P31: Percentile | Q31: z-score | R31: Concentration at this percentile | Y31: x | Z31: y
I32: =10^(meanlog+0.5*sigma^2*LN(10)) -> 0.3169211281 | J32: cfu/g | L32: =10^meanlog -> 0.05809302124 | M32: cfu/g | P32: 99.9 | Q32: =+TINV(2*(1-P32/100),1000) -> 3.098402164 | S32: =+meanlog+Q32*sigma -> 1.242845695 | Y32: =+Pd -> 2.617887142e-05 | Z32: 0
I33: =+LOG(I32) -> -0.4990488069 | J33: log cfu/g | L33: =+LOG(L32) -> -1.235876037 | M33: log cfu/g | P33: FSO | Q33: P(exceedance) | S33: target level | Y33: =+Pd -> 2.617887142e-05 | Z33: =+desired_P -> 5
P34: =+S32 -> 1.242845695 | Q34: =1-_xlfn.NORM.DIST(P34,meanlog,sigma,1) -> 0.0009728360014 | S34: =+P34-Q32*sigma -> -1.235876037
B36: =IF(ABS(computed_P-desired_P)<0.001,"This sampling plan would provide "&FIXED(M28,0)&" % confidence that a lot of food containing a geometric mean concentration of "&FIXED(L32,2)&" cfu/g and an arithmetic mean concentration of "&FIXED(I32,2)&" cfu/g (having a","") -> This sampling plan would provide 95 % confidence that a lot of food containing a geometric mean concentration of 0.06 cfu/g and an arithmetic mean concentration of 0.32 cfu/g (having a
B37: =IF(ABS(computed_P-desired_P)<0.001,"standard deviation of "&FIXED(sigma,2)&" log cfu/g), would be rejected (i.e. either more than "& cm&" out of "&n&" samples having levels between ["&FIXED(m,1)&","&FIXED(BigM,1)&"] logs cfu/g or 1 or more samples higher than "&FIXED(BigM,1)&" log cfu/g)","") -> standard deviation of 0.80 log cfu/g), would be rejected (i.e. either more than 1 out of 5 samples having levels between [-1.4,2.0] logs cfu/g or 1 or more samples higher than 2.0 log cfu/g)
G52: 0 | H52: 1 | I52: 2 | J52: 3 | K52: 4 | L52: 5 | M52: 6 | N52: 7 | O52: 8 | P52: 9 | Q52: 10
B53: The calculations below are for the buttons above. Do not edit.
B54: geo mean | C54: arith mean | D54: pa | E54: pm | F54: pd | S54: P(accept)
B55: =meanlog -> -1.235876037 | C55: =+B55+0.5*LN(10)*sigma^2 -> -0.4990488069 | D55: =1-poissonlognormal(B55,sigma,10^-m) -> 0.3426023698 | E55: =NORMSDIST((BigM-B55)/sigma)-D55 -> 0.6573714513 | F55: =1-(D55+Pm) -> 2.617887142e-05 | G55: =IF(G$52>cm,0,(COMBIN(n,G$52))*$D55^(n-G$52)*$E55^G$52) -> 0.004720106673 | H55: 0.04528374067 | I55: 0 | J55: 0 | K55: 0 | L55: 0 | M55: 0 | N55: 0 | O55: 0 | P55: 0 | Q55: 0 | S55: =IF($D55>0.9999999,1,IF($D55=0,0,SUM(G55:Q55))) -> 0.05000384735 | U55: <= Used by macros for finding mean and n
D56: =1-(F56+E56) -> 0.55 | E56: =$D$22/100 -> 0.25 | F56: =D21/100 -> 0.2 | G56: 0.0503284375 | H56: 0.1143828125 | I56: 0 | J56: 0 | K56: 0 | L56: 0 | M56: 0 | N56: 0 | O56: 0 | P56: 0 | Q56: 0 | S56: =IF($D56>0.9999999,1,IF($D56=0,0,SUM(G56:Q56))) -> 0.16471125 | U56: <= Used in test against ICMSF tables
B57: =meanlog -> -1.235876037 | C57: =+B57+0.5*LN(10)*sigma^2 -> -0.4990488069 | D57: =1-poissonlognormal(B57,sigma,10^-m) -> 0.3426023698 | E57: =NORMSDIST((alternative_bigM-B57)/sigma)-D57 -> 0.6573714513 | F57: =1-(D57+E57) -> 2.617887142e-05 | G57: =IF(G$52>alternative_c,0,(COMBIN(alternative_n,G$52))*$D57^(alternative_n-G$52)*$E57^G$52) -> 0.004720106673 | H57: 0.04528374067 | I57: 0 | J57: 0 | K57: 0 | L57: 0 | M57: 0 | N57: 0 | O57: 0 | P57: 0 | Q57: 0 | S57: =IF($D57>0.9999999,1,IF($D57=0,0,SUM(G57:Q57))) -> 0.05000384735 | U57: <= Used by macro for finding m in equivalent performance criterion
B59: The calculations below are for the charts above. Do not edit.
B60: -3 | C60: =+B60+0.5*LN(10)*sigma^2 -> -2.26317277 | D60: =1-poissonlognormal(B60,sigma,10^-m) -> 0.9153911875 | E60: =NORMSDIST((BigM-B60)/sigma)-D60 -> 0.08460881231 | F60: =1-(E60+D60) -> 2.052263914e-10 | G60: =IF(G$52>cm,0,(COMBIN(n,G$52))*$D60^(n-G$52)*$E60^G$52) -> 0.6427374948 | H60: 0.2970383417 | I60: 0 | J60: 0 | K60: 0 | L60: 0 | M60: 0 | N60: 0 | O60: 0 | P60: 0 | Q60: 0 | S60: =IF($D60>0.9999999,1,IF($D60=0,0,SUM(G60:Q60))) -> 0.9397758364 | T60: =NORMDIST($B60,meanlog,sigma,FALSE) -> 0.04384260717
B61: -2.9 | C61: -2.16317277 | D61: 0.8998690288 | E61: 0.1001309708 | F61: =1-(E61+D61) -> 4.534180809e-10 | G61: 0.5900604739 | H61: 0.3282884852 | I61: 0 | J61: 0 | K61: 0 | L61: 0 | M61: 0 | N61: 0 | O61: 0 | P61: 0 | Q61: 0 | S61: 0.9183489591 | T61: 0.05730787107
B62: -2.8 | C62: -2.06317277 | D62: 0.8821631565 | E62: 0.1178368425 | F62: 9.865877004e-10 | G62: 0.5342500575 | H62: 0.3568180072 | I62: 0 | J62: 0 | K62: 0 | L62: 0 | M62: 0 | N62: 0 | O62: 0 | P62: 0 | Q62: 0 | S62: 0.8910680647 | T62: 0.07374733431
B63: -2.7 | C63: -1.96317277 | D63: 0.8621324853 | E63: 0.1378675126 | F63: 2.114216691e-09 | G63: 0.4762884484 | H63: 0.3808272206 | I63: 0 | J63: 0 | K63: 0 | L63: 0 | M63: 0 | N63: 0 | O63: 0 | P63: 0 | Q63: 0 | S63: 0.857115669 | T63: 0.09343132915
B64: -2.6 | C64: -1.86317277 | D64: 0.8396651828 | E64: 0.1603348128 | F64: 4.462172409e-09 | G64: 0.417379127 | H64: 0.3984945759 | I64: 0 | J64: 0 | K64: 0 | L64: 0 | M64: 0 | N64: 0 | O64: 0 | P64: 0 | Q64: 0 | S64: 0.8158737029 | T64: 0.1165340597
B65: -2.5 | C65: -1.76317277 | D65: 0.8146874207 | E65: 0.18531257 | F65: 9.275398782e-09 | G65: 0.35888479 | H65: 0.408167974 | I65: 0 | J65: 0 | K65: 0 | L65: 0 | M65: 0 | N65: 0 | O65: 0 | P65: 0 | Q65: 0 | S65: 0.7670527641 | T65: 0.1430959605
B66: -2.4 | C66: -1.66317277 | D66: 0.7871718292 | E66: 0.2128281519 | F66: 1.898956248e-08 | G66: 0.3022370608 | H66: 0.4085801389 | I66: 0 | J66: 0 | K66: 0 | L66: 0 | M66: 0 | N66: 0 | O66: 0 | P66: 0 | Q66: 0 | S66: 0.7108171997 | T66: 0.1729880171
B67: -2.3 | C67: -1.56317277 | D67: 0.7571450883 | E67: 0.2428548735 | F67: 3.82913411e-08 | G67: 0.2488258789 | H67: 0.3990554668 | I67: 0 | J67: 0 | K67: 0 | L67: 0 | M67: 0 | N67: 0 | O67: 0 | P67: 0 | Q67: 0 | S67: 0.6478813457 | T67: 0.2058822073
B68: -2.2 | C68: -1.46317277 | D68: 0.724694059 | E68: 0.2753058649 | F68: 7.604960517e-08 | G68: 0.1998819166 | H68: 0.3796682424 | I68: 0 | J68: 0 | K68: 0 | L68: 0 | M68: 0 | N68: 0 | O68: 0 | P68: 0 | Q68: 0 | S68: 0.5795501591 | T68: 0.2412324678
B69: -2.1 | C69: -1.36317277 | D69: 0.689969866 | E69: 0.3100299852 | F69: 1.487688732e-07 | G69: 0.1563689853 | H69: 0.3513129819 | I69: 0 | J69: 0 | K69: 0 | L69: 0 | M69: 0 | N69: 0 | O69: 0 | P69: 0 | Q69: 0 | S69: 0.5076819673 | T69: 0.2782702975
B70: -2 | C70: -1.26317277 | D70: 0.6531894074 | E70: 0.3468103059 | F70: 2.866515719e-07 | G70: =IF(G$52>cm,0,(COMBIN(n,G$52))*$D70^(n-G$52)*$E70^G$52) -> 0.1189037814 | H70: 0.3156592586 | I70: 0 | J70: 0 | K70: 0 | L70: 0 | M70: 0 | N70: 0 | O70: 0 | P70: 0 | Q70: 0 | S70: 0.4345630401 | T70: 0.316018199
B71: -1.9 | C71: -1.16317277 | D71: 0.6146338897 | E71: 0.3853655663 | F71: 5.440422756e-07 | G71: 0.08771674622 | H71: 0.2749849475 | I71: 0 | J71: 0 | K71: 0 | L71: 0 | M71: 0 | N71: 0 | O71: 0 | P71: 0 | Q71: 0 | S71: 0.3627016937 | T71: 0.3533226539
B72: -1.8 | C72: -1.06317277 | D72: 0.5746441524 | E72: 0.4253548305 | F72: 1.017083243e-06 | G72: 0.06266065904 | H72: 0.2319088595 | I72: 0 | J72: 0 | K72: 0 | L72: 0 | M72: 0 | N72: 0 | O72: 0 | P72: 0 | Q72: 0 | S72: 0.2945695186 | T72: 0.3889063396
B73: -1.7 | C73: -0.9631727702 | D73: 0.5336127636 | E73: 0.4663853634 | F73: 1.872992006e-06 | G73: 0.04326443587 | H73: 0.18906875 | I73: 0 | J73: 0 | K73: 0 | L73: 0 | M73: 0 | N73: 0 | O73: 0 | P73: 0 | Q73: 0 | S73: 0.2323331859 | T73: 0.421437047
B74: -1.6 | C74: -0.8631727702 | D74: 0.4919730996 | E74: 0.5080235027 | F74: 3.397673125e-06 | G74: 0.02882084993 | H74: 0.1488055866 | I74: 0 | J74: 0 | K74: 0 | L74: 0 | M74: 0 | N74: 0 | O74: 0 | P74: 0 | Q74: 0 | S74: 0.1776264365 | T74: 0.4496085345
B75: -1.5 | C75: -0.7631727702 | D75: 0.450185863 | E75: 0.5498080654 | F75: 6.071623911e-06 | G75: 0.01849095172 | H75: 0.1129141897 | I75: 0 | J75: 0 | K75: 0 | L75: 0 | M75: 0 | N75: 0 | O75: 0 | P75: 0 | Q75: 0 | S75: 0.1314051415 | T75: 0.4722266921
B76: -1.4 | C76: -0.6631727702 | D76: 0.408723713 | E76: 0.5912655985 | F76: 1.068852577e-05 | G76: 0.01140641517 | H76: 0.08250342073 | I76: 0 | J76: 0 | K76: 0 | L76: 0 | M76: 0 | N76: 0 | O76: 0 | P76: 0 | Q76: 0 | S76: 0.0939098359 | T76: 0.4882931875
B77: -1.3 | C77: -0.5631727702 | D77: 0.3680548538 | E77: 0.6319266094 | F77: 1.853673785e-05 | G77: 0.0067540263 | H77: 0.05798115275 | I77: 0 | J77: 0 | K77: 0 | L77: 0 | M77: 0 | N77: 0 | O77: 0 | P77: 0 | Q77: 0 | S77: 0.06473517905 | T77: 0.4970784639
B78: -1.2 | C78: -0.4631727702 | D78: 0.3286265406 | E78: 0.6713417882 | F78: 3.167124183e-05 | G78: 0.003832773678 | H78: 0.03914932023 | I78: 0 | J78: 0 | K78: 0 | L78: 0 | M78: 0 | N78: 0 | O78: 0 | P78: 0 | Q78: 0 | S78: 0.04298209391 | T78: 0.4981766625
B79: -1.1 | C79: -0.3631727702 | D79: 0.2908494918 | E79: 0.7090971958 | F79: 5.331234975e-05 | G79: 0.002081332888 | H79: 0.02537166741 | I79: 0 | J79: 0 | K79: 0 | L79: 0 | M79: 0 | N79: 0 | O79: 0 | P79: 0 | Q79: 0 | S79: 0.0274530003 | T79: 0.4915367104
B80: -1 | C80: -0.2631727702 | D80: 0.2550841482 | E80: 0.7448274345 | F80: 8.84172852e-05 | G80: =IF(G$52>cm,0,(COMBIN(n,G$52))*$D80^(n-G$52)*$E80^G$52) -> 0.001079984083 | H80: 0.01576738067 | I80: 0 | J80: 0 | K80: 0 | L80: 0 | M80: 0 | N80: 0 | O80: 0 | P80: 0 | Q80: 0 | S80: 0.01684736476 | T80: 0.4774662594
B81: -0.9 | C81: -0.1631727702 | D81: 0.2216295821 | E81: 0.7782259372 | F81: 0.0001444807259 | G81: 0.0005347350329 | H81: 0.009388292578 | I81: 0 | J81: 0 | K81: 0 | L81: 0 | M81: 0 | N81: 0 | O81: 0 | P81: 0 | Q81: 0 | S81: 0.009923027611 | T81: 0.4566080507
B82: -0.8 | C82: -0.06317277024 | D82: 0.1907156628 | E82: 0.8090517081 | F82: 0.000232629079 | G82: 0.0002523084569 | H82: 0.005351699622 | I82: 0 | J82: 0 | K82: 0 | L82: 0 | M82: 0 | N82: 0 | O82: 0 | P82: 0 | Q82: 0 | S82: 0.005604008079 | T82: 0.4298912351
B83: -0.7 | C83: 0.03682722976 | D83: 0.1624988323 | E83: 0.8371320892 | F83: 0.0003690784543 | G83: 0.0001133055604 | H83: 0.002918535448 | I83: 0 | J83: 0 | K83: 0 | L83: 0 | M83: 0 | N83: 0 | O83: 0 | P83: 0 | Q83: 0 | S83: 0.003031841009 | T83: 0.3984627843
B84: -0.6 | C84: 0.1368272298 | D84: 0.1370615726 | E84: 0.8623614024 | F84: 0.0005770250424 | G84: 4.837027455e-05 | H84: 0.001521675879 | I84: 0 | J84: 0 | K84: 0 | L84: 0 | M84: 0 | N84: 0 | O84: 0 | P84: 0 | Q84: 0 | S84: 0.001570046153 | T84: 0.3636060399
B85: -0.5 | C85: 0.2368272298 | D85: 0.1144153768 | E85: 0.8846955979 | F85: 0.0008890252991 | G85: 1.96074888e-05 | H85: 0.000758056282 | I85: 0 | J85: 0 | K85: 0 | L85: 0 | M85: 0 | N85: 0 | O85: 0 | P85: 0 | Q85: 0 | S85: 0.0007776637708 | T85: 0.3266544365
B86: -0.4 | C86: 0.3368272298 | D86: 0.09450679883 | E86: 0.9041433031 | F86: 0.001349898032 | G86: 7.539026398e-06 | H86: 0.000360628035 | I86: 0 | J86: 0 | K86: 0 | L86: 0 | M86: 0 | N86: 0 | O86: 0 | P86: 0 | Q86: 0 | S86: 0.0003681670614 | T86: 0.2889084085
B87: -0.3 | C87: 0.4368272298 | D87: 0.07722596693 | E87: 0.9207538956 | F87: 0.00202013749 | G87: 2.746735076e-06 | H87: 0.0001637446005 | I87: 0 | J87: 0 | K87: 0 | L87: 0 | M87: 0 | N87: 0 | O87: 0 | P87: 0 | Q87: 0 | S87: 0.0001664913356 | T87: 0.2515625287
B88: -0.2 | C88: 0.5368272298 | D88: 0.06241682533 | E88: 0.9346034114 | F88: 0.002979763235 | G88: 9.473454597e-07 | H88: 7.092577152e-05 | I88: 0 | J88: 0 | K88: 0 | L88: 0 | M88: 0 | N88: 0 | O88: 0 | P88: 0 | Q88: 0 | S88: 7.187311698e-05 | T88: 0.2156482161
B89: -0.1 | C89: 0.6368272298 | D89: 0.04988831945 | E89: 0.9457792322 | F89: 0.004332448363 | G89: 3.090255388e-07 | H89: 2.929242155e-05 | I89: 0 | J89: 0 | K89: 0 | L89: 0 | M89: 0 | N89: 0 | O89: 0 | P89: 0 | Q89: 0 | S89: 2.960144709e-05 | T89: 0.1819952013
B90: 0 | C90: 0.7368272298 | D90: 0.03942575983 | E90: 0.9543645748 | F90: 0.006209665326 | G90: =IF(G$52>cm,0,(COMBIN(n,G$52))*$D90^(n-G$52)*$E90^G$52) -> 9.525775892e-08 | H90: 1.152934414e-05 | I90: 0 | J90: 0 | K90: 0 | L90: 0 | M90: 0 | N90: 0 | O90: 0 | P90: 0 | Q90: 0 | S90: 1.16246019e-05 | T90: 0.1512126598
B91: 0.1 | C91: 0.8368272298 | D91: 0.03080168175 | E91: 0.9604238432 | F91: 0.008774475096 | G91: 2.772503777e-08 | H91: 4.322456732e-06 | I91: 0 | J91: 0 | K91: 0 | L91: 0 | M91: 0 | N91: 0 | O91: 0 | P91: 0 | Q91: 0 | S91: 4.350181769e-06 | T91: 0.1236888402
B92: 0.2 | C92: =+B92+0.5*LN(10)*sigma^2 -> 0.9368272298 | D92: 0.02378564484 | E92: =NORMSDIST((BigM-B92)/sigma)-D92 -> 0.9639898825 | F92: 0.01222447266 | G92: 7.613329898e-09 | H92: 1.542773602e-06 | I92: 0 | J92: 0 | K92: 0 | L92: 0 | M92: 0 | N92: 0 | O92: 0 | P92: 0 | Q92: 0 | S92: 1.550386932e-06 | T92: =NORMDIST($B92,meanlog,sigma,FALSE) -> 0.09960635103
B93: 0.3 | C93: 1.03682723 | D93: 0.01815257192 | E93: 0.9650541216 | F93: 0.01679330645 | G93: 1.97101909e-09 | H93: 5.239312934e-07 | I93: 0 | J93: 0 | K93: 0 | L93: 0 | M93: 0 | N93: 0 | O93: 0 | P93: 0 | Q93: 0 | S93: 5.259023125e-07 | T93: 0.07896919164
B94: 0.4 | C94: 1.13682723 | D94: 0.0136893912 | E94: 0.9635604768 | F94: 0.02275013195 | G94: 4.807515277e-10 | H94: 1.691942192e-07 | I94: 0 | J94: 0 | K94: 0 | L94: 0 | M94: 0 | N94: 0 | O94: 0 | P94: 0 | Q94: 0 | S94: 1.696749707e-07 | T94: 0.06163714342
B95: 0.5 | C95: 1.23682723 | D95: 0.01019990288 | E95: 0.9594037354 | F95: 0.03039636177 | G95: 1.104028242e-10 | H95: 5.192249533e-08 | I95: 0 | J95: 0 | K95: 0 | L95: 0 | M95: 0 | N95: 0 | O95: 0 | P95: 0 | Q95: 0 | S95: 5.203289815e-08 | T95: 0.04736324641
B96: 0.6 | C96: 1.33682723 | D96: 0.007507927832 | E96: 0.9524329153 | F96: 0.04005915686 | G96: 2.385615496e-11 | H96: 1.513159671e-08 | I96: 0 | J96: 0 | K96: 0 | L96: 0 | M96: 0 | N96: 0 | O96: 0 | P96: 0 | Q96: 0 | S96: 1.515545286e-08 | T96: 0.03583064042
B97: 0.7 | C97: 1.43682723 | D97: 0.005458902603 | E97: 0.942459818 | F97: 0.05208127942 | G97: 4.847599462e-12 | H97: 4.184602694e-09 | I97: 0 | J97: 0 | K97: 0 | L97: 0 | M97: 0 | N97: 0 | O97: 0 | P97: 0 | Q97: 0 | S97: 4.189450293e-09 | T97: 0.02668589835
B98: 0.8 | C98: 1.53682723 | D98: 0.003920157555 | E98: 0.9292726412 | F98: 0.06680720127 | G98: 9.258009256e-13 | H98: 1.097304712e-09 | I98: 0 | J98: 0 | K98: 0 | L98: 0 | M98: 0 | N98: 0 | O98: 0 | P98: 0 | Q98: 0 | S98: 1.098230513e-09 | T98: 0.0195669544
B99: 0.9 | C99: 1.63682723 | D99: 0.002780153901 | E99: 0.9126541237 | F99: 0.08456572235 | G99: 1.660902693e-13 | H99: 2.726161475e-10 | I99: 0 | J99: 0 | K99: 0 | L99: 0 | M99: 0 | N99: 0 | O99: 0 | P99: 0 | Q99: 0 | S99: 2.727822377e-10 | T99: 0.01412468552
B100: 1 | C100: 1.73682723 | D100: 0.001946963732 | E100: 0.8924032626 | F100: 0.1056497737 | G100: =IF(G$52>cm,0,(COMBIN(n,G$52))*$D100^(n-G$52)*$E100^G$52) -> 2.797623764e-14 | H100: 6.411543608e-11 | I100: 0 | J100: 0 | K100: 0 | L100: 0 | M100: 0 | N100: 0 | O100: 0 | P100: 0 | Q100: 0 | S100: 6.414341231e-11 | T100: 0.01003803002
B101: 1.1 | C101: 1.83682723 | D101: 0.00134626132 | E101: 0.8683592215 | F101: 0.1302945171 | G101: 4.422286143e-15 | H101: 1.426221231e-11 | I101: 0 | J101: 0 | K101: 0 | L101: 0 | M101: 0 | N101: 0 | O101: 0 | P101: 0 | Q101: 0 | S101: 1.426663459e-11 | T101: 0.007023156434
B102: 1.2 | C102: 1.93682723 | D102: 0.0009190607159 | E102: 0.8404256854 | F102: 0.1586552539 | G102: 6.557239037e-16 | H102: 2.998100134e-12 | I102: 0 | J102: 0 | K102: 0 | L102: 0 | M102: 0 | N102: 0 | O102: 0 | P102: 0 | Q102: 0 | S102: 2.998755858e-12 | T102: 0.004837604309
B103: 1.3 | C103: 2.03682723 | D103: 0.0006193913798 | E103: 0.8085936558 | F103: 0.1907869529 | G103: 9.116450628e-17 | H103: 5.950602787e-13 | I103: 0 | J103: 0 | K103: 0 | L103: 0 | M103: 0 | N103: 0 | O103: 0 | P103: 0 | Q103: 0 | S103: 5.951514432e-13 | T103: 0.003280518503
B104: 1.4 | C104: 2.13682723 | D104: 0.0004120565724 | E104: 0.7729605911 | F104: 0.2266273524 | G104: 1.187911886e-17 | H104: 1.114178411e-13 | I104: 0 | J104: 0 | K104: 0 | L104: 0 | M104: 0 | N104: 0 | O104: 0 | P104: 0 | Q104: 0 | S104: 1.114297202e-13 | T104: 0.002190124429
B105: 1.5 | C105: 2.23682723 | D105: 0.0002705737127 | E105: 0.7337438972 | F105: 0.265985529 | G105: 1.450200347e-18 | H105: 1.966332286e-14 | I105: 0 | J105: 0 | K105: 0 | L105: 0 | M105: 0 | N105: 0 | O105: 0 | P105: 0 | Q105: 0 | S105: 1.966477306e-14 | T105: 0.001439491935
B106: 1.6 | C106: 2.33682723 | D106: 0.0001753554889 | E106: 0.6912871058 | F106: 0.3085375387 | G106: 1.658046946e-19 | H106: 3.268179633e-15 | I106: 0 | J106: 0 | K106: 0 | L106: 0 | M106: 0 | N106: 0 | O106: 0 | P106: 0 | Q106: 0 | S106: 3.268345437e-15 | T106: 0.0009314591888
B107: 1.7 | C107: 2.43682723 | D107: 0.0001121573126 | E107: 0.6460576094 | F107: 0.3538302333 | G107: 1.774753224e-20 | H107: 5.111538419e-16 | I107: 0 | J107: 0 | K107: 0 | L107: 0 | M107: 0 | N107: 0 | O107: 0 | P107: 0 | Q107: 0 | S107: 5.111715894e-16 | T107: 0.0005933795507
B108: 1.8 | C108: 2.53682723 | D108: 7.079150922e-05 | E108: 0.5986355342 | F108: 0.4012936743 | G108: 1.777893968e-21 | H108: 7.517218637e-17 | I108: 0 | J108: 0 | K108: 0 | L108: 0 | M108: 0 | N108: 0 | O108: 0 | P108: 0 | Q108: 0 | S108: 7.517396426e-17 | T108: 0.0003721478105
B109: 1.9 | C109: 2.63682723 | D109: 4.409124015e-05 | E109: 0.5496941336 | F109: 0.4502617752 | G109: 1.666332142e-22 | H109: 1.038724472e-17 | I109: 0 | J109: 0 | K109: 0 | L109: 0 | M109: 0 | N109: 0 | O109: 0 | P109: 0 | Q109: 0 | S109: 1.038741136e-17 | T109: 0.0002297801505
B110: 2 | C110: 2.73682723 | D110: 2.709658161e-05 | E110: 0.4999729034 | F110: 0.5 | G110: =IF(G$52>cm,0,(COMBIN(n,G$52))*$D110^(n-G$52)*$E110^G$52) -> 1.460738675e-23 | H110: 1.347641867e-18 | I110: 0 | J110: 0 | K110: 0 | L110: 0 | M110: 0 | N110: 0 | O110: 0 | P110: 0 | Q110: 0 | S110: 1.347656474e-18 | T110: 0.0001396766144
B111: 2.1 | C111: 2.83682723 | D111: 1.643018336e-05 | E111: 0.450245345 | F111: 0.5497382248 | G111: 1.197325001e-24 | H111: 1.640547754e-19 | I111: 0 | J111: 0 | K111: 0 | L111: 0 | M111: 0 | N111: 0 | O111: 0 | P111: 0 | Q111: 0 | S111: 1.640559727e-19 | T111: 8.35889825e-05
B112: 2.2 | C112: 2.93682723 | D112: 9.829056137e-06 | E112: 0.4012838453 | F112: 0.5987063257 | G112: 9.174007217e-26 | H112: 1.872703157e-20 | I112: 0 | J112: 0 | K112: 0 | L112: 0 | M112: 0 | N112: 0 | O112: 0 | P112: 0 | Q112: 0 | S112: 1.872712331e-20 | T112: 4.924799186e-05
B113: 2.3 | C113: 3.03682723 | D113: 5.800955838e-06 | E113: 0.3538244324 | F113: 0.6461697667 | G113: 6.56897783e-27 | H113: 2.003346446e-21 | I113: 0 | J113: 0 | K113: 0 | L113: 0 | M113: 0 | N113: 0 | O113: 0 | P113: 0 | Q113: 0 | S113: 2.003353015e-21 | T113: 2.856552187e-05
B114: 2.4 | C114: 3.13682723 | D114: 3.377407574e-06 | E114: 0.3085341613 | F114: 0.6914624613 | G114: 4.394579899e-28 | H114: 2.007276282e-22 | I114: 0 | J114: 0 | K114: 0 | L114: 0 | M114: 0 | N114: 0 | O114: 0 | P114: 0 | Q114: 0 | S114: 2.007280676e-22 | T114: 1.631210273e-05
B115: 2.5 | C115: 3.23682723 | D115: 1.93973468e-06 | E115: 0.2659835893 | F115: 0.734014471 | G115: 2.746070308e-29 | H115: 1.882756556e-23 | I115: 0 | J115: 0 | K115: 0 | L115: 0 | M115: 0 | N115: 0 | O115: 0 | P115: 0 | Q115: 0 | S115: 1.882759302e-23 | T115: 9.170476063e-06
B116: 2.6 | C116: 3.33682723 | D116: 1.098893951e-06 | E116: 0.2266262535 | F116: 0.7733726476 | G116: 1.602429434e-30 | H116: 1.652354983e-24 | I116: 0 | J116: 0 | K116: 0 | L116: 0 | M116: 0 | N116: 0 | O116: 0 | P116: 0 | Q116: 0 | S116: 1.652356586e-24 | T116: 5.075606725e-06
B117: 2.7 | C117: 3.43682723 | D117: 6.140508342e-07 | E117: 0.1907863388 | F117: 0.8092130471 | G117: 8.730148446e-32 | H117: 1.356233854e-25 | I117: 0 | J117: 0 | K117: 0 | L117: 0 | M117: 0 | N117: 0 | O117: 0 | P117: 0 | Q117: 0 | S117: 1.356234727e-25 | T117: 2.765656223e-06
B118: 2.8 | C118: 3.53682723 | D118: 3.384303022e-07 | E118: 0.1586549155 | F118: 0.8413447461 | G118: 4.439624188e-33 | H118: 1.040639972e-26 | I118: 0 | J118: 0 | K118: 0 | L118: 0 | M118: 0 | N118: 0 | O118: 0 | P118: 0 | Q118: 0 | S118: 1.040640416e-26 | T118: 1.483619645e-06
B119: 2.9 | C119: 3.63682723 | D119: 1.839638789e-07 | E119: 0.1302943332 | F119: 0.8697054829 | G119: 2.106991535e-34 | H119: 7.461493493e-28 | I119: 0 | J119: 0 | K119: 0 | L119: 0 | M119: 0 | N119: 0 | O119: 0 | P119: 0 | Q119: 0 | S119: 7.4614956e-28 | T119: 7.835398769e-07
B120: 3 | C120: 3.73682723 | D120: 9.862273043e-08 | E120: 0.105649675 | F120: 0.8943502263 | G120: =IF(G$52>cm,0,(COMBIN(n,G$52))*$D120^(n-G$52)*$E120^G$52) -> 9.330074472e-36 | H120: 4.99742469e-29 | I120: 0 | J120: 0 | K120: 0 | L120: 0 | M120: 0 | N120: 0 | O120: 0 | P120: 0 | Q120: 0 | S120: 4.997425623e-29 | T120: 4.073932054e-07
B121: 3.1 | C121: 3.83682723 | D121: 5.214180143e-08 | E121: 0.08456567021 | F121: 0.9154342776 | G121: 3.854163703e-37 | H121: 3.125418835e-30 | I121: 0 | J121: 0 | K121: 0 | L121: 0 | M121: 0 | N121: 0 | O121: 0 | P121: 0 | Q121: 0 | S121: 3.125419221e-30 | T121: 2.085357929e-07
B122: 3.2 | C122: 3.93682723 | D122: 2.718589531e-08 | E122: 0.06680717408 | F122: 0.9331927987 | G122: 1.484971781e-38 | H122: 1.824599984e-31 | I122: 0 | J122: 0 | K122: 0 | L122: 0 | M122: 0 | N122: 0 | O122: 0 | P122: 0 | Q122: 0 | S122: 1.824600133e-31 | T122: 1.050900461e-07
B123: 3.3 | C123: 4.03682723 | D123: 1.397766081e-08 | E123: 0.05208126544 | F123: 0.9479187206 | G123: 5.335467595e-40 | H123: 9.940071802e-33 | I123: 0 | J123: 0 | K123: 0 | L123: 0 | M123: 0 | N123: 0 | O123: 0 | P123: 0 | Q123: 0 | S123: 9.940072335e-33 | T123: 5.213828071e-08
B124: 3.4 | C124: =+B124+0.5*LN(10)*sigma^2 -> 4.13682723 | D124: =1-poissonlognormal(B124,sigma,10^-m) -> 7.086695786e-09 | E124: =NORMSDIST((BigM-B124)/sigma)-D124 -> 0.04005914978 | F124: 0.9599408431 | G124: 1.787388461e-41 | H124: 5.051808645e-34 | I124: 0 | J124: 0 | K124: 0 | L124: 0 | M124: 0 | N124: 0 | O124: 0 | P124: 0 | Q124: 0 | S124: =IF($D124>0.9999999,1,IF($D124=0,0,SUM(G124:Q124))) -> 5.051808824e-34 | T124: =NORMDIST($B124,meanlog,sigma,FALSE) -> 2.546630747e-08
B125: 3.5 | C125: 4.23682723 | D125: 3.542886984e-09 | E125: 0.03039635822 | F125: =1-(E125+D125) -> 0.9696036382 | G125: 5.581957094e-43 | H125: 2.394532597e-35 | I125: 0 | J125: 0 | K125: 0 | L125: 0 | M125: 0 | N125: 0 | O125: 0 | P125: 0 | Q125: 0 | S125: 2.394532653e-35 | T125: 1.224586308e-08
B126: 3.6 | C126: 4.33682723 | D126: 1.746470857e-09 | E126: 0.0227501302 | F126: 0.9772498681 | G126: 1.624825458e-44 | H126: 1.058276769e-36 | I126: 0 | J126: 0 | K126: 0 | L126: 0 | M126: 0 | N126: 0 | O126: 0 | P126: 0 | Q126: 0 | S126: 1.058276786e-36 | T126: 5.797315939e-09
B127: 3.7 | C127: 4.43682723 | D127: 8.488727499e-10 | E127: 0.0167933056 | F127: 0.9832066936 | G127: 4.407709477e-46 | H127: 4.359900365e-38 | I127: 0 | J127: 0 | K127: 0 | L127: 0 | M127: 0 | N127: 0 | O127: 0 | P127: 0 | Q127: 0 | S127: 4.35990041e-38 | T127: 2.701958581e-09
B128: 3.8 | C128: 4.53682723 | D128: 4.068068105e-10 | E128: 0.01222447225 | F128: 0.9877755273 | G128: 1.114143356e-47 | H128: 1.673990477e-39 | I128: 0 | J128: 0 | K128: 0 | L128: 0 | M128: 0 | N128: 0 | O128: 0 | P128: 0 | Q128: 0 | S128: 1.673990488e-39 | T128: 1.239779796e-09
B129: 3.9 | C129: 4.63682723 | D129: 1.922143555e-10 | E129: 0.008774474904 | F129: 0.9912255249 | G129: 2.623790162e-49 | H129: 5.988725676e-41 | I129: 0 | J129: 0 | K129: 0 | L129: 0 | M129: 0 | N129: 0 | O129: 0 | P129: 0 | Q129: 0 | S129: 5.988725702e-41 | T129: 5.600471228e-10
B130: 4 | C130: 4.73682723 | D130: 8.954126329e-11 | E130: 0.006209665236 | F130: 0.9937903347 | G130: =IF(G$52>cm,0,(COMBIN(n,G$52))*$D130^(n-G$52)*$E130^G$52) -> 5.755937727e-51 | H130: 1.995864537e-42 | I130: 0 | J130: 0 | K130: 0 | L130: 0 | M130: 0 | N130: 0 | O130: 0 | P130: 0 | Q130: 0 | S130: 1.995864543e-42 | T130: 2.490684597e-10
B131: 4.1 | C131: 4.83682723 | D131: 4.112354901e-11 | E131: 0.004332448322 | F131: 0.9956675516 | G131: 1.17612353e-52 | H131: 6.195348572e-44 | I131: 0 | J131: 0 | K131: 0 | L131: 0 | M131: 0 | N131: 0 | O131: 0 | P131: 0 | Q131: 0 | S131: 6.195348584e-44 | T131: 1.090503461e-10
B132: 4.2 | C132: 4.93682723 | D132: 1.861955035e-11 | E132: 0.002979763216 | F132: 0.9970202368 | G132: 2.237927143e-54 | H132: 1.790723422e-45 | I132: 0 | J132: 0 | K132: 0 | L132: 0 | M132: 0 | N132: 0 | O132: 0 | P132: 0 | Q132: 0 | S132: 1.790723424e-45 | T132: 4.700559024e-11
B133: 4.3 | C133: 5.03682723 | D133: 8.31101854e-12 | E133: 0.002020137482 | F133: 0.9979798625 | G133: 3.965256225e-56 | H133: 4.819122161e-47 | I133: 0 | J133: 0 | K133: 0 | L133: 0 | M133: 0 | N133: 0 | O133: 0 | P133: 0 | Q133: 0 | S133: 4.819122165e-47 | T133: 1.994739194e-11
B134: 4.4 | C134: 5.13682723 | D134: 3.656963621e-12 | E134: 0.001349898028 | F134: 0.998650102 | G134: 6.540383288e-58 | H134: 1.207128566e-48 | I134: 0 | J134: 0 | K134: 0 | L134: 0 | M134: 0 | N134: 0 | O134: 0 | P134: 0 | Q134: 0 | S134: 1.207128567e-48 | T134: 8.333681159e-12
B135: 4.5 | C135: 5.23682723 | D135: 1.586064613e-12 | E135: 0.0008890252975 | F135: 0.9991109747 | G135: 1.003701049e-59 | H135: 2.812986357e-50 | I135: 0 | J135: 0 | K135: 0 | L135: 0 | M135: 0 | N135: 0 | O135: 0 | P135: 0 | Q135: 0 | S135: 2.812986358e-50 | T135: 3.427691984e-12
B136: 4.6 | C136: 5.33682723 | D136: 6.780132011e-13 | E136: 0.0005770250417 | F136: 0.999422975 | G136: 1.432817077e-61 | H136: 6.097015016e-52 | I136: 0 | J136: 0 | K136: 0 | L136: 0 | M136: 0 | N136: 0 | O136: 0 | P136: 0 | Q136: 0 | S136: 6.097015017e-52 | T136: 1.38797245e-12
B137: 4.7 | C137: 5.43682723 | D137: 2.857714065e-13 | E137: 0.000369078454 | F137: 0.9996309215 | G137: 1.90587258e-63 | H137: 1.230732833e-53 | I137: 0 | J137: 0 | K137: 0 | L137: 0 | M137: 0 | N137: 0 | O137: 0 | P137: 0 | Q137: 0 | S137: 1.230732833e-53 | T137: 5.533170482e-13
B138: 4.8 | C138: 5.53682723 | D138: 1.184607967e-13 | E138: 0.0002326290789 | F138: 0.9997673709 | G138: 2.332777115e-65 | H138: 2.290512164e-55 | I138: 0 | J138: 0 | K138: 0 | L138: 0 | M138: 0 | N138: 0 | O138: 0 | P138: 0 | Q138: 0 | S138: 2.290512164e-55 | T138: 2.171607864e-13
B139: 4.9 | C139: 5.63682723 | D139: 4.840572387e-14 | E139: 0.0001444807258 | F139: 0.9998555193 | G139: 2.657563163e-67 | H139: 3.966128632e-57 | I139: 0 | J139: 0 | K139: 0 | L139: 0 | M139: 0 | N139: 0 | O139: 0 | P139: 0 | Q139: 0 | S139: 3.966128632e-57 | T139: 8.3907911e-14
B140: 5 | C140: 5.73682723 | D140: 1.931788063e-14 | E140: 8.841728518e-05 | F140: 0.9999115827 | G140: 2.690279427e-69 | H140: 6.156658897e-59 | I140: 0 | J140: 0 | K140: 0 | L140: 0 | M140: 0 | N140: 0 | O140: 0 | P140: 0 | Q140: 0 | S140: 6.156658897e-59 | T140: 3.191821242e-14
B142: Calculations for 3-dimensional OC graph
V143: Table for OC graph
C144: pa | D144: pm | E144: pd | Z144: Pm
C145: =1-(D145+E145) -> 0 | D145: 1 | E145: 0 | F145: =IF(G$52>cm,0,(COMBIN(n,G$52))*$C145^(n-G$52)*$D145^G$52) -> 0 | G145: 0 | H145: 0 | I145: 0 | J145: 0 | K145: 0 | L145: 0 | M145: 0 | N145: 0 | O145: 0 | P145: 0 | S145: =IF($C145>0.9999999,1,IF($C145=0,0,SUM(F145:P145))) -> 0 | V145: Pd | W145: 0 | X145: 0 | Y145: 0.1 | Z145: 0.2 | AA145: 0.3 | AB145: 0.4 | AC145: 0.5 | AD145: 0.6 | AE145: 0.7 | AF145: 0.8 | AG145: 0.9 | AH145: 1
C146: =1-(D146+E146) -> 0 | D146: 0.9 | E146: 0.1 | F146: =IF(G$52>cm,0,(COMBIN(n,G$52))*$C146^(n-G$52)*$D146^G$52) -> 0 | G146: 0 | H146: 0 | I146: 0 | J146: 0 | K146: 0 | L146: 0 | M146: 0 | N146: 0 | O146: 0 | P146: 0 | S146: 0 | V146: 1 | X146: =+S200 -> 4e-25
C147: 0.1 | D147: 0.9 | E147: 0 | F147: =IF(G$52>cm,0,(COMBIN(n,G$52))*$C147^(n-G$52)*$D147^G$52) -> 1e-05 | G147: 0.00045 | H147: 0 | I147: 0 | J147: 0 | K147: 0 | L147: 0 | M147: 0 | N147: 0 | O147: 0 | P147: 0 | S147: 0.00046 | V147: 0.9 | X147: 9.999999e-06 | Y147: =+S190 -> 0
C148: 0 | D148: 0.8 | E148: 0.2 | F148: =IF(G$52>cm,0,(COMBIN(n,G$52))*$C148^(n-G$52)*$D148^G$52) -> 0 | G148: 0 | H148: 0 | I148: 0 | J148: 0 | K148: 0 | L148: 0 | M148: 0 | N148: 0 | O148: 0 | P148: 0 | S148: 0 | V148: 0.8 | X148: 0.000319999992 | Y148: 6e-05 | Z148: =+S181 -> 0
C149: 0.1 | D149: 0.8 | E149: 0.1 | F149: =IF(G$52>cm,0,(COMBIN(n,G$52))*$C149^(n-G$52)*$D149^G$52) -> 1e-05 | G149: 0.0004 | H149: 0 | I149: 0 | J149: 0 | K149: 0 | L149: 0 | M149: 0 | N149: 0 | O149: 0 | P149: 0 | S149: 0.00041 | V149: 0.7 | X149: 0.002429999973 | Y149: 0.00112 | Z149: 0.00011 | AA149: =+S173 -> 0
C150: 0.2 | D150: 0.8 | E150: 0 | F150: =IF(G$52>cm,0,(COMBIN(n,G$52))*$C150^(n-G$52)*$D150^G$52) -> 0.00032 | G150: 0.0064 | H150: 0 | I150: 0 | J150: 0 | K150: 0 | L150: 0 | M150: 0 | N150: 0 | O150: 0 | P150: 0 | S150: 0.00672 | V150: 0.6 | X150: 0.01023999994 | Y150: 0.00648 | Z150: 0.00192 | AA150: 0.00016 | AB150: =+S166 -> 0
C151: 0 | D151: 0.7 | E151: 0.3 | F151: =IF(G$52>cm,0,(COMBIN(n,G$52))*$C151^(n-G$52)*$D151^G$52) -> 0 | G151: 0 | H151: 0 | I151: 0 | J151: 0 | K151: 0 | L151: 0 | M151: 0 | N151: 0 | O151: 0 | P151: 0 | S151: 0 | V151: 0.5 | X151: 0.03124999988 | Y151: 0.02304 | Z151: 0.01053 | AA151: 0.00272 | AB151: 0.00021 | AC151: =+S160 -> 0
C152: 0.1 | D152: 0.7 | E152: 0.2 | F152: =IF(G$52>cm,0,(COMBIN(n,G$52))*$C152^(n-G$52)*$D152^G$52) -> 1e-05 | G152: 0.00035 | H152: 0 | I152: 0 | J152: 0 | K152: 0 | L152: 0 | M152: 0 | N152: 0 | O152: 0 | P152: 0 | S152: 0.00036 | V152: 0.4 | X152: 0.07775999978 | Y152: 0.0625 | Z152: 0.03584 | AA152: 0.01458 | AB152: 0.00352 | AC152: 0.00026 | AD152: =+S155 -> 0
C153: 0.2 | D153: 0.7 | E153: 0.1 | F153: =IF(G$52>cm,0,(COMBIN(n,G$52))*$C153^(n-G$52)*$D153^G$52) -> 0.00032 | G153: 0.0056 | H153: 0 | I153: 0 | J153: 0 | K153: 0 | L153: 0 | M153: 0 | N153: 0 | O153: 0 | P153: 0 | S153: 0.00592 | V153: 0.3 | X153: 0.1680699997 | Y153: 0.14256 | Z153: 0.09375 | AA153: 0.04864 | AB153: 0.01863 | AC153: 0.00432 | AD153: =+S156 -> 0.00031 | AE153: =+S151 -> 0
C154: 0.3 | D154: 0.7 | E154: 0 | F154: =IF(G$52>cm,0,(COMBIN(n,G$52))*$C154^(n-G$52)*$D154^G$52) -> 0.00243 | G154: 0.02835 | H154: 0 | I154: 0 | J154: 0 | K154: 0 | L154: 0 | M154: 0 | N154: 0 | O154: 0 | P154: 0 | S154: 0.03078 | V154: 0.2 | X154: 0.3276799995 | Y154: 0.28812 | Z154: 0.20736 | AA154: 0.125 | AB154: 0.06144 | AC154: 0.02268 | AD154: =+S157 -> 0.00512 | AE154: =+S152 -> 0.00036 | AF154: =+S148 -> 0
C155: 0 | D155: 0.6 | E155: 0.4 | F155: =IF(G$52>cm,0,(COMBIN(n,G$52))*$C155^(n-G$52)*$D155^G$52) -> 0 | G155: 0 | H155: 0 | I155: 0 | J155: 0 | K155: 0 | L155: 0 | M155: 0 | N155: 0 | O155: 0 | P155: 0 | S155: 0 | V155: 0.1 | X155: =+S209 -> 0.5904899993 | Y155: =+S198 -> 0.53248 | Z155: =+S188 -> 0.40817 | AA155: =+S179 -> 0.27216 | AB155: 0.15625 | AC155: 0.07424 | AD155: =+S158 -> 0.02673 | AE155: =+S153 -> 0.00592 | AF155: =+S149 -> 0.00041 | AG155: =+S146 -> 0
C156: 0.1 | D156: 0.6 | E156: 0.3 | F156: =IF(G$52>cm,0,(COMBIN(n,G$52))*$C156^(n-G$52)*$D156^G$52) -> 1e-05 | G156: 0.0003 | H156: 0 | I156: 0 | J156: 0 | K156: 0 | L156: 0 | M156: 0 | N156: 0 | O156: 0 | P156: 0 | S156: 0.00031 | V156: 0 | X156: =+S210 -> 0.999999999 | Y156: =+S199 -> 0.91854 | Z156: =+S189 -> 0.73728 | AA156: =+S180 -> 0.52822 | AB156: 0.33696 | AC156: 0.1875 | AD156: =+S159 -> 0.08704 | AE156: =+S154 -> 0.03078 | AF156: =+S150 -> 0.00672 | AG156: =+S147 -> 0.00046 | AH156: =+S145 -> 0
C157: 0.2 | D157: 0.6 | E157: 0.2 | F157: =IF(G$52>cm,0,(COMBIN(n,G$52))*$C157^(n-G$52)*$D157^G$52) -> 0.00032 | G157: 0.0048 | H157: 0 | I157: 0 | J157: 0 | K157: 0 | L157: 0 | M157: 0 | N157: 0 | O157: 0 | P157: 0 | S157: 0.00512
C158: 0.3 | D158: 0.6 | E158: 0.1 | F158: =IF(G$52>cm,0,(COMBIN(n,G$52))*$C158^(n-G$52)*$D158^G$52) -> 0.00243 | G158: 0.0243 | H158: 0 | I158: 0 | J158: 0 | K158: 0 | L158: 0 | M158: 0 | N158: 0 | O158: 0 | P158: 0 | S158: 0.02673
C159: 0.4 | D159: 0.6 | E159: 0 | F159: =IF(G$52>cm,0,(COMBIN(n,G$52))*$C159^(n-G$52)*$D159^G$52) -> 0.01024 | G159: 0.0768 | H159: 0 | I159: 0 | J159: 0 | K159: 0 | L159: 0 | M159: 0 | N159: 0 | O159: 0 | P159: 0 | S159: 0.08704
C160: 0 | D160: 0.5 | E160: 0.5 | F160: =IF(G$52>cm,0,(COMBIN(n,G$52))*$C160^(n-G$52)*$D160^G$52) -> 0 | G160: 0 | H160: 0 | I160: 0 | J160: 0 | K160: 0 | L160: 0 | M160: 0 | N160: 0 | O160: 0 | P160: 0 | S160: 0
C161: 0.1 | D161: 0.5 | E161: 0.4 | F161: =IF(G$52>cm,0,(COMBIN(n,G$52))*$C161^(n-G$52)*$D161^G$52) -> 1e-05 | G161: 0.00025 | H161: 0 | I161: 0 | J161: 0 | K161: 0 | L161: 0 | M161: 0 | N161: 0 | O161: 0 | P161: 0 | S161: 0.00026
C162: 0.2 | D162: 0.5 | E162: 0.3 | F162: =IF(G$52>cm,0,(COMBIN(n,G$52))*$C162^(n-G$52)*$D162^G$52) -> 0.00032 | G162: 0.004 | H162: 0 | I162: 0 | J162: 0 | K162: 0 | L162: 0 | M162: 0 | N162: 0 | O162: 0 | P162: 0 | S162: 0.00432
C163: 0.3 | D163: 0.5 | E163: 0.2 | F163: =IF(G$52>cm,0,(COMBIN(n,G$52))*$C163^(n-G$52)*$D163^G$52) -> 0.00243 | G163: 0.02025 | H163: 0 | I163: 0 | J163: 0 | K163: 0 | L163: 0 | M163: 0 | N163: 0 | O163: 0 | P163: 0 | S163: 0.02268
C164: 0.4 | D164: 0.5 | E164: 0.1 | F164: =IF(G$52>cm,0,(COMBIN(n,G$52))*$C164^(n-G$52)*$D164^G$52) -> 0.01024 | G164: 0.064 | H164: 0 | I164: 0 | J164: 0 | K164: 0 | L164: 0 | M164: 0 | N164: 0 | O164: 0 | P164: 0 | S164: 0.07424
C165: 0.5 | D165: 0.5 | E165: 0 | F165: =IF(G$52>cm,0,(COMBIN(n,G$52))*$C165^(n-G$52)*$D165^G$52) -> 0.03125 | G165: 0.15625 | H165: 0 | I165: 0 | J165: 0 | K165: 0 | L165: 0 | M165: 0 | N165: 0 | O165: 0 | P165: 0 | S165: 0.1875
C166: 0 | D166: 0.4 | E166: 0.6 | F166: =IF(G$52>cm,0,(COMBIN(n,G$52))*$C166^(n-G$52)*$D166^G$52) -> 0 | G166: 0 | H166: 0 | I166: 0 | J166: 0 | K166: 0 | L166: 0 | M166: 0 | N166: 0 | O166: 0 | P166: 0 | S166: 0
C167: 0.1 | D167: 0.4 | E167: 0.5 | F167: =IF(G$52>cm,0,(COMBIN(n,G$52))*$C167^(n-G$52)*$D167^G$52) -> 1e-05 | G167: 0.0002 | H167: 0 | I167: 0 | J167: 0 | K167: 0 | L167: 0 | M167: 0 | N167: 0 | O167: 0 | P167: 0 | S167: 0.00021
C168: 0.2 | D168: 0.4 | E168: 0.4 | F168: =IF(G$52>cm,0,(COMBIN(n,G$52))*$C168^(n-G$52)*$D168^G$52) -> 0.00032 | G168: 0.0032 | H168: 0 | I168: 0 | J168: 0 | K168: 0 | L168: 0 | M168: 0 | N168: 0 | O168: 0 | P168: 0 | S168: 0.00352
C169: 0.3 | D169: 0.4 | E169: 0.3 | F169: =IF(G$52>cm,0,(COMBIN(n,G$52))*$C169^(n-G$52)*$D169^G$52) -> 0.00243 | G169: 0.0162 | H169: 0 | I169: 0 | J169: 0 | K169: 0 | L169: 0 | M169: 0 | N169: 0 | O169: 0 | P169: 0 | S169: 0.01863
C170: 0.4 | D170: 0.4 | E170: 0.2 | F170: =IF(G$52>cm,0,(COMBIN(n,G$52))*$C170^(n-G$52)*$D170^G$52) -> 0.01024 | G170: 0.0512 | H170: 0 | I170: 0 | J170: 0 | K170: 0 | L170: 0 | M170: 0 | N170: 0 | O170: 0 | P170: 0 | S170: 0.06144
C171: 0.5 | D171: 0.4 | E171: 0.1 | F171: =IF(G$52>cm,0,(COMBIN(n,G$52))*$C171^(n-G$52)*$D171^G$52) -> 0.03125 | G171: 0.125 | H171: 0 | I171: 0 | J171: 0 | K171: 0 | L171: 0 | M171: 0 | N171: 0 | O171: 0 | P171: 0 | S171: 0.15625
C172: 0.6 | D172: 0.4 | E172: 0 | F172: =IF(G$52>cm,0,(COMBIN(n,G$52))*$C172^(n-G$52)*$D172^G$52) -> 0.07776 | G172: 0.2592 | H172: 0 | I172: 0 | J172: 0 | K172: 0 | L172: 0 | M172: 0 | N172: 0 | O172: 0 | P172: 0 | S172: 0.33696
C173: 0 | D173: 0.3 | E173: 0.7 | F173: =IF(G$52>cm,0,(COMBIN(n,G$52))*$C173^(n-G$52)*$D173^G$52) -> 0 | G173: 0 | H173: 0 | I173: 0 | J173: 0 | K173: 0 | L173: 0 | M173: 0 | N173: 0 | O173: 0 | P173: 0 | S173: 0
C174: 0.1 | D174: 0.3 | E174: 0.6 | F174: =IF(G$52>cm,0,(COMBIN(n,G$52))*$C174^(n-G$52)*$D174^G$52) -> 1e-05 | G174: 0.00015 | H174: 0 | I174: 0 | J174: 0 | K174: 0 | L174: 0 | M174: 0 | N174: 0 | O174: 0 | P174: 0 | S174: 0.00016
C175: 0.2 | D175: 0.3 | E175: 0.5 | F175: =IF(G$52>cm,0,(COMBIN(n,G$52))*$C175^(n-G$52)*$D175^G$52) -> 0.00032 | G175: 0.0024 | H175: 0 | I175: 0 | J175: 0 | K175: 0 | L175: 0 | M175: 0 | N175: 0 | O175: 0 | P175: 0 | S175: 0.00272
C176: 0.3 | D176: 0.3 | E176: 0.4 | F176: =IF(G$52>cm,0,(COMBIN(n,G$52))*$C176^(n-G$52)*$D176^G$52) -> 0.00243 | G176: 0.01215 | H176: 0 | I176: 0 | J176: 0 | K176: 0 | L176: 0 | M176: 0 | N176: 0 | O176: 0 | P176: 0 | S176: 0.01458
C177: 0.4 | D177: 0.3 | E177: 0.3 | F177: =IF(G$52>cm,0,(COMBIN(n,G$52))*$C177^(n-G$52)*$D177^G$52) -> 0.01024 | G177: 0.0384 | H177: 0 | I177: 0 | J177: 0 | K177: 0 | L177: 0 | M177: 0 | N177: 0 | O177: 0 | P177: 0 | S177: 0.04864
C178: 0.5 | D178: 0.3 | E178: 0.2 | F178: =IF(G$52>cm,0,(COMBIN(n,G$52))*$C178^(n-G$52)*$D178^G$52) -> 0.03125 | G178: 0.09375 | H178: 0 | I178: 0 | J178: 0 | K178: 0 | L178: 0 | M178: 0 | N178: 0 | O178: 0 | P178: 0 | S178: 0.125
C179: 0.6 | D179: 0.3 | E179: 0.1 | F179: =IF(G$52>cm,0,(COMBIN(n,G$52))*$C179^(n-G$52)*$D179^G$52) -> 0.07776 | G179: 0.1944 | H179: 0 | I179: 0 | J179: 0 | K179: 0 | L179: 0 | M179: 0 | N179: 0 | O179: 0 | P179: 0 | S179: 0.27216
C180: 0.7 | D180: 0.3 | E180: 0 | F180: =IF(G$52>cm,0,(COMBIN(n,G$52))*$C180^(n-G$52)*$D180^G$52) -> 0.16807 | G180: 0.36015 | H180: 0 | I180: 0 | J180: 0 | K180: 0 | L180: 0 | M180: 0 | N180: 0 | O180: 0 | P180: 0 | S180: 0.52822
C181: 0 | D181: 0.2 | E181: 0.8 | F181: =IF(G$52>cm,0,(COMBIN(n,G$52))*$C181^(n-G$52)*$D181^G$52) -> 0 | G181: 0 | H181: 0 | I181: 0 | J181: 0 | K181: 0 | L181: 0 | M181: 0 | N181: 0 | O181: 0 | P181: 0 | S181: 0
C182: 0.1 | D182: 0.2 | E182: 0.7 | F182: =IF(G$52>cm,0,(COMBIN(n,G$52))*$C182^(n-G$52)*$D182^G$52) -> 1e-05 | G182: 0.0001 | H182: 0 | I182: 0 | J182: 0 | K182: 0 | L182: 0 | M182: 0 | N182: 0 | O182: 0 | P182: 0 | S182: 0.00011
C183: 0.2 | D183: 0.2 | E183: 0.6 | F183: =IF(G$52>cm,0,(COMBIN(n,G$52))*$C183^(n-G$52)*$D183^G$52) -> 0.00032 | G183: 0.0016 | H183: 0 | I183: 0 | J183: 0 | K183: 0 | L183: 0 | M183: 0 | N183: 0 | O183: 0 | P183: 0 | S183: 0.00192
C184: 0.3 | D184: 0.2 | E184: 0.5 | F184: =IF(G$52>cm,0,(COMBIN(n,G$52))*$C184^(n-G$52)*$D184^G$52) -> 0.00243 | G184: 0.0081 | H184: 0 | I184: 0 | J184: 0 | K184: 0 | L184: 0 | M184: 0 | N184: 0 | O184: 0 | P184: 0 | S184: 0.01053
C185: 0.4 | D185: 0.2 | E185: 0.4 | F185: =IF(G$52>cm,0,(COMBIN(n,G$52))*$C185^(n-G$52)*$D185^G$52) -> 0.01024 | G185: 0.0256 | H185: 0 | I185: 0 | J185: 0 | K185: 0 | L185: 0 | M185: 0 | N185: 0 | O185: 0 | P185: 0 | S185: 0.03584
C186: 0.5 | D186: 0.2 | E186: 0.3 | F186: =IF(G$52>cm,0,(COMBIN(n,G$52))*$C186^(n-G$52)*$D186^G$52) -> 0.03125 | G186: 0.0625 | H186: 0 | I186: 0 | J186: 0 | K186: 0 | L186: 0 | M186: 0 | N186: 0 | O186: 0 | P186: 0 | S186: 0.09375
C187: 0.6 | D187: 0.2 | E187: 0.2 | F187: =IF(G$52>cm,0,(COMBIN(n,G$52))*$C187^(n-G$52)*$D187^G$52) -> 0.07776 | G187: 0.1296 | H187: 0 | I187: 0 | J187: 0 | K187: 0 | L187: 0 | M187: 0 | N187: 0 | O187: 0 | P187: 0 | S187: 0.20736
C188: 0.7 | D188: 0.2 | E188: 0.1 | F188: =IF(G$52>cm,0,(COMBIN(n,G$52))*$C188^(n-G$52)*$D188^G$52) -> 0.16807 | G188: 0.2401 | H188: 0 | I188: 0 | J188: 0 | K188: 0 | L188: 0 | M188: 0 | N188: 0 | O188: 0 | P188: 0 | S188: 0.40817
C189: 0.8 | D189: 0.2 | E189: 0 | F189: =IF(G$52>cm,0,(COMBIN(n,G$52))*$C189^(n-G$52)*$D189^G$52) -> 0.32768 | G189: 0.4096 | H189: 0 | I189: 0 | J189: 0 | K189: 0 | L189: 0 | M189: 0 | N189: 0 | O189: 0 | P189: 0 | S189: 0.73728
C190: 0 | D190: 0.1 | E190: 0.9 | F190: =IF(G$52>cm,0,(COMBIN(n,G$52))*$C190^(n-G$52)*$D190^G$52) -> 0 | G190: 0 | H190: 0 | I190: 0 | J190: 0 | K190: 0 | L190: 0 | M190: 0 | N190: 0 | O190: 0 | P190: 0 | S190: 0
C191: 0.1 | D191: 0.1 | E191: 0.8 | F191: =IF(G$52>cm,0,(COMBIN(n,G$52))*$C191^(n-G$52)*$D191^G$52) -> 1e-05 | G191: 5e-05 | H191: 0 | I191: 0 | J191: 0 | K191: 0 | L191: 0 | M191: 0 | N191: 0 | O191: 0 | P191: 0 | S191: 6e-05
C192: 0.2 | D192: 0.1 | E192: 0.7 | F192: =IF(G$52>cm,0,(COMBIN(n,G$52))*$C192^(n-G$52)*$D192^G$52) -> 0.00032 | G192: 0.0008 | H192: 0 | I192: 0 | J192: 0 | K192: 0 | L192: 0 | M192: 0 | N192: 0 | O192: 0 | P192: 0 | S192: 0.00112
C193: 0.3 | D193: 0.1 | E193: 0.6 | F193: =IF(G$52>cm,0,(COMBIN(n,G$52))*$C193^(n-G$52)*$D193^G$52) -> 0.00243 | G193: 0.00405 | H193: 0 | I193: 0 | J193: 0 | K193: 0 | L193: 0 | M193: 0 | N193: 0 | O193: 0 | P193: 0 | S193: 0.00648
C194: 0.4 | D194: 0.1 | E194: 0.5 | F194: =IF(G$52>cm,0,(COMBIN(n,G$52))*$C194^(n-G$52)*$D194^G$52) -> 0.01024 | G194: 0.0128 | H194: 0 | I194: 0 | J194: 0 | K194: 0 | L194: 0 | M194: 0 | N194: 0 | O194: 0 | P194: 0 | S194: 0.02304
C195: 0.5 | D195: 0.1 | E195: 0.4 | F195: =IF(G$52>cm,0,(COMBIN(n,G$52))*$C195^(n-G$52)*$D195^G$52) -> 0.03125 | G195: 0.03125 | H195: 0 | I195: 0 | J195: 0 | K195: 0 | L195: 0 | M195: 0 | N195: 0 | O195: 0 | P195: 0 | S195: 0.0625
C196: 0.6 | D196: 0.1 | E196: 0.3 | F196: =IF(G$52>cm,0,(COMBIN(n,G$52))*$C196^(n-G$52)*$D196^G$52) -> 0.07776 | G196: 0.0648 | H196: 0 | I196: 0 | J196: 0 | K196: 0 | L196: 0 | M196: 0 | N196: 0 | O196: 0 | P196: 0 | S196: 0.14256
C197: 0.7 | D197: 0.1 | E197: 0.2 | F197: =IF(G$52>cm,0,(COMBIN(n,G$52))*$C197^(n-G$52)*$D197^G$52) -> 0.16807 | G197: 0.12005 | H197: 0 | I197: 0 | J197: 0 | K197: 0 | L197: 0 | M197: 0 | N197: 0 | O197: 0 | P197: 0 | S197: 0.28812
C198: 0.8 | D198: 0.1 | E198: 0.1 | F198: =IF(G$52>cm,0,(COMBIN(n,G$52))*$C198^(n-G$52)*$D198^G$52) -> 0.32768 | G198: 0.2048 | H198: 0 | I198: 0 | J198: 0 | K198: 0 | L198: 0 | M198: 0 | N198: 0 | O198: 0 | P198: 0 | S198: 0.53248
C199: 0.9 | D199: 0.1 | E199: 0 | F199: =IF(G$52>cm,0,(COMBIN(n,G$52))*$C199^(n-G$52)*$D199^G$52) -> 0.59049 | G199: 0.32805 | H199: 0 | I199: 0 | J199: 0 | K199: 0 | L199: 0 | M199: 0 | N199: 0 | O199: 0 | P199: 0 | S199: 0.91854
C200: -1e-05 | D200: 1e-05 | E200: 1 | F200: =IF(G$52>cm,0,(COMBIN(n,G$52))*$C200^(n-G$52)*$D200^G$52) -> -1e-25 | G200: 5e-25 | H200: 0 | I200: 0 | J200: 0 | K200: 0 | L200: 0 | M200: 0 | N200: 0 | O200: 0 | P200: 0 | S200: 4e-25
C201: 0.09999 | D201: 1e-05 | E201: 0.9 | F201: =IF(G$52>cm,0,(COMBIN(n,G$52))*$C201^(n-G$52)*$D201^G$52) -> 9.995001e-06 | G201: 4.9980003e-09 | H201: 0 | I201: 0 | J201: 0 | K201: 0 | L201: 0 | M201: 0 | N201: 0 | O201: 0 | P201: 0 | S201: 9.999999e-06
C202: 0.19999 | D202: 1e-05 | E202: 0.8 | F202: =IF(G$52>cm,0,(COMBIN(n,G$52))*$C202^(n-G$52)*$D202^G$52) -> 0.000319920008 | G202: 7.99840012e-08 | H202: 0 | I202: 0 | J202: 0 | K202: 0 | L202: 0 | M202: 0 | N202: 0 | O202: 0 | P202: 0 | S202: 0.000319999992
C203: 0.29999 | D203: 1e-05 | E203: 0.7 | F203: =IF(G$52>cm,0,(COMBIN(n,G$52))*$C203^(n-G$52)*$D203^G$52) -> 0.002429595027 | G203: 4.049460027e-07 | H203: 0 | I203: 0 | J203: 0 | K203: 0 | L203: 0 | M203: 0 | N203: 0 | O203: 0 | P203: 0 | S203: 0.002429999973
C204: 0.39999 | D204: 1e-05 | E204: 0.6 | F204: =IF(G$52>cm,0,(COMBIN(n,G$52))*$C204^(n-G$52)*$D204^G$52) -> 0.01023872006 | G204: 1.279872005e-06 | H204: 0 | I204: 0 | J204: 0 | K204: 0 | L204: 0 | M204: 0 | N204: 0 | O204: 0 | P204: 0 | S204: 0.01023999994
C205: 0.49999 | D205: 1e-05 | E205: 0.5 | F205: =IF(G$52>cm,0,(COMBIN(n,G$52))*$C205^(n-G$52)*$D205^G$52) -> 0.03124687512 | G205: 3.124750007e-06 | H205: 0 | I205: 0 | J205: 0 | K205: 0 | L205: 0 | M205: 0 | N205: 0 | O205: 0 | P205: 0 | S205: 0.03124999988
C206: 0.59999 | D206: 1e-05 | E206: 0.4 | F206: =IF(G$52>cm,0,(COMBIN(n,G$52))*$C206^(n-G$52)*$D206^G$52) -> 0.07775352022 | G206: 6.479568011e-06 | H206: 0 | I206: 0 | J206: 0 | K206: 0 | L206: 0 | M206: 0 | N206: 0 | O206: 0 | P206: 0 | S206: 0.07775999978
C207: 0.69999 | D207: 1e-05 | E207: 0.3 | F207: =IF(G$52>cm,0,(COMBIN(n,G$52))*$C207^(n-G$52)*$D207^G$52) -> 0.1680579953 | G207: 1.200431401e-05 | H207: 0 | I207: 0 | J207: 0 | K207: 0 | L207: 0 | M207: 0 | N207: 0 | O207: 0 | P207: 0 | S207: 0.1680699997
C208: 0.79999 | D208: 1e-05 | E208: 0.2 | F208: =IF(G$52>cm,0,(COMBIN(n,G$52))*$C208^(n-G$52)*$D208^G$52) -> 0.3276595205 | G208: 2.047897602e-05 | H208: 0 | I208: 0 | J208: 0 | K208: 0 | L208: 0 | M208: 0 | N208: 0 | O208: 0 | P208: 0 | S208: 0.3276799995
C209: 0.89999 | D209: 1e-05 | E209: 0.1 | F209: =IF(G$52>cm,0,(COMBIN(n,G$52))*$C209^(n-G$52)*$D209^G$52) -> 0.5904571957 | G209: 3.280354202e-05 | H209: 0 | I209: 0 | J209: 0 | K209: 0 | L209: 0 | M209: 0 | N209: 0 | O209: 0 | P209: 0 | S209: =IF($C209>0.9999999,1,IF($C209=0,0,SUM(F209:P209))) -> 0.5904899993
C210: =1-(D210+E210) -> 0.99999 | D210: 1e-05 | E210: 0 | F210: =IF(G$52>cm,0,(COMBIN(n,G$52))*$C210^(n-G$52)*$D210^G$52) -> 0.999950001 | G210: 4.999800003e-05 | H210: 0 | I210: 0 | J210: 0 | K210: 0 | L210: 0 | M210: 0 | N210: 0 | O210: 0 | P210: 0 | S210: =IF($C210>0.9999999,1,IF($C210=0,0,SUM(F210:P210))) -> 0.999999999

Sheet 2-class enrich sensspec
B1: ="Operating characteristic curve for proportion defective, with n="&n&" and c="&cm -> Operating characteristic curve for proportion defective, with n=30 and c=0 | I1: ="Probability density function (PDF) for log counts. Distribution mean = "&FIXED(meanlog,2)&" and sigma = "&FIXED(sigma,2) -> Probability density function (PDF) for log counts. Distribution mean = -2.31 and sigma = 0.80 | P1: ="Operating characteristic curve scaled to relate log arithmetic mean count to m" -> Operating characteristic curve scaled to relate log arithmetic mean count to m | AH1: ="Operating characteristic curve scaled to relate mean log count to m" -> Operating characteristic curve scaled to relate mean log count to m
D10: 1
I18: INPUTS | L18: P(accept)
C19: Lot acceptance for Pd | I19: mean | J19: -2.312061503 | L19: Computed | M19: =$F$53*100 -> 5.000764557 | N19: %
F20: P(accept) | I20: sigma | J20: 0.8 | L20: Desired | M20: 5 | N20: %
C21: Pd | D21: 20 | E21: % | F21: =$F$54*100 -> 0.1237940039 | G21: % | I21: m | J21: =-LOG(weight) -> -1
C22: actualPd | D22: =+Pd*100 -> 9.502924054 | E22: % | F22: =+computed_P -> 5.000764557 | G22: % | I22: n | J22: 30 | R22: Ideal method | S22: =F55*100 -> 1.25629121 | T22: %
I23: c | J23: 0 | R23: Actual test | S23: =computed_P -> 5.000764557 | T23: %
I25: amount | J25: 10 | K25: g | P25: specificity and sensitivity of the test are assumed to be fixed values
P26: and not dependant on the concentration of the organisms.
B27: Sandbox: for your own calculations | I27: sensitivity | J27: 0.7
B28: FSO | C28: -1 | I28: specificity | J28: 1 | L28: P(reject) | M28: =100-computed_P -> 94.99923544 | N28: %
B29: complient | C29: =_xlfn.NORM.DIST(C28,meanlog,sigma,1) -> 0.9495054084 | D29: not comply | E29: =1-_xlfn.NORM.DIST(C28,meanlog,sigma,1) -> 0.05049459157
B30: % | C30: =100*C29 -> 94.95054084 | D30: % | E30: =100*E29 -> 5.049459157 | I30: Means | P30: Implied Acceptance level
J31: Arithmetic (=Average) | M31: Geometric (=Median) | P31: Percentile | Q31: z-score | R31: Concentration at this percentile
J32: =10^(meanlog+0.5*sigma^2*LN(10)) -> 0.0265929016 | K32: cfu/g | M32: =10^meanlog -> 0.004874594531 | N32: cfu/g | P32: 99.9 | Q32: =+TINV(2*(1-P32/100),1000) -> 3.098402164 | S32: =+meanlog+Q32*sigma -> 0.166660228
I33: one cfu in | J33: =1/J32 -> 37.60401986 | K33: grams | L33: one cfu in | M33: =1/M32 -> 205.1452677 | N33: grams | P33: FSO | Q33: P(exceedance) | S33: target level
J34: =+LOG(J32) -> -1.575234273 | K34: log cfu/g | M34: =+LOG(M32) -> -2.312061503 | N34: log cfu/g | P34: =+S32 -> 0.166660228 | Q34: =1-_xlfn.NORM.DIST(P34,meanlog,sigma,1) -> 0.0009728360014 | S34: =+P34-Q32*sigma -> -2.312061503
B36: =IF(ABS(computed_P-desired_P)<0.001,"This sampling plan would provide "&FIXED(M28,0)&" % confidence that a lot of food containing a geometric mean concentration of 1 organism in "&FIXED(M33,1)&" g and an arithmetic mean concentration of 1 organism in "&FIXED(J33,1)&" g","") -> This sampling plan would provide 95 % confidence that a lot of food containing a geometric mean concentration of 1 organism in 205.1 g and an arithmetic mean concentration of 1 organism in 37.6 g
B37: =IF(ABS(computed_P-desired_P)<0.001,"(and having a standard deviation of "&FIXED(sigma,2)&" log cfu/g), would be rejected (i.e. more than "&cm&" out of "&n&" samples of "&weight&" grams giving detection of the organism) for method with sensitivity="&sens&" and selectivity="&spec,"") -> (and having a standard deviation of 0.80 log cfu/g), would be rejected (i.e. more than 0 out of 30 samples of 10 grams giving detection of the organism) for method with sensitivity=0.7 and selectivity=1
B51: The calculations below are for the buttons above. Do not edit.
B52: geo mean | C52: arith mean | D52: pa | E52: pd | F52: P(accept)
B53: =meanlog -> -2.312061503 | C53: =+B53+0.5*LN(10)*sigma^2 -> -1.575234273 | D53: =1-poissonlognormal(meanlog,sigma,10^-m) -> 0.8642439421 | E53: =(1-D53)*sens+D53*(1-spec) -> 0.09502924054 | F53: =+BINOMDIST(cm,n,$E53,1) -> 0.05000764557 | H53: <= Used by macros for finding mean and n
D54: =1-E54 -> 0.8 | E54: =$D$21/100 -> 0.2 | F54: =+BINOMDIST(cm,n,$E54,1) -> 0.001237940039 | H54: <= Used in test against ICMSF tables
B55: =meanlog -> -2.312061503 | C55: =+B55+0.5*LN(10)*sigma^2 -> -1.575234273 | D55: =1-poissonlognormal(meanlog,sigma,10^-m) -> 0.8642439421 | E55: =1-D55 -> 0.1357560579 | F55: =+BINOMDIST(cm,n,$E55,1) -> 0.0125629121 | H55: <= For ideal method
B57: The calculations below are for the charts above. Do not edit.
B58: -6 | C58: =+B58+0.5*LN(10)*sigma^2 -> -5.26317277 | D58: =1-poissonlognormal(B58,sigma,10^-m) -> 0.9999454896 | E58: =(1-D58)*sens+D58*(1-spec) -> 3.815727983e-05 | F58: =+BINOMDIST(cm,n,$E58,1) -> 0.9988559147 | G58: =NORMDIST($B58,meanlog,sigma,FALSE) -> 1.210985985e-05 | I58: =1-poissonlognormal(B58,sigma,10^-m) -> 0.9999454896 | J58: =1-I58 -> 5.451039975e-05 | K58: =+BINOMDIST(cm,n,$J58,1) -> 0.9983659799 | P58: =+B58+0.5*LN(10)*sigma^2 -> -5.26317277
B59: -5.9 | C59: -5.16317277 | D59: 0.9999313895 | E59: 4.802735518e-05 | F59: 0.9985601823 | G59: 2.13798283e-05 | I59: 0.9999313895 | J59: 6.86105074e-05 | K59: 0.9979437312 | P59: -5.16317277
B60: -5.8 | C60: -5.06317277 | D60: 0.9999136466 | E60: 6.044740282e-05 | F60: 0.9981881665 | G60: 3.716066335e-05 | I60: 0.9999136466 | J60: 8.63534326e-05 | K60: 0.9974126382 | P60: -5.06317277
B61: -5.7 | C61: -4.96317277 | D61: 0.9998913222 | E61: 7.607446318e-05 | F61: 0.9977202818 | G61: 6.358824684e-05 | I61: 0.9998913222 | J61: 0.0001086778045 | K61: 0.9967447984 | P61: -4.96317277
B62: -5.6 | C62: -4.86317277 | D62: 0.9998632373 | E62: 9.573389693e-05 | F62: 0.9971319663 | G62: 0.0001071234112 | I62: 0.9998632373 | J62: 0.0001367627099 | K62: 0.9959052446 | P62: -4.86317277
B63: -5.5 | C63: -4.76317277 | D63: 0.9998279115 | E63: 0.0001204619737 | F63: 0.996392446 | G63: 0.00017766672 | I63: 0.9998279115 | J63: 0.0001720885339 | K63: 0.9948502056 | P63: -4.76317277
B64: -5.4 | C64: -4.66317277 | D64: 0.9997834872 | E64: 0.0001515589561 | F64: 0.9954632092 | G64: 0.0002900961227 | I64: 0.9997834872 | J64: 0.0002165127944 | K64: 0.9935249669 | P64: -4.66317277
B65: -5.3 | C65: -4.56317277 | D65: 0.9997276355 | E65: 0.0001906551214 | F65: 0.9942961302 | G65: 0.0004663284507 | I65: 0.9997276355 | J65: 0.0002723644591 | K65: 0.9918612537 | P65: -4.56317277
B66: -5.2 | C66: -4.46317277 | D66: 0.9996574391 | E66: 0.0002397926649 | F66: 0.9928311769 | G66: 0.0007379994696 | I66: 0.9996574391 | J66: 0.0003425609498 | K66: 0.9897740551 | P66: -4.46317277
B67: -5.1 | C67: -4.36317277 | D67: 0.9995692472 | E67: 0.0003015269926 | F67: 0.9909936287 | G67: 0.001149831853 | I67: 0.9995692472 | J67: 0.0004307528465 | K67: 0.9871578044 | P67: -4.36317277
B68: -5 | C68: -4.26317277 | D68: 0.9994584978 | E68: 0.000379051545 | F68: 0.9886907339 | G68: 0.001763708346 | I68: 0.9994584978 | J68: 0.0005415022071 | K68: 0.9838818442 | P68: -4.26317277
B69: -4.9 | C69: -4.16317277 | D69: 0.9993194986 | E69: 0.0004763509685 | F69: 0.9858077395 | G69: 0.002663381344 | I69: 0.9993194986 | J69: 0.0006805013835 | K69: 0.9797851257 | P69: -4.16317277
B70: -4.8 | C70: -4.06317277 | D70: 0.9991451598 | E70: 0.0005983881436 | F70: 0.982203249 | G70: 0.003959625252 | I70: 0.9991451598 | J70: 0.0008548402052 | K70: 0.9746701493 | L70: Coordinates to place m | P70: -4.06317277
B71: -4.7 | C71: -3.96317277 | D71: 0.9989266697 | E71: 0.0007513312438 | F71: 0.9777039063 | G71: 0.005795474055 | I71: 0.9989266697 | J71: 0.001073330348 | K71: 0.968296242 | L71: proportion | N71: m | P71: -3.96317277
B72: -4.6 | C72: -3.86317277 | D72: 0.9986531035 | E72: 0.0009428275505 | F72: 0.9720984742 | G72: 0.00835099061 | I72: 0.9986531035 | J72: 0.001346896501 | K72: 0.9603724208 | L72: 0 | M72: 0 | N72: =m -> -1 | P72: -3.86317277
B73: -4.5 | C73: -3.76317277 | D73: 0.9983109556 | E73: 0.001182331104 | F73: 0.9651314993 | G73: 0.01184680319 | I73: 0.9983109556 | J73: 0.001689044434 | K73: 0.9505503234 | L73: =1.1*NORMDIST(meanlog,meanlog,sigma,FALSE) -> 0.5485456356 | M73: 1 | N73: =m -> -1 | P73: -3.76317277
B74: -4.4 | C74: -3.66317277 | D74: 0.9978835839 | E74: 0.001481491261 | F74: 0.9564969368 | G74: 0.01654544683 | I74: 0.9978835839 | J74: 0.002116416087 | K74: 0.9384180323 | P74: -3.66317277
B75: -4.3 | C75: -3.56317277 | D75: 0.997350559 | E75: 0.001854608714 | F75: 0.9458323752 | G75: 0.02274940152 | I75: 0.997350559 | J75: 0.002649441019 | K75: 0.923496093 | P75: -3.56317277
B76: -4.2 | C76: -3.46317277 | D76: 0.9966869083 | E76: 0.002319164222 | F76: 0.9327148709 | G76: 0.03079467324 | I76: 0.9966869083 | J76: 0.003313091745 | K76: 0.9052376568 | P76: -3.46317277
B77: -4.1 | C77: -3.36317277 | D77: 0.9958622528 | E77: 0.002896423055 | F77: 0.916659886 | G77: 0.04103886803 | I77: 0.9958622528 | J77: 0.004137747221 | K77: 0.8830354415 | P77: -3.36317277
B78: -4 | C78: -3.26317277 | D78: 0.9948398364 | E78: 0.003612114527 | F78: 0.8971254075 | G78: 0.05384300561 | I78: 0.9948398364 | J78: 0.00516016361 | K78: 0.8562390336 | P78: -3.26317277
B79: -3.9 | C79: -3.16317277 | D79: 0.9935754559 | E79: 0.004497180871 | F79: 0.8735239701 | G79: 0.06954683418 | I79: 0.9935754559 | J79: 0.006424544102 | K79: 0.8241867725 | P79: -3.16317277
B80: -3.8 | C80: -3.06317277 | D80: 0.9920163104 | E80: 0.005588582703 | F80: 0.8452458749 | G80: 0.08843813684 | I80: 0.9920163104 | J80: 0.007983689576 | K80: 0.786256742 | L80: Coordinates to place Pd | P80: -3.06317277
B81: -3.7 | C81: -2.96317277 | D81: 0.990099801 | E81: 0.006930139326 | F81: 0.8116971893 | G81: 0.1107174188 | I81: 0.990099801 | J81: 0.009900199037 | K81: 0.7419407013 | L81: p accept | P81: -2.96317277
B82: -3.6 | C82: -2.86317277 | D82: 0.987752327 | E82: 0.008573371103 | F82: 0.7723557524 | G82: 0.1364603463 | I82: 0.987752327 | J82: 0.012247673 | K82: 0.6909424007 | L82: x | M82: y | P82: -2.86317277
B83: -3.5 | C83: -2.76317277 | D83: 0.9848881454 | E83: 0.01057829824 | F83: 0.7268469219 | G83: 0.1655812415 | I83: 0.9848881454 | J83: 0.01511185463 | K83: 0.6332968131 | L83: =+Pd -> 0.09502924054 | M83: 0 | P83: -2.76317277
B84: -3.4 | C84: -2.66317277 | D84: 0.9814083771 | E84: 0.01301413605 | F84: 0.6750376197 | G84: 0.1978016675 | I84: 0.9814083771 | J84: 0.01859162293 | K84: 0.5694988099 | L84: =+Pd -> 0.09502924054 | M84: =+desired_P/100 -> 0.05 | P84: -2.66317277
B85: -3.3 | C85: -2.56317277 | D85: 0.9772002685 | E85: 0.01595981205 | F85: 0.6171419353 | G85: 0.2326284951 | I85: 0.9772002685 | J85: 0.0227997315 | K85: 0.5006190006 | P85: -2.56317277
B86: -3.2 | C86: -2.46317277 | D86: 0.9721368342 | E86: 0.01950421606 | F86: 0.5538241852 | G86: 0.2693456852 | I86: 0.9721368342 | J86: 0.0278631658 | K86: 0.4283728769 | P86: -2.46317277
B87: -3.1 | C87: -2.36317277 | D87: 0.9660770243 | E87: 0.02374608298 | F87: 0.4862769479 | G87: 0.307023263 | I87: 0.9660770243 | J87: 0.03392297569 | K87: 0.3551015837 | P87: -2.36317277
B88: -3 | C88: -2.26317277 | D88: 0.9588665704 | E88: 0.02879340072 | F88: 0.4162447244 | G88: 0.3445455871 | I88: 0.9588665704 | J88: 0.0411334296 | K88: 0.2836255387 | P88: -2.26317277
B89: -2.9 | C89: -2.16317277 | D89: 0.9503396639 | E89: 0.03476223527 | F89: 0.3459626042 | G89: 0.380659129 | I89: 0.9503396639 | J89: 0.0496603361 | K89: 0.216953004 | P89: -2.16317277
B90: -2.8 | C90: =+B90+0.5*LN(10)*sigma^2 -> -2.06317277 | D90: =1-poissonlognormal(B90,sigma,10^-m) -> 0.9403216085 | E90: =(1-D90)*sens+D90*(1-spec) -> 0.04177487406 | F90: =+BINOMDIST(cm,n,$E90,1) -> 0.2779883742 | G90: =NORMDIST($B90,meanlog,sigma,FALSE) -> 0.4140377653 | I90: =1-poissonlognormal(B90,sigma,10^-m) -> 0.9403216085 | J90: =1-I90 -> 0.05967839151 | K90: =+BINOMDIST(cm,n,$J90,1) -> 0.1578674115 | P90: =+B90+0.5*LN(10)*sigma^2 -> -2.06317277
B91: -2.7 | C91: -1.96317277 | D91: 0.9286325589 | E91: 0.04995720878 | F91: 0.2149289952 | G91: 0.4433613298 | I91: 0.9286325589 | J91: 0.07136744112 | K91: 0.1084718865 | P91: -1.96317277
B92: -2.6 | C92: -1.86317277 | D92: 0.9150924112 | E92: 0.05943531216 | F92: 0.1590963047 | G92: 0.4674011911 | I92: 0.9150924112 | J92: 0.0849075888 | K92: 0.06981497932 | P92: -1.86317277
B93: -2.5 | C93: -1.76317277 | D93: 0.8995268432 | E93: 0.07033120976 | F93: 0.1121624655 | G93: 0.4851052417 | I93: 0.8995268432 | J93: 0.1004731568 | K93: 0.04172764124 | P93: -1.76317277
B94: -2.4 | C94: -1.66317277 | D94: 0.8817744179 | E94: 0.08275790746 | F94: 0.07490646339 | G94: 0.4956741478 | I94: 0.8817744179 | J94: 0.1182255821 | K94: 0.02294694353 | P94: -1.66317277
B95: -2.3 | C95: -1.56317277 | D95: 0.8616945649 | E95: 0.09681380455 | F95: 0.04713231079 | G95: 0.4986211759 | I95: 0.8616945649 | J95: 0.1383054351 | K95: 0.01149742566 | P95: -1.56317277
B96: -2.2 | C96: -1.46317277 | D96: 0.8391761464 | E96: 0.1125766975 | F96: 0.0277923234 | G96: 0.4938093597 | I96: 0.8391761464 | J96: 0.1608238536 | K96: 0.005195100052 | P96: -1.46317277
B97: -2.1 | C97: -1.36317277 | D97: 0.814146208 | E97: 0.1300976544 | F97: 0.01527970804 | G97: 0.4814620545 | I97: 0.814146208 | J97: 0.185853792 | K97: 0.002094460297 | P97: -1.36317277
B98: -2 | C98: -1.26317277 | D98: 0.7865784205 | E98: 0.1493951056 | F98: 0.007795362563 | G98: 0.4621457472 | I98: 0.7865784205 | J98: 0.2134215795 | K98: 0.0007451793746 | P98: -1.26317277
B99: -1.9 | C99: -1.16317277 | D99: 0.756500648 | E99: 0.1704495464 | F99: 0.003675226881 | G99: 0.4367269631 | I99: 0.756500648 | J99: 0.243499352 | K99: 0.0002313551287 | P99: -1.16317277
B100: -1.8 | C100: -1.06317277 | D100: 0.7240010422 | E100: 0.1931992704 | F100: 0.001595836771 | G100: 0.4063078371 | I100: 0.7240010422 | J100: 0.2759989578 | K100: 6.196917886e-05 | P100: -1.06317277
B101: -1.7 | C101: -0.9631727702 | D101: 0.6892320769 | E101: 0.2175375461 | F101: 0.00063665656 | G101: 0.3721470165 | I101: 0.6892320769 | J101: 0.3107679231 | K101: 1.415677863e-05 | P101: -0.9631727702
B102: -1.6 | C102: -0.8631727702 | D102: 0.6524120007 | E102: 0.2433115995 | F102: 0.0002330839117 | G102: 0.3355737898 | I102: 0.6524120007 | J102: 0.3475879993 | K102: 2.726831053e-06 | P102: -0.8631727702
B103: -1.5 | C103: -0.7631727702 | D103: 0.6138233067 | E103: 0.2703236853 | F103: 7.8326276e-05 | G103: 0.2979035457 | I103: 0.6138233067 | J103: 0.3861766933 | K103: 4.378256834e-07 | P103: -0.7631727702
B104: -1.4 | C104: -0.6631727702 | D104: 0.5738079908 | E104: 0.2983344064 | F104: 2.420501957e-05 | G104: 0.2603619172 | I104: 0.5738079908 | J104: 0.4261920092 | K104: 5.79425705e-08 | P104: -0.6631727702
B105: -1.3 | C105: -0.5631727702 | D105: 0.5327595816 | E105: 0.3270682929 | F105: 6.904460592e-06 | G105: 0.2240234071 | I105: 0.5327595816 | J105: 0.4672404184 | K105: 6.25083559e-09 | P105: -0.5631727702
B106: -1.2 | C106: -0.4631727702 | D106: 0.491112162 | E106: 0.3562214866 | F106: 1.82849733e-06 | G106: 0.18976822 | I106: 0.491112162 | J106: 0.508887838 | K106: 5.437768024e-10 | P106: -0.4631727702
B107: -1.1 | C107: -0.3631727702 | D107: 0.4493268411 | E107: 0.3854712112 | F107: 4.531760937e-07 | G107: 0.1582587454 | I107: 0.4493268411 | J107: 0.5506731589 | K107: 3.774599473e-11 | P107: -0.3631727702
B108: -1 | C108: -0.2631727702 | D108: 0.4078763538 | E108: 0.4144865523 | F108: 1.061955267e-07 | G108: 0.1299349854 | I108: 0.4078763538 | J108: 0.5921236462 | K108: 2.069454345e-12 | P108: -0.2631727702
B109: -0.9 | C109: -0.1631727702 | D109: 0.3672286379 | E109: 0.4429399535 | F109: 2.382650447e-08 | G109: 0.1050264374 | I109: 0.3672286379 | J109: 0.6327713621 | K109: 8.873526554e-14 | P109: -0.1631727702
B110: -0.8 | C110: -0.06317277024 | D110: 0.3278303481 | E110: 0.4705187564 | F110: 5.19418493e-09 | G110: 0.08357671838 | I110: 0.3278303481 | J110: 0.6721696519 | K110: 2.947641378e-15 | P110: -0.06317277024
B111: -0.7 | C111: 0.03682722976 | D111: 0.2900912981 | E111: 0.4969360913 | F111: 1.11865154e-09 | G111: 0.06547660369 | I111: 0.2900912981 | J111: 0.7099087019 | K111: 7.516939271e-17 | P111: 0.03682722976
B112: -0.6 | C112: 0.1368272298 | D112: 0.2543707659 | E112: 0.5219404639 | F112: 2.423592345e-10 | G112: 0.05050113308 | I112: 0.2543707659 | J112: 0.7456292341 | K112: 1.458867767e-18 | P112: 0.1368272298
B113: -0.5 | C113: 0.2368272298 | D113: 0.2209664653 | E113: 0.5453234743 | F113: 5.383639668e-11 | G113: 0.03834689898 | I113: 0.2209664653 | J113: 0.7790335347 | K113: 2.136933749e-20 | P113: 0.2368272298
B114: -0.4 | C114: 0.3368272298 | D114: 0.1901067831 | E114: 0.5669252518 | F114: 1.249930442e-11 | G114: 0.02866642432 | I114: 0.1901067831 | J114: 0.8098932169 | K114: 2.343842308e-22 | P114: 0.3368272298
B115: -0.3 | C115: 0.4368272298 | D115: 0.1619466305 | E115: 0.5866373587 | F115: 3.089845107e-12 | G115: 0.02109749776 | I115: 0.1619466305 | J115: 0.8380533695 | K115: 1.910545963e-24 | P115: 0.4368272298
B116: -0.2 | C116: 0.5368272298 | D116: 0.1365669855 | E116: 0.6044031101 | F116: 8.271533967e-13 | G116: 0.01528630507 | I116: 0.1365669855 | J116: 0.8634330145 | K116: 1.14913671e-26 | P116: 0.5368272298
B117: -0.1 | C117: 0.6368272298 | D117: 0.1139779331 | E117: 0.6202154468 | F117: 2.432870018e-13 | G117: 0.0109040603 | I117: 0.1139779331 | J117: 0.8860220669 | K117: 5.065511611e-29 | P117: 0.6368272298
B118: -2.042810365e-14 | C118: 0.7368272298 | D118: 0.09412477167 | E118: 0.6341126598 | F118: 7.950995178e-14 | G118: 0.007657519561 | I118: 0.09412477167 | J118: 0.9058752283 | K118: 1.625990749e-31 | P118: 0.7368272298
B119: 0.1 | C119: 0.8368272298 | D119: 0.07689657011 | E119: 0.6461724009 | F119: 2.909049862e-14 | G119: 0.005294221826 | I119: 0.07689657011 | J119: 0.9231034299 | K119: 3.777539985e-34 | P119: 0.8368272298
B120: 0.2 | C120: 0.9368272298 | D120: 0.06213643701 | E120: 0.6565044941 | F120: 1.195726299e-14 | G120: 0.003603547924 | I120: 0.06213643701 | J120: 0.937863563 | K120: 6.315247811e-37 | P120: 0.9368272298
B121: 0.3 | C121: 1.03682723 | D121: 0.04965271691 | E121: 0.6652430982 | F121: 5.519327885e-15 | G121: 0.002414752469 | I121: 0.04965271691 | J121: 0.9503472831 | K121: 7.555975135e-40 | P121: 1.03682723
B122: 0.4 | C122: =+B122+0.5*LN(10)*sigma^2 -> 1.13682723 | D122: =1-poissonlognormal(B122,sigma,10^-m) -> 0.03923035043 | E122: =(1-D122)*sens+D122*(1-spec) -> 0.6725387547 | F122: =+BINOMDIST(cm,n,$E122,1) -> 2.849687727e-15 | G122: =NORMDIST($B122,meanlog,sigma,FALSE) -> 0.001593048816 | I122: =1-poissonlognormal(B122,sigma,10^-m) -> 0.03923035043 | J122: =1-I122 -> 0.9607696496 | K122: =+BINOMDIST(cm,n,$J122,1) -> 6.436734936e-43 | P122: =+B122+0.5*LN(10)*sigma^2 -> 1.13682723
B123: 0.5 | C123: 1.23682723 | D123: 0.03064171713 | E123: 0.678550798 | F123: 1.634445932e-15 | G123: 0.001034664857 | I123: 0.03064171713 | J123: 0.9693582829 | K123: 3.885017444e-46 | P123: 1.23682723
B124: 0.6 | C124: 1.33682723 | D124: 0.02365640856 | E124: 0.683440514 | F124: 1.031953105e-15 | G124: 0.0006615831891 | I124: 0.02365640856 | J124: 0.9763435914 | K124: 1.653729069e-49 | P124: 1.33682723
B125: 0.7 | C125: 1.43682723 | D125: 0.01804953389 | E125: 0.6873653263 | F125: 7.097645333e-16 | G125: 0.0004164696643 | I125: 0.01804953389 | J125: 0.9819504661 | K125: 4.942876191e-53 | P125: 1.43682723
B126: 0.8 | C126: 1.53682723 | D126: 0.01360832587 | E126: 0.6904741719 | F126: 5.259044258e-16 | G126: 0.0002581050091 | I126: 0.01360832587 | J126: 0.9863916741 | K126: 1.033096799e-56 | P126: 1.53682723
B127: 0.9 | C127: 1.63682723 | D127: 0.01013697104 | E127: 0.6929041203 | F127: 4.151640004e-16 | G127: 0.0001574793604 | I127: 0.01013697104 | J127: 0.989863029 | K127: 1.50399425e-60 | P127: 1.63682723
B128: 1 | C128: 1.73682723 | D128: 0.007459724429 | E128: 0.6947781929 | F128: 3.45514899e-16 | G128: 9.4594307e-05 | I128: 0.007459724429 | J128: 0.9925402756 | K128: 1.51943992e-64 | P128: 1.73682723
B129: 1.1 | C129: 1.83682723 | D129: 0.00542247484 | E129: 0.6962042676 | F129: 3.002272185e-16 | G129: 5.59397481e-05 | I129: 0.00542247484 | J129: 0.9945775252 | K129: 1.061515565e-68 | P129: 1.83682723
B130: 1.2 | C130: 1.93682723 | D130: 0.003892998703 | E130: 0.6972749009 | F130: 2.700554217e-16 | G130: 3.256793042e-05 | I130: 0.003892998703 | J130: 0.9961070013 | K130: 5.111257614e-73 | P130: 1.93682723
B131: 1.3 | C131: 2.03682723 | D131: 0.00276017866 | E131: 0.6980678749 | F131: 2.496201904e-16 | G131: 1.866697584e-05 | I131: 0.00276017866 | J131: 0.9972398213 | K131: 1.690891796e-77 | P131: 2.03682723
B132: 1.4 | C132: 2.13682723 | D132: 0.001932470914 | E132: 0.6986472704 | F132: 2.356426452e-16 | G132: 1.053348105e-05 | I132: 0.001932470914 | J132: 0.9980675291 | K132: 3.831677749e-82 | P132: 2.13682723
B133: 1.5 | C133: 2.23682723 | D133: 0.00133588906 | E133: 0.6990648777 | F133: 2.260405342e-16 | G133: 5.851726496e-06 | I133: 0.00133588906 | J133: 0.9986641109 | K133: 5.930779825e-87 | P133: 2.23682723
B134: 1.6 | C134: 2.33682723 | D134: 0.0009117386465 | E134: 0.6993617829 | F134: 2.19444962e-16 | G134: 3.200444273e-06 | I134: 0.0009117386465 | J134: 0.9990882614 | K134: 6.253323812e-92 | P134: 2.33682723
B135: 1.7 | C135: 2.43682723 | D135: 0.0006142931976 | E135: 0.6995699948 | F135: 2.149310502e-16 | G135: 1.723259448e-06 | I135: 0.0006142931976 | J135: 0.9993857068 | K135: 4.479929558e-97 | P135: 2.43682723
B136: 1.8 | C136: 2.53682723 | D136: 0.0004085555108 | E136: 0.6997140111 | F136: 2.118615101e-16 | G136: 9.134929833e-07 | I136: 0.0004085555108 | J136: 0.9995914445 | K136: 2.175365248e-102 | P136: 2.53682723
B137: 1.9 | C137: 2.63682723 | D137: 0.0002682025051 | E137: 0.6998122582 | F137: 2.097918497e-16 | G137: 4.767315694e-07 | I137: 0.0002682025051 | J137: 0.9997317975 | K137: 7.143069876e-108 | P137: 2.63682723
B138: 2 | C138: 2.73682723 | D138: 0.0001737716605 | E138: 0.6998783598 | F138: 2.084103755e-16 | G138: 2.449383325e-07 | I138: 0.0001737716605 | J138: 0.9998262283 | K138: 1.582590434e-113 | P138: 2.73682723

Sheet TableSensSpec
B2: In these tables the effect of specificity and sensitivity can be investigated for various number of samples and the actual Pd (probability of a defective sample)
B3: At various specificities and sensitivities the probability of a negative is determined (P-) and the for a selected range of number of samples the probability of acceptance of the batch is determined
B4: Specificity and sensitivity of the test are assumed to be fixed values and not dependant on the concentration of the organisms
A6: actual Pd=0 | J6: actual Pd | K6: 0.01
A8: specificity | B8: P- | C8: 1 | D8: 5 | E8: 10 | F8: 20 | G8: 30 | H8: 60 | J8: specificity | K8: P- | L8: =+C8 -> 1 | M8: 5 | N8: 10 | O8: 20 | P8: 30 | Q8: 60
A9: 100 | B9: =+A9/100 -> 1 | C9: =+$B9^C$8 -> 1 | D9: 1 | E9: 1 | F9: 1 | G9: 1 | H9: 1 | J9: =+A9 -> 100 | K9: =+J9/100*(1-$K$6) -> 0.99 | L9: =+$K9^L$8 -> 0.99 | M9: 0.9509900499 | N9: 0.904382075 | O9: 0.8179069376 | P9: 0.7397003734 | Q9: 0.5471566424
A10: 99.9 | B10: =+A10/100 -> 0.999 | C10: =+$B10^C$8 -> 0.999 | D10: =+$B10^D$8 -> 0.99500999 | E10: 0.9900448802 | F10: 0.9801888648 | G10: 0.9704309673 | H10: 0.9417362622 | J10: 99.9 | K10: 0.98901 | L10: 0.98901 | M10: 0.9462446 | N10: 0.8953788431 | O10: 0.8017032727 | P10: 0.7178281488 | Q10: 0.5152772513
A11: 99.5 | B11: =+A11/100 -> 0.995 | C11: 0.995 | D11: 0.9752487531 | E11: 0.9511101305 | F11: 0.9046104803 | G11: 0.8603841919 | H11: 0.7402609577 | J11: 99.5 | K11: 0.98505 | L11: 0.98505 | M11: 0.9274518604 | N11: 0.8601669534 | O11: 0.7398871876 | P11: 0.636426508 | Q11: 0.4050387001
A12: 99 | B12: 0.99 | C12: 0.99 | D12: 0.9509900499 | E12: 0.904382075 | F12: 0.8179069376 | G12: 0.7397003734 | H12: 0.5471566424 | J12: 99 | K12: 0.9801 | L12: 0.9801 | M12: 0.904382075 | N12: 0.8179069376 | O12: 0.6689717586 | P12: 0.5471566424 | Q12: 0.2993803913
A13: 98 | B13: 0.98 | C13: 0.98 | D13: 0.9039207968 | E13: 0.8170728069 | F13: 0.6676079718 | G13: 0.5454843194 | H13: 0.2975531427 | J13: 98 | K13: 0.9702 | L13: 0.9702 | M13: 0.8596196837 | N13: 0.7389460005 | O13: 0.5460411917 | P13: 0.4034949547 | Q13: 0.1628081785
A14: 97 | B14: 0.97 | C14: 0.97 | D14: 0.8587340257 | E14: 0.7374241269 | F14: 0.5437943429 | G14: 0.4010070685 | H14: 0.160806669 | J14: 97 | K14: 0.9603 | L14: 0.9603 | M14: 0.816647514 | N14: 0.666913162 | O14: 0.4447731657 | P14: 0.2966250783 | Q14: 0.0879864371
A15: 96 | B15: 0.96 | C15: 0.96 | D15: 0.8153726976 | E15: 0.664832636 | F15: 0.4420024339 | G15: 0.2938576432 | H15: 0.08635231449 | J15: 96 | K15: 0.9504 | L15: 0.9504 | M15: 0.7754113224 | N15: 0.6012627189 | O15: 0.3615168571 | P15: 0.2173666084 | Q15: 0.04724824246
A16: 95 | B16: 0.95 | C16: 0.95 | D16: 0.7737809375 | E16: 0.5987369392 | F16: 0.3584859224 | G16: 0.2146387639 | H16: 0.04606979899 | J16: 95 | K16: 0.9405 | L16: 0.9405 | M16: 0.7358579724 | N16: 0.5414869555 | O16: 0.293208123 | P16: 0.1587683738 | Q16: 0.02520739653
A17: 94 | B17: 0.94 | C17: 0.94 | D17: 0.7339040224 | E17: 0.5386151141 | F17: 0.2901062411 | G17: 0.1562556062 | H17: 0.02441581446 | J17: 94 | K17: 0.9306 | L17: 0.9306 | M17: 0.6979354229 | N17: 0.4871138545 | O17: 0.2372799073 | P17: 0.1155823302 | Q17: 0.01335927506
A18: 90 | B18: 0.9 | C18: 0.9 | D18: 0.59049 | E18: 0.3486784401 | F18: 0.1215766546 | G18: 0.04239115828 | H18: 0.0017970103 | J18: 90 | K18: 0.891 | L18: 0.891 | M18: 0.5615501146 | N18: 0.3153385312 | O18: 0.09943838924 | P18: 0.0313567556 | Q18: 0.000983246122
J20: actual Pd | K20: 0.01
J22: sensitivity | K22: P- | L22: =+C8 -> 1 | M22: 5 | N22: 10 | O22: 20 | P22: 30 | Q22: 60
J23: 100 | K23: =1-J23/100*$K$20 -> 0.99 | L23: =+$K23^L$22 -> 0.99 | M23: 0.9509900499 | N23: 0.904382075 | O23: 0.8179069376 | P23: 0.7397003734 | Q23: 0.5471566424
J24: 99.9 | K24: 0.99001 | L24: 0.99001 | M24: 0.9510380807 | N24: 0.9044734309 | O24: 0.8180721872 | P24: 0.7399245578 | Q24: 0.5474883513
J25: 99.5 | K25: 0.99005 | L25: 0.99005 | M25: 0.9512302232 | N25: 0.9048389375 | O25: 0.8187335027 | P25: 0.7408219527 | Q25: 0.5488171656
J26: 99 | K26: 0.9901 | L26: 0.9901 | M26: 0.9514704449 | N26: 0.9052960076 | O26: 0.8195608614 | P26: 0.7419451758 | Q26: 0.5504826439
J27: 98 | K27: 0.9902 | L27: 0.9902 | M27: 0.9519510341 | N27: 0.9062107713 | O27: 0.8212179621 | P27: 0.7441965629 | Q27: 0.5538285242
J28: 97 | K28: 0.9903 | L28: 0.9903 | M28: 0.9524318174 | N28: 0.9071263669 | O28: 0.8228782455 | P28: 0.7464545532 | Q28: 0.5571944
J29: 96 | K29: 0.9904 | L29: 0.9904 | M29: 0.952912795 | N29: 0.9080427949 | O29: 0.8245417174 | P29: 0.7487191656 | Q29: 0.560580389
J30: 95 | K30: 0.9905 | L30: 0.9905 | M30: 0.9533939669 | N30: 0.9089600561 | O30: 0.8262083836 | P30: 0.7509904187 | Q30: 0.563986609
J31: 94 | K31: 0.9906 | L31: 0.9906 | M31: 0.9538753331 | N31: 0.9098781511 | O31: 0.8278782499 | P31: 0.7532683314 | Q31: 0.5674131791
J32: 90 | K32: 0.991 | L32: 0.991 | M32: 0.9558027427 | N32: 0.913558883 | O32: 0.8345898328 | P32: 0.7624469554 | Q32: 0.5813253599
